{"text_format":"1","workbook":"xlsx","n_sheets":50,"sheets":["MSH","PID","NK1","ORC","OBR1-ReportType","OBX-Observation Result","OBR2-ReportSummary","OBX-ReportSummary","OBR3-ScreenCard","OBX-ScreenCard","OBR4-NewbornScreeningPanel","OBR5-AminoAcid","OBX-AminoAcid","OBR6-Acylcarnitine","OBX-Acylcarnitine","OBR7-Fatty Acid","OBX-Fatty Acid","OBR8-Organic Acid","OBX-Organic Acid","OBR9-Cystic Fibrosis","OBX-Cystic Fibrosis","OBR10-CAH","OBX-CAH","OBR11-TSH","OBX-TSH","OBR12-Galactosemia","OBX-Galactosemia","OBR13-Hemoglobinpathies","OBX-Hemoglobinpathies","OBR14-Biotinidase","OBX-Biotinidase","OBR15-SCID","OBX-SCID","OBR16-Pompe","OBX-Pompe","OBR16-Pompe -Sequencing","OBX-Pompe - Sequencing","OBR17-MPS I","OBX-MPS I","OBR18-ALD","OBX-ALD","OBR19-ALDTier1","OBX-ALDTier1","OBR20-ALDTier2","OBX-ALDTier2","OBR21-ALDMutation","OBX-ALDMutation","OBR-PDF","OBX-PDF","HL7 Optionality Definition"],"not_rendered":{"charts":0,"images":3,"macros":1,"external_links":0,"defined_names":1,"comments":0,"pivot_tables":0},"unopened":[],"bounds":{"document_bytes":16777216,"sheet_cells":100000,"rows_first":2000,"rows_last":500,"rows_between":2000,"halvings":0,"cell_chars":16384,"cell_head_chars":4096},"cells_cut":0,"cells_raw":0,"read":"whole","date_system":"1900"}

{"sheet":"MSH","index":0,"n_rows":24,"n_cols":8,"rows_kept":24,"cut":false,"hidden":false,"merged":[]}
["SEQ","LEN","DT","OPT","ELEMENT NAME","SAMPLE DATA","COMMENTS","SAMPLE SEGEMENT MESSAGE TEXT"]
[1,3,"ST","R","Element Code","MSH",null,{"$f":"joinString(F2:F22,\"|\")","v":"MSH|^~\\&|SISGDSP^^|SISGDSP^^|FHCSDH02^^|^11356370^NPI|201301111618||ORU^R01^ORU_R01|123457893|T|2.5.1|||||||||"}]
[2,4,"ST","R","Encoding Characters","^~\\&"]
[3,227,"HD","O","Sending Application","SISGDSP^^"]
[4,227,"HD","O","Sending Facility","SISGDSP^^"]
[5,227,"HD","O","Receiving Application","FHCSDH02^^","Username of HIE Partner that is used to log into the External FTP Server. \n\nThis same ID must be present in MSH-3 for ACK/NACK messages"]
[6,227,"HD","O","Receiving Facility","^11356370^NPI","This is where we will provide the residing clinician NPI number for lookup.\n\nThis same ID must be present in MSH-4 for ACK/NACK messages"]
[7,24,"DTM","R","Date/Time Of Message","201301111618"]
[8,40,"ST","O","Security"]
[9,15,"MSG","R","Message Type","ORU^R01^ORU_R01"]
[10,199,"ST","R","Message Control ID","123457893","This same ID must be present in MSA-3 for ACK/NACK message"]
[11,3,"PT","R","Processing ID","T"]
[12,60,"VID","R","Version ID","2.5.1"]
[13,15,"NM","O","Sequence Number"]
[14,180,"ST","O","Continuation Pointer"]
[15,2,"ID","O","Accept Acknowledgment Type"]
[16,2,"ID","O","Application Acknowledgment Type"]
[17,3,"ID","O","Country Code"]
[18,16,"ID","O","Character Set"]
[19,250,"CWE","O","Principal Language Of Message"]
[20,20,"ID","O","Alternate Character Set Handling Scheme"]
[21,427,"EI","O","Message Profile Identifier"]
[]
[null,null,"CWE"]

{"sheet":"PID","index":1,"n_rows":41,"n_cols":8,"rows_kept":41,"cut":false,"hidden":false,"merged":[]}
["SEQ","LEN","DT","OPT","ELEMENT NAME","SAMPLE DATA","COMMENTS","SAMPLE SEGEMENT MESSAGE TEXT"]
[0,4,"SI","R","Element Code","PID",null,{"$f":"joinString(F2:F41,\"|\")","v":"PID|1||41380742^^^11356370&NPI^MR||DOMINGO^^^^^^B|DOMINGO^MELISSA|201008060842|M||2106-3^White||||||||||||2135-2^Hispanic or Latino||Y|2||||||||||||||"}]
[1,4,"SI","R","Set ID -PID ",1,"This will always be 1. Each message shall have only one patient information"]
[2,20,"CX","B","Patient ID"]
[3,250,"CX","R","Patient Identifier List\n","41380742^^^11356370&NPI^MR","Example format of Data:\n[Medical Record]^^^[ID]&NPI NUMBER&NPI^MR (Medical Record)"]
[4,20,"CX","B","Alternate Patient ID – PID"]
[5,250,"XPN","R","Patient Name","DOMINGO^^^^^^B","Field sub segments are:\nFamily (Last) Name\nGiven Name\nSecond Name (Initials)\nSuffix\nPrefix\nDegree\nName Type Code\n  - A code that represents the type of name\n    Example values are:\n          A Alias Name\n          B Name at Birth\n          C Adopted Name\n          L Legal Name\n\n-We will provide Family Last Name, & Given Name, Second Name and \"B\" for Name Type Code"]
[6,250,"XPN","O","Mother’s Maiden Name","DOMINGO^MELISSA"]
[7,24,"DTM","O","Date/Time of Birth",201008060842]
[8,1,"IS","O","Administrative Sex","M"]
[9,250,"XPN","B","Patient Alias"]
[10,705,"CWE","O","Race","2106-3^White","1002-5 - American Indian or \nAlaska Native\n2028-9 - Asian\n2076-8 - Native Hawaiian or \nOther Pacific Islander\n2054-5 - Black or African-American\n2106-3 - White\n2131-1 - Other Race"]
[11,250,"XAD","O","Patient Address"]
[12,4,"IS","B","County Code"]
[13,250,"XTN","O","Phone Number - Home"]
[14,250,"XTN","O","Phone Number - Business"]
[15,705,"CWE","O","Primary Language"]
[16,705,"CWE","O","Marital Status"]
[17,705,"CWE","O","Religion"]
[18,250,"CX","O","Patient Account Number"]
[19,16,"ST","B","SSN Number - Patient"]
[20,25,"DLN","B","Driver's License Number - Patient"]
[21,250,"CX","O","Mother's Identifier"]
[22,705,"CWE","O","Ethnic Group","2135-2^Hispanic or Latino","2135-2 - Hispanic or Latino\n2186-5 - Not Hispanic or Latino\nU - Unknown"]
[23,250,"ST","O","Birth Place"]
[24,1,"ID","O","Multiple Birth Indicator","Y","This field will be populated with a Y (Yes) only if there were two or more babies born (i.e. Twins, Triplets, etc.)"]
[25,2,"NM","O","Birth Order",2,"If PID-24 is populated with a \"Y\", then this field will be populated with incremental numbers for the order of birth the baby was born in"]
[26,705,"CWE","O","Citizenship"]
[27,705,"CWE","O","Veterans Military Status"]
[28,705,"CWE","B","Nationality"]
[29,24,"DTM","O","Patient Death Date and Time"]
[30,1,"ID","O","Patient Death Indicator"]
[31,1,"ID","O","Identity Unknown Indicator"]
[32,20,"IS","O","Identity Reliability Code"]
[33,24,"DTM","O","Last Update Date/Time"]
[34,241,"HD","O","Last Update Facility"]
[35,705,"CWE","C","Species Code"]
[36,705,"CWE","C","Breed Code"]
[37,80,"ST","O","Strain"]
[38,705,"CWE","O","Production Class Code"]
[39,705,"CWE","O","Tribal Citizenship"]

{"sheet":"NK1","index":2,"n_rows":41,"n_cols":8,"rows_kept":41,"cut":false,"hidden":false,"merged":[]}
["SEQ","LEN","DT","OPT","ELEMENT NAME","SAMPLE DATA","COMMENTS","SAMPLE SEGEMENT MESSAGE TEXT"]
[0,4,"SI","R","Element Code","NK1",null,{"$f":"joinString(F2:F41,\"|\")","v":"NK1|1|DOMINGO^JOANNA|MTH^Mother|2434 Carsen St^Small City^California^94061-2010^USA|^^^^^^^555^5556837|||||||||||1301986|||||||||||||||||||||||"}]
[1,4,"SI","R","Set ID - NK1",1]
[2,250,"XPN","O","Name","DOMINGO^JOANNA"]
[3,705,"CWE","O","Relationship","MTH^Mother","For SIS GDSP, we will only provide the mother detail information"]
[4,250,"XAD","O","Address","2434 Carsen St^Small City^California^94061-2010^USA"]
[5,250,"XTN","O","Phone Number","^^^^^^^555^5556837"]
[6,250,"XTN","O","Business Phone Number"]
[7,705,"CWE","O","Contact Role"]
[8,8,"DT","O","Start Date"]
[9,8,"DT","O","End Date"]
[10,60,"ST","O","Next of Kin / Associated Parties Job Title"]
[11,20,"JCC","O","Next of Kin / Associated Parties Job Code/Class"]
[12,250,"CX","O","Next of Kin / Associated Parties Employee Number"]
[13,250,"XON","O","Organization Name - NK1"]
[14,705,"CWE","O","Marital Status"]
[15,1,"IS","O","Administrative Sex"]
[16,24,"DTM","O","Date/Time of Birth",1301986,"This field will be populated if the mothers date of birth was present on the original Test Results Form (TRF) filled out at the Hospital.\n\nOtherwise, the field we be blank"]
[17,2,"IS","O","Living Dependency"]
[18,2,"IS","O","Ambulatory Status"]
[19,705,"CWE","O","Citizenship"]
[20,705,"CWE","O","Primary Language"]
[21,2,"IS","O","Living Arrangement"]
[22,705,"CWE","O","Publicity Code"]
[23,1,"ID","O","Protection Indicator"]
[24,2,"IS","O","Student Indicator"]
[25,705,"CWE","O","Religion"]
[26,250,"XPN","O","Mother’s Maiden Name"]
[27,705,"CWE","O","Nationality"]
[28,705,"CWE","O","Ethnic Group"]
[29,705,"CWE","O","Contact Reason"]
[30,250,"XPN","O","Contact Person’s Name"]
[31,250,"XTN","O","Contact Person’s Telephone Number"]
[32,250,"XAD","O","Contact Person’s Address"]
[33,250,"CX","O","Next of Kin/Associated Party’s Identifiers"]
[34,2,"IS","O","Job Status"]
[35,705,"CWE","O","Race"]
[36,2,"IS","O","Handicap"]
[37,16,"ST","O","Contact Person Social Security Number"]
[38,250,"ST","O","Next of Kin Birth Place"]
[39,2,"IS","O","VIP Indicator"]

{"sheet":"ORC","index":3,"n_rows":32,"n_cols":8,"rows_kept":32,"cut":false,"hidden":false,"merged":[]}
["SEQ","LEN","DT","OPT","ELEMENT NAME","SAMPLE DATA","COMMENTS","SAMPLE SEGEMENT MESSAGE TEXT"]
[0,4,"SI","R","Element Code","ORC",null,{"$f":"joinString(F2:F32,\"|\")","v":"ORC|RE|25989006^FormNumber||W12312312^HospOrdNumber||||||||11356370^CUNNINGHAM^REBECCA^^^^^^NPI|||||||||Small City Hospital^R777|300 Pasteur Dr.^Small City^CA^94304-2210|^^^^^^^555^5557613|||||||"}]
[1,2,"ID","R","Order Control","RE","Enter literal value: \"RE\" to indicate ‘Observations / Performed Service to follow"]
[2,427,"EI","R","Placer Order Number","25989006^FormNumber","We will place the Form Number as specified on TRF form for blood sample.\n\n[FormNumber]^FormNumber"]
[3,427,"EI","C","Filler Order Number",null,"Not Supported in HL7 v.2.5.1"]
[4,22,"EI","O","Placer Group Number","W12312312^HospOrdNumber","We will place the Hospital Order Number as provided on the TRF form for blood sample\n\n[Order Number]^HospOrdNumber\n\n\nIf the Hospital Order Number is not provided, this field will be blank"]
[5,2,"ID","O","Order Status"]
[6,1,"ID","O","Response Flag"]
[7,200,"TQ","B","Quantity/Timing"]
[8,200,"EIP","O","Parent"]
[9,24,"DTM","O","Date/Time of Transaction"]
[10,3220,"XCN","O","Entered By"]
[11,250,"XCN","O","Verified By"]
[12,3220,"XCN","O","Ordering Provider","11356370^CUNNINGHAM^REBECCA^^^^^^NPI","This will be populated for residing clinician NPI number, and first and last name"]
[13,80,"PL","O","Enterer's Location"]
[14,250,"XTN","O","Call Back Phone Number"]
[15,24,"DTM","O","Order Effective Date/Time"]
[16,250,"CWE","O","Order Control Code Reason"]
[17,250,"CWE","O","Entering Organization"]
[18,250,"CWE","O","Entering Device"]
[19,250,"XCN","O","Action By"]
[20,250,"CWE","O","Advanced Beneficiary Notice Code"]
[21,250,"XON","O","Ordering Facility Name","Small City Hospital^R777"]
[22,250,"CWE","O","Ordering Facility Address","300 Pasteur Dr.^Small City^CA^94304-2210","Clinician Address if message is for Clinician\nHospital address if message is for Hospital"]
[23,250,"XTN","O","Ordering Facility Phone Number","^^^^^^^555^5557613","Clinician phone number if message is for Clinician\nHospital phone number if message is for Hospital"]
[24,250,"XAD","O","Ordering Provider Address"]
[25,250,"CWE","O","Order Status Modifier"]
[26,60,"CWE","C","Advanced Beneficiary Notice Override Reason"]
[27,24,"DTM","O","Filler's Expected Availability Date/Time"]
[28,250,"CWE","O","Confidentiality Code"]
[29,250,"CWE","O","Order Type"]
[30,250,"CNE","O","Enterer Authorization Mode"]

{"sheet":"OBR1-ReportType","index":4,"n_rows":52,"n_cols":8,"rows_kept":52,"cut":false,"hidden":false,"merged":[]}
["SEQ","LEN","DT","OPT","ELEMENT NAME","SAMPLE DATA","COMMENTS","SAMPLE SEGEMENT MESSAGE TEXT"]
[0,4,"SI","R","Element Code","OBR",null,{"$f":"joinString(F2:F52,\"|\")","v":"OBR|1|25989006^FormNumber||54089-8^NB Screen Panel Patient AHIC^LN|||201008072055|||||||20100806||11356370^CUNNINGHAM^REBECCA^^^^^^NPI||||||201212041437|||F|||||||||||||||||||||||||"}]
[1,4,"SI","R","Set ID - OBR",1]
[2,22,"El","R","Placer Order\nNumber",{"$f":"ORC!F4","v":"25989006^FormNumber"},"Order number for the order message assigned by the order placer\nSame value as ORC-2."]
[3,22,"El","X","Filler Order Number",null,"Not Supported"]
[4,250,"CE","R","Universal Service ID","54089-8^NB Screen Panel Patient AHIC^LN","Code for the observation request:"]
[5,2,"ID","X","Priority - OBR",null,"Not Supported"]
[6,26,"TS","X","Requested Date/Time",null,"Not Supported"]
[7,26,"TS","R","Observation Date/Time #","201008072055","Specimen collection date/time"]
[8,26,"TS","X","Observation End\nDate/Time #",null,"Not supported"]
[9,20,"CQ","X","Collection Volume",null,"Not supported"]
[10,250,"XCN","O","Collector Identifier",null,"Not supported"]
[11,1,"ID","X","Specimen Action Code",null,"Not supported"]
[12,250,"CE","X","Danger Code",null,"Not supported"]
[13,300,"ST","X","Relevant Clinical Info.",null,"Not supported"]
[14,26,"TS","R","Specimen Receiver Date/Time","20100806","Transfusion Date"]
[15,300,"SPS","X","Specimen Source",null,"Not supported"]
[16,250,"XCN","R","Ordering Provider",{"$f":"ORC!F14","v":"11356370^CUNNINGHAM^REBECCA^^^^^^NPI"},"Provider ordering the laboratory test. Same value as ORC-12."]
[17,250,"XTN","X","Order Callback Phone Number",null,"Not supported"]
[18,60,"ST","X","Place Field 1",null,"Not supported"]
[19,60,"ST","X","Place Field 2",null,"Not supported"]
[20,60,"ST","X","Filler Field 1",null,"Not supported"]
[21,60,"ST","X","Filler Field 2",null,"Not supported"]
[22,26,"CWE","R","Results Rpt/Status Chng - Date/Time","201212041437","Message generation date"]
[23,40,"MOC","X","Charge To Practice",null,"Not supported"]
[24,10,"ID","X","Diagnostic Serv Set ID",null,"Not supported"]
[25,1,"ID","R","Result Status","F","F - Final"]
[26,400,"PRL","X","Parent Result",null,"Not supported"]
[27,200,"TQ","X","Quantity/Timing",null,"Not supported"]
[28,250,"XCN","X","Result Copies To",null,"Not supported"]
[29,200,"EIP","RE","Parent ID"]
[30,20,"ID","X","Transportation Mode",null,"Not supported"]
[31,250,"CE","X","Reason for Study",null,"Not supported"]
[32,200,"NDL","X","Principal result Interpreter",null,"Not supported"]
[33,200,"NDL","X","Assistant Result Interpreter",null,"Not supported"]
[34,200,"NDL","X","Technician",null,"Not supported"]
[35,200,"NDL","X","Transcriptionist",null,"Not supported"]
[36,26,"TS","X","Scheduled Date/Time",null,"Not supported"]
[37,4,"NM","X","Number of Sample Containers",null,"Not supported"]
[38,250,"CE","X","Transport Logistics of Collected Sample",null,"Not supported"]
[39,250,"CE","X","Collector's Comment",null,"Not supported"]
[40,250,"CE","X","Transport Arrangement Responsibility",null,"Not supported"]
[41,30,"ID","X","Transport Arranged",null,"Not supported"]
[42,1,"ID","X","Escort Required",null,"Not supported"]
[43,250,"CE","X","Planned Patient Transport Comment",null,"Not supported"]
[44,250,"CE","X","Procedure Code",null,"Not supported"]
[45,250,"CE","X","Procedure Code Modifier",null,"Not supported"]
[46,250,"CE","X","Placer Supplemental Service Information",null,"Not supported"]
[47,250,"CE","X","Filler Supplemental Service Information",null,"Not supported"]
[48,250,"CE","X","Medically Necessary Duplicate Procedure Reason",null,"Not supported"]
[49,2,"IS","X","Result Handling ",null,"Not supported"]
[50,250,"CE","X","Parent Universal Service Identifier",null,"Not supported"]

{"sheet":"OBX-Observation Result","index":5,"n_rows":27,"n_cols":8,"rows_kept":27,"cut":false,"hidden":false,"merged":[]}
["SEQ","LEN","DT","OPT","ELEMENT NAME","SAMPLE DATA","COMMENTS","SAMPLE SEGEMENT MESSAGE TEXT"]
[0,4,"SI","R","Element Code","OBX","Observation Result","OBX|1|NM|^^^99717-2^Biotinidase^L|1|31.73|ERU|>10|N|||F|||20140110110526"]
[1,4,"SI","R","Set ID - OBR",18,"Sequence Number of OBX"]
[2,2,"ID","R","Value Type","NM","Data type of Observation value"]
[3,"Variable","Variable","R","Observation Identifier","47732-3^Proline [Moles/volume] in Dried blood spot^LN^^^","Unique identifier for the observation"]
[4,20,"ST","R","Observation Sub-ID",1,"Secondary Sequence Number if OBX-3 is repeated under an OBR"]
[5,"Variable","Variable","O","Observation Value",750,"Result of the observation"]
[6,250,"CE","O","Units","µmol/L","Units of the Observation Value, blank if units do not apply"]
[7,60,"ST","O","Reference Range","< 1500","Interpretation range that applies to the Observation Value, blank if range does not apply"]
[8,5,"IS","R","Abnormal Flags","N","Indicator of result normalcy"]
[9,5,"NM","X","Probability",null,"Not supported"]
[10,2,"ID","X","Nature of Abnormal Test",null,"Not supported"]
[11,1,"ID","R","Observation Result Status","F","Will always be F – Final"]
[12,26,"TS","X","Effective Date of Ref. Range Values",null,"Not supported"]
[13,20,"ST","X","User Defined Access Checks",null,"Not supported"]
[14,26,"TS","R","Message generation time - Date/Time","20130621040016","Time when the message was generated"]
[15,250,"CE","X","Producer’s Reference",null,"Not supported"]
[16,250,"XCN","X","Responsible Observer",null,"Not supported"]
[17,250,"CE","X","Observation Method",null,"Not supported"]
[18,22,"EI","X","Equipment Instance Identifier",null,"Not supported"]
[19,26,"TS","X","Date/Time of the Analysis",null,"Not supported"]
[20,"X",null,"X","Reserved for V2.6",null,"Not supported"]
[21,"X",null,"X","Reserved for V2.6",null,"Not supported"]
[22,"X",null,"X","Reserved for V2.6",null,"Not supported"]
[23,567,"XON","X","Performing Org. Name",null,"Not supported"]
[24,631,"XAD","X","Performing Org. Address",null,"Not supported"]
[25,3002,"XCN","X","Performing Org. Medical Director",null,"Not supported"]

{"sheet":"OBR2-ReportSummary","index":6,"n_rows":52,"n_cols":8,"rows_kept":52,"cut":false,"hidden":false,"merged":[]}
["SEQ","LEN","DT","OPT","ELEMENT NAME","SAMPLE DATA","COMMENTS","SAMPLE SEGEMENT MESSAGE TEXT"]
[0,4,"SI","R","Element Code","OBR",null,{"$f":"joinString(F2:F52,\"|\")","v":"OBR|2|25989006^FormNumber||57128-1^Newborn Screening Report summary panel^LN|||201008072055|||||||20100806||11356370^CUNNINGHAM^REBECCA^^^^^^NPI||||||201212041437|||F|||||||||||||||||||||||||"}]
[1,4,"SI","R","Set ID - OBR","2"]
[2,22,"El","R","Placer Order\nNumber",{"$f":"ORC!F4","v":"25989006^FormNumber"},"Order number for the order message assigned by the order placer\nSame value as ORC-2."]
[3,22,"El","X","Filler Order Number",null,"Not Supported"]
[4,250,"CE","R","Universal Service ID","57128-1^Newborn Screening Report summary panel^LN","Code for the observation request:"]
[5,2,"ID","X","Priority - OBR",null,"Not Supported"]
[6,26,"TS","X","Requested Date/Time",null,"Not Supported"]
[7,26,"TS","R","Observation Date/Time #","201008072055","Enter the specimen collection date/time"]
[8,26,"TS","X","Observation End\nDate/Time #",null,"Not supported"]
[9,20,"CQ","X","Collection Volume",null,"Not supported"]
[10,250,"XCN","O","Collector Identifier",null,"Not supported"]
[11,1,"ID","X","Specimen Action Code",null,"Not supported"]
[12,250,"CE","X","Danger Code",null,"Not supported"]
[13,300,"ST","X","Relevant Clinical Info.",null,"Not supported"]
[14,26,"TS","R","Specimen Receiver Date/Time","20100806","Transfusion Date"]
[15,300,"SPS","X","Specimen Source",null,"Not supported"]
[16,250,"XCN","R","Ordering Provider",{"$f":"ORC!F14","v":"11356370^CUNNINGHAM^REBECCA^^^^^^NPI"},"Provider ordering the laboratory test. Same value as ORC-12."]
[17,250,"XTN","X","Order Callback Phone Number",null,"Not supported"]
[18,60,"ST","X","Place Field 1",null,"Not supported"]
[19,60,"ST","X","Place Field 2",null,"Not supported"]
[20,60,"ST","X","Filler Field 1",null,"Not supported"]
[21,60,"ST","X","Filler Field 2",null,"Not supported"]
[22,26,"CWE","R","Results Rpt/Status Chng - Date/Time","201212041437","Message generation date"]
[23,40,"MOC","X","Charge To Practice",null,"Not supported"]
[24,10,"ID","X","Diagnostic Serv Set ID",null,"Not supported"]
[25,1,"ID","R","Result Status","F","F - Final"]
[26,400,"PRL","X","Parent Result",null,"Not supported"]
[27,200,"TQ","X","Quantity/Timing",null,"Not supported"]
[28,250,"XCN","X","Result Copies To",null,"Not supported"]
[29,200,"EIP","RE","Parent ID"]
[30,20,"ID","X","Transportation Mode",null,"Not supported"]
[31,250,"CE","X","Reason for Study",null,"Not supported"]
[32,200,"NDL","X","Principal result Interpreter",null,"Not supported"]
[33,200,"NDL","X","Assistant Result Interpreter",null,"Not supported"]
[34,200,"NDL","X","Technician",null,"Not supported"]
[35,200,"NDL","X","Transcriptionist",null,"Not supported"]
[36,26,"TS","X","Scheduled Date/Time",null,"Not supported"]
[37,4,"NM","X","Number of Sample Containers",null,"Not supported"]
[38,250,"CE","X","Transport Logistics of Collected Sample",null,"Not supported"]
[39,250,"CE","X","Collector's Comment",null,"Not supported"]
[40,250,"CE","X","Transport Arrangement Responsibility",null,"Not supported"]
[41,30,"ID","X","Transport Arranged",null,"Not supported"]
[42,1,"ID","X","Escort Required",null,"Not supported"]
[43,250,"CE","X","Planned Patient Transport Comment",null,"Not supported"]
[44,250,"CE","X","Procedure Code",null,"Not supported"]
[45,250,"CE","X","Procedure Code Modifier",null,"Not supported"]
[46,250,"CE","X","Placer Supplemental Service Information",null,"Not supported"]
[47,250,"CE","X","Filler Supplemental Service Information",null,"Not supported"]
[48,250,"CE","X","Medically Necessary Duplicate Procedure Reason",null,"Not supported"]
[49,2,"IS","X","Result Handling ",null,"Not supported"]
[50,250,"CE","X","Parent Universal Service Identifier",null,"Not supported"]

{"sheet":"OBX-ReportSummary","index":7,"n_rows":47,"n_cols":27,"rows_kept":47,"cut":false,"hidden":false,"merged":[]}
["#","Section","Section Desc","Usage","Sequence","Data Type","LOINC #","LOINC Name","Value Type","Local Code","Sub-ID","Value LOINC#","Value Name","Value Type","Units","Range","Abnormal Flags","Probability","Nature of Abnormal\nTest","Observation Result\nStatus","Effective Date of\nReference Range\nValues","User Defined Access\nChecks","Date/Time of the\nObservation","Producer's\nReference","Responsible\nObserver","Observation\nMethod","Message Text "]
[null,null,null,null,"OBX 1(Required)","OBX 2 (Required)","OBX 3.1 (Required)","OBX 3.2 (Required)","OBX 3.3 (Required)",null,"OBX 4","OBX 5.1 (Required)","OBX 5.2 (Required)","OBX 5.3 (Required)","OBX 6 (Required)","OBX 7 (Required)","OBX 8 (Required)","OBX 9","OBX 10","OBX 11 (Required)","OBX 12","OBX 13","OBX 14 (Required)"]
[1,2,"Report Summary","R",1,"CE","57721-3","Reason for lab test in Dried blood spot","LN",null,1,"LA12421-6","Initial Screen","LN",null,null,"N",null,null,"F",null,null,"201212041800",null,null,null,{"$f":"CONCATENATE(\"OBX|\",joinString(E3:F3,\"|\"),\"|\",joinString(G3:J3,\"^\"),CONCATENATE(\"|\",K3,\"|\"),joinString(L3:N3,\"^\"),\"|\",joinString(O3:Z3,\"|\"))","v":"OBX|1|CE|57721-3^Reason for lab test in Dried blood spot^LN^|1|LA12421-6^Initial Screen^LN|||N|||F|||201212041800|||"}]
[2,2,"Report Summary","R",2,"CE","57718-9","Sample quality of Dried blood spot","LN",null,1,"LA12432-3","Acceptable","LN",null,null,"N",null,null,"F",null,null,"201212041800",null,null,null,{"$f":"CONCATENATE(\"OBX|\",joinString(E4:F4,\"|\"),\"|\",joinString(G4:J4,\"^\"),CONCATENATE(\"|\",K4,\"|\"),joinString(L4:N4,\"^\"),\"|\",joinString(O4:Z4,\"|\"))","v":"OBX|2|CE|57718-9^Sample quality of Dried blood spot^LN^|1|LA12432-3^Acceptable^LN|||N|||F|||201212041800|||"}]
[3,2,"Report Summary","C",3,"CE","57130-7","New born screening report - overall interpretation","LN",null,1,"LA18943-3","Screen is indeterminate for at least one condition","LN",null,null,"N",null,null,"F",null,null,"201212041800",null,null,null,"OBX|3|CE|57130-7^New born screening report - overall interpretation^LN^|1|LA18943-3^Screen is indeterminate for at least one condition^LN|||N|||F|||201212041800|||"]
[4,2,"Report Summary","R",4,"CE","57131-5","Newborn conditions with positive markers [Identifier] in Dried blood spot","LN",null,1,"LA137-2","None","LN",null,null,"N",null,null,"F",null,null,"201212041800",null,null,null,"OBX|4|CE|57131-5^Newborn conditions with positive markers [Identifier] in Dried blood spot^LN^|1|LA137-2^None^LN|||N|||F|||201212041800|||"]
[5,2,"Report Summary","R",5,"CE","57720-5","Newborn conditions with equivocal markers [Identifier] in Dried blood spot","LN",null,1,"LA12543-7","GALT","LN",null,null,"N",null,null,"F",null,null,"201212041800",null,null,null,"OBX|5|CE|57720-5^Newborn conditions with equivocal markers [Identifier] in Dried blood spot^LN^|1|LA12543-7^GALT^LN|||N|||F|||201212041800|||"]
[6,2,"Report Summary","R",6,"CE","57720-5","Newborn conditions with equivocal markers [Identifier] in Dried blood spot","LN",null,2,"LA16207-5","Hemoglobinopathies","LN",null,null,"N",null,null,"F",null,null,"201212041800",null,null,null,"OBX|6|CE|57720-5^Newborn conditions with equivocal markers [Identifier] in Dried blood spot^LN^|2|LA16207-5^Hemoglobinopathies^LN|||N|||F|||201212041800|||"]
[7,2,"Report Summary","O",7,"FT","57724-7","Newborn screening short narrative summary","LN",null,1,"\"FOLLOW-UP: If this baby has symptoms or family history of galactosemia, parent testing is recommended. Call your Newborn Screening Coordinator for assisstance. \\.br\\Hb: Because of transfusion, further testing on whole blood is recommended to rule out hemoglobinopathies. Call your Newborn screening coordinator for assistance. \\.br\\\\.br\\Due to biological variability of newborns and differences in detection rates for the various disorders in the newborn period, the Newborn Screening Program will not identify all newborns with these conditions. While a positive screening result identifies newborns at an increased risk to justify a diagnostic work-up, a negative screening result does not rule out the possibility of a disorder. Health care providers should remain watchful for any sign or symptoms of these disorders in their patients. A newborn screening result should not be considered diagnostic, and cannot replace the individualized evaluation and diagnosis of an infant by a well-trained, knowledgeable health care provider. If you have questions regarding these results, please contact the Newborn Screening staff at Stanford University Medical Center, (650) 812-0353.\"",null,null,null,null,"N",null,null,"F",null,null,"201212041800",null,null,null,"OBX|7|FT|57724-7^Newborn screening short narrative summary^LN^|1|\"FOLLOW-UP: If this baby has symptoms or family history of galactosemia, parent testing is recommended. Call your Newborn Screening Coordinator for assisstance. \\.br\\Hb: Because of transfusion, further testing on whole blood is recommended to rule out hemoglobinopathies. Call your Newborn screening coordinator for assistance. \\.br\\\\.br\\Due to biological variability of newborns and differences in detection rates for the various disorders in the newborn period, the Newborn Screening Program will not identify all newborns with these conditions. While a positive screening result identifies newborns at an increased risk to justify a diagnostic work-up, a negative screening result does not rule out the possibility of a disorder. Health care providers should remain watchful for any sign or symptoms of these disorders in their patients. A newborn screening result should not be considered diagnostic, and cannot replace the individualized evaluation and diagnosis of an infant by a well-trained, knowledgeable health care provider. If you have questions regarding these results, please contact the Newborn Screening staff at Stanford University Medical Center, (650) 812-0353.\"^^|||N|||F|||201212041800|||"]
[8,2,"Report Summary","O",8,"FT","57129-9","Full newborn screening summary report for display or printing","LN",null,1,"N/A",null,null,null,null,"N",null,null,"F",null,null,"201212041800",null,null,null,"OBX|8|FT|57129-9^Full newborn screening summary report for display or printing^LN^|1|N/A^^|||N|||F|||201212041800|||"]
[9,2,"Report Summary","R",9,"CE","57719-7","Conditions tested for in this newborn screening study [Identifier] in Dried blood spot","LN",null,1,"LA12466-1","3-MCC","LN",null,null,"N",null,null,"F",null,null,"201212041800",null,null,null,"OBX|9|CE|57719-7^Conditions tested for in this newborn screening study [Identifier] in Dried blood spot^LN^|1|LA12466-1^3-MCC^LN|||N|||F|||201212041800|||"]
[10,2,"Report Summary","R",10,"CE","57719-7","Conditions tested for in this newborn screening study [Identifier] in Dried blood spot","LN",null,2,"LA12468-7","3MGA","LN",null,null,"N",null,null,"F",null,null,"201212041800",null,null,null,"OBX|10|CE|57719-7^Conditions tested for in this newborn screening study [Identifier] in Dried blood spot^LN^|2|LA12468-7^3MGA^LN|||N|||F|||201212041800|||"]
[10,2,"Report Summary","R",11,"CE","57719-7","Conditions tested for in this newborn screening study [Identifier] in Dried blood spot","LN",null,3,"LA12499-2","HMG","LN",null,null,"N",null,null,"F",null,null,"201212041800",null,null,null,"OBX|11|CE|57719-7^Conditions tested for in this newborn screening study [Identifier] in Dried blood spot^LN^|3|LA12499-2^HMG^LN|||N|||F|||201212041800|||"]
[10,2,"Report Summary","R",12,"CE","57719-7","Conditions tested for in this newborn screening study [Identifier] in Dried blood spot","LN",null,4,"LA12469-5","5-OXO","LN",null,null,"N",null,null,"F",null,null,"201212041800",null,null,null,"OBX|12|CE|57719-7^Conditions tested for in this newborn screening study [Identifier] in Dried blood spot^LN^|4|LA12469-5^5-OXO^LN|||N|||F|||201212041800|||"]
[10,2,"Report Summary","R",13,"CE","57719-7","Conditions tested for in this newborn screening study [Identifier] in Dried blood spot","LN",null,5,"LA12470-3","ARG","LN",null,null,"N",null,null,"F",null,null,"201212041800",null,null,null,"OBX|13|CE|57719-7^Conditions tested for in this newborn screening study [Identifier] in Dried blood spot^LN^|5|LA12470-3^ARG^LN|||N|||F|||201212041800|||"]
[10,2,"Report Summary","R",14,"CE","57719-7","Conditions tested for in this newborn screening study [Identifier] in Dried blood spot","LN",null,6,"LA12532-0","BIO","LN",null,null,"N",null,null,"F",null,null,"201212041800",null,null,null,"OBX|14|CE|57719-7^Conditions tested for in this newborn screening study [Identifier] in Dried blood spot^LN^|6|LA12532-0^BIO^LN|||N|||F|||201212041800|||"]
[10,2,"Report Summary","R",16,"CE","57719-7","Conditions tested for in this newborn screening study [Identifier] in Dried blood spot","LN",null,8,"LA12533-8","CAH","LN",null,null,"N",null,null,"F",null,null,"201212041800",null,null,null,"OBX|16|CE|57719-7^Conditions tested for in this newborn screening study [Identifier] in Dried blood spot^LN^|8|LA12533-8^CAH^LN|||N|||F|||201212041800|||"]
[10,2,"Report Summary","R",17,"CE","57719-7","Conditions tested for in this newborn screening study [Identifier] in Dried blood spot","LN",null,9,"LA12537-9","CF","LN",null,null,"N",null,null,"F",null,null,"201212041800",null,null,null,"OBX|17|CE|57719-7^Conditions tested for in this newborn screening study [Identifier] in Dried blood spot^LN^|9|LA12537-9^CF^LN|||N|||F|||201212041800|||"]
[10,2,"Report Summary","R",18,"CE","57719-7","Conditions tested for in this newborn screening study [Identifier] in Dried blood spot","LN",null,10,"LA12485-1","CPT-Ia","LN",null,null,"N",null,null,"F",null,null,"201212041800",null,null,null,"OBX|18|CE|57719-7^Conditions tested for in this newborn screening study [Identifier] in Dried blood spot^LN^|10|LA12485-1^CPT-Ia^LN|||N|||F|||201212041800|||"]
[10,2,"Report Summary","R",19,"CE","57719-7","Conditions tested for in this newborn screening study [Identifier] in Dried blood spot","LN",null,11,"LA12486-9","CPT-II","LN",null,null,"N",null,null,"F",null,null,"201212041800",null,null,null,"OBX|19|CE|57719-7^Conditions tested for in this newborn screening study [Identifier] in Dried blood spot^LN^|11|LA12486-9^CPT-II^LN|||N|||F|||201212041800|||"]
[10,2,"Report Summary","R",20,"CE","57719-7","Conditions tested for in this newborn screening study [Identifier] in Dried blood spot","LN",null,12,"LA12493-5","GA-1","LN",null,null,"N",null,null,"F",null,null,"201212041800",null,null,null,"OBX|20|CE|57719-7^Conditions tested for in this newborn screening study [Identifier] in Dried blood spot^LN^|12|LA12493-5^GA-1^LN|||N|||F|||201212041800|||"]
[10,2,"Report Summary","R",21,"CE","57719-7","Conditions tested for in this newborn screening study [Identifier] in Dried blood spot","LN",null,13,"LA12495-0","GA-2","LN",null,null,"N",null,null,"F",null,null,"201212041800",null,null,null,"OBX|21|CE|57719-7^Conditions tested for in this newborn screening study [Identifier] in Dried blood spot^LN^|13|LA12495-0^GA-2^LN|||N|||F|||201212041800|||"]
[10,2,"Report Summary","R",22,"CE","57719-7","Conditions tested for in this newborn screening study [Identifier] in Dried blood spot","LN",null,14,"LA16207-5","Hemoglobinopathies","LN",null,null,"N",null,null,"F",null,null,"201212041800",null,null,null,"OBX|22|CE|57719-7^Conditions tested for in this newborn screening study [Identifier] in Dried blood spot^LN^|14|LA16207-5^Hemoglobinopathies^LN|||N|||F|||201212041800|||"]
[10,2,"Report Summary","R",23,"CE","57719-7","Conditions tested for in this newborn screening study [Identifier] in Dried blood spot","LN",null,15,"LA12512-2","MET","LN",null,null,"N",null,null,"F",null,null,"201212041800",null,null,null,"OBX|23|CE|57719-7^Conditions tested for in this newborn screening study [Identifier] in Dried blood spot^LN^|15|LA12512-2^MET^LN|||N|||F|||201212041800|||"]
[10,2,"Report Summary","R",24,"CE","57719-7","Conditions tested for in this newborn screening study [Identifier] in Dried blood spot","LN",null,16,"LA12497-6","HHH","LN",null,null,"N",null,null,"F",null,null,"201212041800",null,null,null,"OBX|24|CE|57719-7^Conditions tested for in this newborn screening study [Identifier] in Dried blood spot^LN^|16|LA12497-6^HHH^LN|||N|||F|||201212041800|||"]
[10,2,"Report Summary","R",25,"CE","57719-7","Conditions tested for in this newborn screening study [Identifier] in Dried blood spot","LN",null,17,"LA12521-3","PRO I","LN",null,null,"N",null,null,"F",null,null,"201212041800",null,null,null,"OBX|25|CE|57719-7^Conditions tested for in this newborn screening study [Identifier] in Dried blood spot^LN^|17|LA12521-3^PRO I^LN|||N|||F|||201212041800|||"]
[10,2,"Report Summary","R",26,"CE","57719-7","Conditions tested for in this newborn screening study [Identifier] in Dried blood spot","LN",null,18,"LA12505-6","IVA","LN",null,null,"N",null,null,"F",null,null,"201212041800",null,null,null,"OBX|26|CE|57719-7^Conditions tested for in this newborn screening study [Identifier] in Dried blood spot^LN^|18|LA12505-6^IVA^LN|||N|||F|||201212041800|||"]
[10,2,"Report Summary","R",28,"CE","57719-7","Conditions tested for in this newborn screening study [Identifier] in Dried blood spot","LN",null,20,"LA12507-2","LCHAD","LN",null,null,"N",null,null,"F",null,null,"201212041800",null,null,null,"OBX|28|CE|57719-7^Conditions tested for in this newborn screening study [Identifier] in Dried blood spot^LN^|20|LA12507-2^LCHAD^LN|||N|||F|||201212041800|||"]
[10,2,"Report Summary","R",29,"CE","57719-7","Conditions tested for in this newborn screening study [Identifier] in Dried blood spot","LN",null,21,"LA12508-0","MAL","LN",null,null,"N",null,null,"F",null,null,"201212041800",null,null,null,"OBX|29|CE|57719-7^Conditions tested for in this newborn screening study [Identifier] in Dried blood spot^LN^|21|LA12508-0^MAL^LN|||N|||F|||201212041800|||"]
[10,2,"Report Summary","R",30,"CE","57719-7","Conditions tested for in this newborn screening study [Identifier] in Dried blood spot","LN",null,22,"LA12509-8","MCAD","LN",null,null,"N",null,null,"F",null,null,"201212041800",null,null,null,"OBX|30|CE|57719-7^Conditions tested for in this newborn screening study [Identifier] in Dried blood spot^LN^|22|LA12509-8^MCAD^LN|||N|||F|||201212041800|||"]
[10,2,"Report Summary","R",31,"CE","57719-7","Conditions tested for in this newborn screening study [Identifier] in Dried blood spot","LN",null,23,"LA12510-6","MCD","LN",null,null,"N",null,null,"F",null,null,"201212041800",null,null,null,"OBX|31|CE|57719-7^Conditions tested for in this newborn screening study [Identifier] in Dried blood spot^LN^|23|LA12510-6^MCD^LN|||N|||F|||201212041800|||"]
[10,2,"Report Summary","R",32,"CE","57719-7","Conditions tested for in this newborn screening study [Identifier] in Dried blood spot","LN",null,24,"LA12513-0","MSUD","LN",null,null,"N",null,null,"F",null,null,"201212041800",null,null,null,"OBX|32|CE|57719-7^Conditions tested for in this newborn screening study [Identifier] in Dried blood spot^LN^|24|LA12513-0^MSUD^LN|||N|||F|||201212041800|||"]
[10,2,"Report Summary","R",33,"CE","57719-7","Conditions tested for in this newborn screening study [Identifier] in Dried blood spot","LN",null,25,"LA12516-3","NKHG","LN",null,null,"N",null,null,"F",null,null,"201212041800",null,null,null,"OBX|33|CE|57719-7^Conditions tested for in this newborn screening study [Identifier] in Dried blood spot^LN^|25|LA12516-3^NKHG^LN|||N|||F|||201212041800|||"]
[10,2,"Report Summary","R",34,"CE","57719-7","Conditions tested for in this newborn screening study [Identifier] in Dried blood spot","LN",null,26,"LA12520-5","PKU","LN",null,null,"N",null,null,"F",null,null,"201212041800",null,null,null,"OBX|34|CE|57719-7^Conditions tested for in this newborn screening study [Identifier] in Dried blood spot^LN^|26|LA12520-5^PKU^LN|||N|||F|||201212041800|||"]
[10,2,"Report Summary","R",35,"CE","57719-7","Conditions tested for in this newborn screening study [Identifier] in Dried blood spot","LN",null,27,"LA12524-7","SCAD","LN",null,null,"N",null,null,"F",null,null,"201212041800",null,null,null,"OBX|35|CE|57719-7^Conditions tested for in this newborn screening study [Identifier] in Dried blood spot^LN^|27|LA12524-7^SCAD^LN|||N|||F|||201212041800|||"]
[10,2,"Report Summary","R",37,"CE","57719-7","Conditions tested for in this newborn screening study [Identifier] in Dried blood spot","LN",null,29,"LA12529-6","TYR-II","LN",null,null,"N",null,null,"F",null,null,"201212041800",null,null,null,"OBX|37|CE|57719-7^Conditions tested for in this newborn screening study [Identifier] in Dried blood spot^LN^|29|LA12529-6^TYR-II^LN|||N|||F|||201212041800|||"]
[10,2,"Report Summary","R",38,"CE","57719-7","Conditions tested for in this newborn screening study [Identifier] in Dried blood spot","LN",null,30,"LA12530-4","TYR-III","LN",null,null,"N",null,null,"F",null,null,"201212041800",null,null,null,"OBX|38|CE|57719-7^Conditions tested for in this newborn screening study [Identifier] in Dried blood spot^LN^|30|LA12530-4^TYR-III^LN|||N|||F|||201212041800|||"]
[10,2,"Report Summary","R",39,"CE","57719-7","Conditions tested for in this newborn screening study [Identifier] in Dried blood spot","LN",null,31,"LA12528-8","TYR-1","LN",null,null,"N",null,null,"F",null,null,"201212041800",null,null,null,"OBX|39|CE|57719-7^Conditions tested for in this newborn screening study [Identifier] in Dried blood spot^LN^|31|LA12528-8^TYR-1^LN|||N|||F|||201212041800|||"]
[10,2,"Report Summary","R",40,"CE","57719-7","Conditions tested for in this newborn screening study [Identifier] in Dried blood spot","LN",null,32,"LA12566-8","SCID","LN",null,null,"N",null,null,"F",null,null,"201212041800",null,null,null,{"$f":"CONCATENATE(\"OBX|\",joinString(E39:F39,\"|\"),\"|\",joinString(G39:J39,\"^\"),CONCATENATE(\"|\",K39,\"|\"),joinString(L39:N39,\"^\"),\"|\",joinString(O39:Z39,\"|\"))","v":"OBX|40|CE|57719-7^Conditions tested for in this newborn screening study [Identifier] in Dried blood spot^LN^|32|LA12566-8^SCID^LN|||N|||F|||201212041800|||"}]
[10,2,"Report Summary","R",41,"CE","57719-7","Conditions tested for in this newborn screening study [Identifier] in Dried blood spot","LN",null,33,"LA12543-7","GALT","LN",null,null,"N",null,null,"F",null,null,"20161207044953",null,null,null,"OBX|37|CE|57719-7^Conditions tested for in this newborn screening study [Identifier] in Dried blood spot^LN^^^|30|LA12543-7\\S\\GALT\\S\\LN|||N|||F|||20161207044953"]
[10,2,"Report Summary","R",42,"CE","57719-7","Conditions tested for in this newborn screening study [Identifier] in Dried blood spot","LN",null,34,"LA16207-5","Hypothyroidism","LN",null,null,"N",null,null,"F",null,null,"20161207044953",null,null,null,"OBX|41|CE|57719-7^Conditions tested for in this newborn screening study [Identifier] in Dried blood spot^LN^^^|34|99717-3\\S\\Hypothyroidism\\S\\L|||N|||F|||20161207044953"]
[10,2,"Report Summary","R",43,"CE","57719-7","Conditions tested for in this newborn screening study [Identifier] in Dried blood spot","LN",null,35,"LA25796-6","X-ALD","LN",null,null,"N",null,null,"F",null,null,"20161207044953",null,null,null,"OBX|8|CE|57719-7^Conditions tested for in this newborn screening study [Identifier] in Dried blood spot^LN^^^|1|LA25796-6\\S\\X-ALD\\S\\LN|||N|||F|||20161207044953"]
[10,2,"Report Summary","R",44,"CE","57719-7","Conditions tested for in this newborn screening study [Identifier] in Dried blood spot","LN",null,36,"LA12482-8","CIT-I","LN",null,null,"N",null,null,"F",null,null,"20161207044953",null,null,null,"OBX|13|CE|57719-7^Conditions tested for in this newborn screening study [Identifier] in Dried blood spot^LN^^^|6|LA12482-8\\S\\CIT-I\\S\\LN|||N|||F|||20161207044953"]
[10,2,"Report Summary","R",44,"CE","57719-7","Conditions tested for in this newborn screening study [Identifier] in Dried blood spot","LN",null,37,"LA12483-6","CIT-II","LN",null,null,"N",null,null,"F",null,null,"20161207044953",null,null,null,"OBX|14|CE|57719-7^Conditions tested for in this newborn screening study [Identifier] in Dried blood spot^LN^^^|7|LA12483-6\\S\\CIT-II\\S\\LN|||N|||F|||2016120704495"]
[]
[]
["*- Sequence in which the OBXs are sent can differ "]

{"sheet":"OBR3-ScreenCard","index":8,"n_rows":52,"n_cols":8,"rows_kept":52,"cut":false,"hidden":false,"merged":[]}
["SEQ","LEN","DT","OPT","ELEMENT NAME","SAMPLE DATA","COMMENTS","SAMPLE SEGEMENT MESSAGE TEXT"]
[0,4,"SI","R","Element Code","OBR",null,{"$f":"joinString(F2:F52,\"|\")","v":"OBR|3|25989006^FormNumber||57717-1^Newborn screen card data panel^LN|||201008072055|||||||20100806||11356370^CUNNINGHAM^REBECCA^^^^^^NPI||||||201212041437|||F|||||||||||||||||||||||||"}]
[1,4,"SI","R","Set ID - OBR","3"]
[2,22,"El","R","Placer Order\nNumber",{"$f":"ORC!F4","v":"25989006^FormNumber"},"Order number for the order message assigned by the order placer\nSame value as ORC-2."]
[3,22,"El","X","Filler Order Number",null,"Not Supported"]
[4,250,"CE","R","Universal Service ID","57717-1^Newborn screen card data panel^LN","Code for the observation request:"]
[5,2,"ID","X","Priority - OBR",null,"Not Supported"]
[6,26,"TS","X","Requested Date/Time",null,"Not Supported"]
[7,26,"TS","R","Observation Date/Time #","201008072055","Enter the specimen collection date/time"]
[8,26,"TS","X","Observation End\nDate/Time #",null,"Not supported"]
[9,20,"CQ","X","Collection Volume",null,"Not supported"]
[10,250,"XCN","O","Collector Identifier",null,"Not supported"]
[11,1,"ID","X","Specimen Action Code",null,"Not supported"]
[12,250,"CE","X","Danger Code",null,"Not supported"]
[13,300,"ST","X","Relevant Clinical Info.",null,"Not supported"]
[14,26,"TS","R","Specimen Receiver Date/Time","20100806","Transfusion Date"]
[15,300,"SPS","X","Specimen Source",null,"Not supported"]
[16,250,"XCN","R","Ordering Provider",{"$f":"ORC!F14","v":"11356370^CUNNINGHAM^REBECCA^^^^^^NPI"},"Provider ordering the laboratory test. Same value as ORC-12."]
[17,250,"XTN","X","Order Callback Phone Number",null,"Not supported"]
[18,60,"ST","X","Place Field 1",null,"Not supported"]
[19,60,"ST","X","Place Field 2",null,"Not supported"]
[20,60,"ST","X","Filler Field 1",null,"Not supported"]
[21,60,"ST","X","Filler Field 2",null,"Not supported"]
[22,26,"CWE","R","Results Rpt/Status Chng - Date/Time","201212041437","Message generation date"]
[23,40,"MOC","X","Charge To Practice",null,"Not supported"]
[24,10,"ID","X","Diagnostic Serv Set ID",null,"Not supported"]
[25,1,"ID","R","Result Status","F","F - Final"]
[26,400,"PRL","X","Parent Result",null,"Not supported"]
[27,200,"TQ","X","Quantity/Timing",null,"Not supported"]
[28,250,"XCN","X","Result Copies To",null,"Not supported"]
[29,200,"EIP","RE","Parent ID"]
[30,20,"ID","X","Transportation Mode",null,"Not supported"]
[31,250,"CE","X","Reason for Study",null,"Not supported"]
[32,200,"NDL","X","Principal result Interpreter",null,"Not supported"]
[33,200,"NDL","X","Assistant Result Interpreter",null,"Not supported"]
[34,200,"NDL","X","Technician",null,"Not supported"]
[35,200,"NDL","X","Transcriptionist",null,"Not supported"]
[36,26,"TS","X","Scheduled Date/Time",null,"Not supported"]
[37,4,"NM","X","Number of Sample Containers",null,"Not supported"]
[38,250,"CE","X","Transport Logistics of Collected Sample",null,"Not supported"]
[39,250,"CE","X","Collector's Comment",null,"Not supported"]
[40,250,"CE","X","Transport Arrangement Responsibility",null,"Not supported"]
[41,30,"ID","X","Transport Arranged",null,"Not supported"]
[42,1,"ID","X","Escort Required",null,"Not supported"]
[43,250,"CE","X","Planned Patient Transport Comment",null,"Not supported"]
[44,250,"CE","X","Procedure Code",null,"Not supported"]
[45,250,"CE","X","Procedure Code Modifier",null,"Not supported"]
[46,250,"CE","X","Placer Supplemental Service Information",null,"Not supported"]
[47,250,"CE","X","Filler Supplemental Service Information",null,"Not supported"]
[48,250,"CE","X","Medically Necessary Duplicate Procedure Reason",null,"Not supported"]
[49,2,"IS","X","Result Handling ",null,"Not supported"]
[50,250,"CE","X","Parent Universal Service Identifier",null,"Not supported"]

{"sheet":"OBX-ScreenCard","index":9,"n_rows":19,"n_cols":25,"rows_kept":19,"cut":false,"hidden":false,"merged":[]}
["#","Section","Section Desc","Usage","Sequence","Data Type","LOINC #","LOINC Name","Value Type","Local Code","Sub-ID","Value","Units","Range","Abnormal Flags","Probability","Nature of Abnormal\nTest","Observation Result\nStatus","Effective Date of\nReference Range\nValues","User Defined Access\nChecks","Date/Time of the\nObservation","Producer's\nReference","Responsible\nObserver","Observation\nMethod","Message Text"]
[null,null,null,null,"OBX 1(Required)","OBX 2 (Required)","OBX 3.1 (Required)","OBX 3.2 (Required)","OBX 3.3 (Required)",null,"OBX 4","OBX 5 (Required)","OBX 6 (Required)","OBX 7 (Required)","OBX 8 (Required)",null,null,"OBX 11 (Required)",null,null,"OBX 14 (Required)"]
[1,3,"Newborn Screen Card Data Panel","R",1,"ST","57716-3","State printed on filter paper card [Identifier] in NBS card","LN",null,1,"CA",null,null,"N",null,null,"F",null,null,"20191024062322",null,null,null,"OBX|1|ST|57716-3^State printed on filter paper card [Identifier] in NBS card^LN|1|CA|||N|||F|||20191024062322"]
[2,3,"Newborn Screen Card Data Panel","R",2,"NM","8339-4","Birthweight","LN",null,1,3056,"grams",null,"N",null,null,"F",null,null,"20191024062322",null,null,null,"OBX|2|NM|8339-4^Birthweight^LN|1|3035|grams||N|||F|||20191024062322"]
[4,3,"Newborn Screen Card Data Panel","R",3,"TM","57715-5","Time of birth","LN",null,1,1026,null,null,"N",null,null,"F",null,null,"20191024062322",null,null,null,"OBX|3|TM|57715-5^Time of birth^LN|1|1026|||N|||F|||20191024062322"]
[5,3,"Newborn Screen Card Data Panel","R",4,"CE","57722-1","Birth plurality of Pregnancy","LN",null,1,"LA12411-7^Singleton^LN",null,null,"N",null,null,"F",null,null,"20191024062322",null,null,null,"OBX|4|CE|57722-1^Birth plurality of Pregnancy^LN|1|LA12411-7\\S\\Singleton\\S\\LN|||N|||F|||20191024062322"]
[7,3,"Newborn Screen Card Data Panel","R",5,"NM","73806-2","Newborn age in hours","LN",null,1,24,"hours",null,"N",null,null,"F",null,null,"20191024062322",null,null,null,"OBX|5|NM|73806-2^Newborn age in hours^LN|1|24|hour(s)||N|||F|||20191024062322"]
[8,3,"Newborn Screen Card Data Panel","R",6,"CE","57713-0","Infant NICU factors that affect newborn screening interpretation","LN",null,1,"LA137-2\\S\\None\\S\\LN",null,null,"N",null,null,"F",null,null,"20191024062322",null,null,null,"OBX|6|CE|57713-0^Infant NICU factors that affect newborn screening interpretation^LN|1|LA137-2\\S\\None\\S\\LN|||N|||F|||20191024062322"]
[10,3,"Newborn Screen Card Data Panel","R",7,"CE","67704-7","Feeding types","LN",null,1,"LA16914-6\\S\\Breast milk\\S\\LN",null,null,"N",null,null,"F",null,null,"20191024062322",null,null,null,"OBX|7|CE|67704-7^Feeding types^LN|1|LA16914-6\\S\\Breast milk\\S\\LN|||N|||F|||20191024062322"]
[11,3,"Newborn Screen Card Data Panel","R",8,"CE","67704-7","Feeding types","LN",null,2,"Lactose formula\\S\\LN",null,null,"N",null,null,"F",null,null,"20191024062322",null,null,null,"OBX|8|CE|67704-7^Feeding types^LN|2|LA16915-3\\S\\Lactose formula\\S\\LN|||N|||F|||20191024062322"]
[12,3,"Newborn Screen Card Data Panel","R",9,"CE","67704-7","Feeding types","LN",null,3,"LA46-8\\S\\Other\\S\\LN",null,null,"N",null,null,"F",null,null,"20191024062322",null,null,null,"OBX|9|CE|67704-7^Feeding types^LN|3|LA46-8\\S\\Other\\S\\LN|||N|||F|||20191024062322"]
[13,3,"Newborn Screen Card Data Panel","R",10,"CE","67704-7","Feeding types","LN",null,4,"LA12418-2\\S\\TPN\\S\\LN",null,null,"N",null,null,"F",null,null,"20191024062322",null,null,null,"OBX|10|CE|67704-7^Feeding types^LN|4|LA12418-2\\S\\TPN\\S\\LN|||N|||F|||20191024062322"]
[10,3,"Newborn Screen Card Data Panel","R",11,"TX","^^^99717-5","Accession Number","L ",null,1,"274-75-886/21-2019-21",null,null,"N",null,null,"F",null,null,"20191024062322",null,null,null,"OBX|11|TX|^^^99717-5^Accession Number^L|1|274-75-886/21-2019-21|||N|||F|||20191024062322"]
[11,3,"Newborn Screen Card Data Panel","R",12,"TX","62324-9","Post-discharge provider name","LN",null,1,"Rebecca Colin",null,null,"N",null,null,"F",null,null,"20191024062322",null,null,null,"OBX|12|TX|62324-9^Post-discharge provider name^LN|1|Rebecca Colin|||N|||F|||20191024062322"]
[]
[]
[]
[]
["*- Sequence in which the OBXs are sent can differ "]

{"sheet":"OBR4-NewbornScreeningPanel","index":10,"n_rows":52,"n_cols":8,"rows_kept":52,"cut":false,"hidden":false,"merged":[]}
["SEQ","LEN","DT","OPT","ELEMENT NAME","SAMPLE DATA","COMMENTS","SAMPLE SEGEMENT MESSAGE TEXT"]
[0,4,"SI","R","Element Code","OBR",null,{"$f":"joinString(F2:F52,\"|\")","v":"OBR|4|25989006^FormNumber||57794-0^Newborn screening test results panel in Dried blood spot^LN|||201008072055|||||||20100806||11356370^CUNNINGHAM^REBECCA^^^^^^NPI||||||201212041437|||F|||||||||||||||||||||||||"}]
[1,4,"SI","R","Set ID - OBR","4"]
[2,22,"El","R","Placer Order\nNumber",{"$f":"ORC!F4","v":"25989006^FormNumber"},"Order number for the order message assigned by the order placer\nSame value as ORC-2."]
[3,22,"El","X","Filler Order Number",null,"Not Supported"]
[4,250,"CE","R","Universal Service ID","57794-0^Newborn screening test results panel in Dried blood spot^LN","Code for the observation request:"]
[5,2,"ID","X","Priority - OBR",null,"Not Supported"]
[6,26,"TS","X","Requested Date/Time",null,"Not Supported"]
[7,26,"TS","R","Observation Date/Time #","201008072055","Enter the specimen collection date/time"]
[8,26,"TS","X","Observation End\nDate/Time #",null,"Not supported"]
[9,20,"CQ","X","Collection Volume",null,"Not supported"]
[10,250,"XCN","O","Collector Identifier",null,"Not supported"]
[11,1,"ID","X","Specimen Action Code",null,"Not supported"]
[12,250,"CE","X","Danger Code",null,"Not supported"]
[13,300,"ST","X","Relevant Clinical Info.",null,"Not supported"]
[14,26,"TS","R","Specimen Receiver Date/Time","20100806","Transfusion Date"]
[15,300,"SPS","X","Specimen Source",null,"Not supported"]
[16,250,"XCN","R","Ordering Provider",{"$f":"ORC!F14","v":"11356370^CUNNINGHAM^REBECCA^^^^^^NPI"},"Provider ordering the laboratory test. Same value as ORC-12."]
[17,250,"XTN","X","Order Callback Phone Number",null,"Not supported"]
[18,60,"ST","X","Place Field 1",null,"Not supported"]
[19,60,"ST","X","Place Field 2",null,"Not supported"]
[20,60,"ST","X","Filler Field 1",null,"Not supported"]
[21,60,"ST","X","Filler Field 2",null,"Not supported"]
[22,26,"TS","R","Results Rpt/Status Chng - Date/Time","201212041437","Message generation date"]
[23,40,"MOC","X","Charge To Practice",null,"Not supported"]
[24,10,"ID","X","Diagnostic Serv Set ID",null,"Not supported"]
[25,1,"ID","R","Result Status","F","F - Final"]
[26,400,"PRL","X","Parent Result",null,"Not supported"]
[27,200,"TQ","X","Quantity/Timing",null,"Not supported"]
[28,250,"XCN","X","Result Copies To",null,"Not supported"]
[29,200,"EIP","RE","Parent ID"]
[30,20,"ID","X","Transportation Mode",null,"Not supported"]
[31,250,"CE","X","Reason for Study",null,"Not supported"]
[32,200,"NDL","X","Principal result Interpreter",null,"Not supported"]
[33,200,"NDL","X","Assistant Result Interpreter",null,"Not supported"]
[34,200,"NDL","X","Technician",null,"Not supported"]
[35,200,"NDL","X","Transcriptionist",null,"Not supported"]
[36,26,"TS","X","Scheduled Date/Time",null,"Not supported"]
[37,4,"NM","X","Number of Sample Containers",null,"Not supported"]
[38,250,"CE","X","Transport Logistics of Collected Sample",null,"Not supported"]
[39,250,"CE","X","Collector's Comment",null,"Not supported"]
[40,250,"CE","X","Transport Arrangement Responsibility",null,"Not supported"]
[41,30,"ID","X","Transport Arranged",null,"Not supported"]
[42,1,"ID","X","Escort Required",null,"Not supported"]
[43,250,"CE","X","Planned Patient Transport Comment",null,"Not supported"]
[44,250,"CE","X","Procedure Code",null,"Not supported"]
[45,250,"CE","X","Procedure Code Modifier",null,"Not supported"]
[46,250,"CE","X","Placer Supplemental Service Information",null,"Not supported"]
[47,250,"CE","X","Filler Supplemental Service Information",null,"Not supported"]
[48,250,"CE","X","Medically Necessary Duplicate Procedure Reason",null,"Not supported"]
[49,2,"IS","X","Result Handling ",null,"Not supported"]
[50,250,"CE","X","Parent Universal Service Identifier",null,"Not supported"]

{"sheet":"OBR5-AminoAcid","index":11,"n_rows":52,"n_cols":8,"rows_kept":52,"cut":false,"hidden":false,"merged":[]}
["SEQ","LEN","DT","OPT","ELEMENT NAME","SAMPLE DATA","COMMENTS","SAMPLE SEGEMENT MESSAGE TEXT"]
[0,4,"SI","R","Element Code","OBR",null,{"$f":"joinString(F2:F52,\"|\")","v":"OBR|5|25989006^FormNumber||53261-4^Amino acid newborn screen panel^LN|||201008072055|||||||20100806||11356370^CUNNINGHAM^REBECCA^^^^^^NPI||||||201212041437|||F|||||||||||||||||||||||||"}]
[1,4,"SI","R","Set ID - OBR","5"]
[2,22,"El","R","Placer Order\nNumber",{"$f":"ORC!F4","v":"25989006^FormNumber"},"Order number for the order message assigned by the order placer\nSame value as ORC-2."]
[3,22,"El","X","Filler Order Number",null,"Not Supported"]
[4,250,"CE","R","Universal Service ID","53261-4^Amino acid newborn screen panel^LN","Code for the observation request:"]
[5,2,"ID","X","Priority - OBR",null,"Not Supported"]
[6,26,"TS","X","Requested Date/Time",null,"Not Supported"]
[7,26,"TS","R","Observation Date/Time #","201008072055","Enter the specimen collection date/time"]
[8,26,"TS","X","Observation End\nDate/Time #",null,"Not supported"]
[9,20,"CQ","X","Collection Volume",null,"Not supported"]
[10,250,"XCN","O","Collector Identifier",null,"Not supported"]
[11,1,"ID","X","Specimen Action Code",null,"Not supported"]
[12,250,"CE","X","Danger Code",null,"Not supported"]
[13,300,"ST","X","Relevant Clinical Info.",null,"Not supported"]
[14,26,"TS","R","Specimen Receiver Date/Time","20100806","Transfusion Date"]
[15,300,"SPS","X","Specimen Source",null,"Not supported"]
[16,250,"XCN","R","Ordering Provider",{"$f":"ORC!F14","v":"11356370^CUNNINGHAM^REBECCA^^^^^^NPI"},"Provider ordering the laboratory test. Same value as ORC-12."]
[17,250,"XTN","X","Order Callback Phone Number",null,"Not supported"]
[18,60,"ST","X","Place Field 1",null,"Not supported"]
[19,60,"ST","X","Place Field 2",null,"Not supported"]
[20,60,"ST","X","Filler Field 1",null,"Not supported"]
[21,60,"ST","X","Filler Field 2",null,"Not supported"]
[22,26,"TS","R","Results Rpt/Status Chng - Date/Time","201212041437","Message generation date"]
[23,40,"MOC","X","Charge To Practice",null,"Not supported"]
[24,10,"ID","X","Diagnostic Serv Set ID",null,"Not supported"]
[25,1,"ID","R","Result Status","F","F - Final"]
[26,400,"PRL","X","Parent Result",null,"Not supported"]
[27,200,"TQ","X","Quantity/Timing",null,"Not supported"]
[28,250,"XCN","X","Result Copies To",null,"Not supported"]
[29,200,"EIP","RE","Parent ID"]
[30,20,"ID","X","Transportation Mode",null,"Not supported"]
[31,250,"CE","X","Reason for Study",null,"Not supported"]
[32,200,"NDL","X","Principal result Interpreter",null,"Not supported"]
[33,200,"NDL","X","Assistant Result Interpreter",null,"Not supported"]
[34,200,"NDL","X","Technician",null,"Not supported"]
[35,200,"NDL","X","Transcriptionist",null,"Not supported"]
[36,26,"TS","X","Scheduled Date/Time",null,"Not supported"]
[37,4,"NM","X","Number of Sample Containers",null,"Not supported"]
[38,250,"CE","X","Transport Logistics of Collected Sample",null,"Not supported"]
[39,250,"CE","X","Collector's Comment",null,"Not supported"]
[40,250,"CE","X","Transport Arrangement Responsibility",null,"Not supported"]
[41,30,"ID","X","Transport Arranged",null,"Not supported"]
[42,1,"ID","X","Escort Required",null,"Not supported"]
[43,250,"CE","X","Planned Patient Transport Comment",null,"Not supported"]
[44,250,"CE","X","Procedure Code",null,"Not supported"]
[45,250,"CE","X","Procedure Code Modifier",null,"Not supported"]
[46,250,"CE","X","Placer Supplemental Service Information",null,"Not supported"]
[47,250,"CE","X","Filler Supplemental Service Information",null,"Not supported"]
[48,250,"CE","X","Medically Necessary Duplicate Procedure Reason",null,"Not supported"]
[49,2,"IS","X","Result Handling ",null,"Not supported"]
[50,250,"CE","X","Parent Universal Service Identifier",null,"Not supported"]

{"sheet":"OBX-AminoAcid","index":12,"n_rows":26,"n_cols":25,"rows_kept":26,"cut":false,"hidden":false,"merged":[]}
["#","Section","Section Desc","Usage","Sequence","Data Type","LOINC #","LOINC Name","Value Type","Local Code","Sub-ID","Value","Units","Range","Abnormal Flags","Probability","Nature of Abnormal\nTest","Observation Result\nStatus","Effective Date of\nReference Range\nValues","User Defined Access\nChecks","Date/Time of the\nObservation","Producer's\nReference","Responsible\nObserver","Observation\nMethod","Message Text"]
[null,null,null,null,"OBX 1(Required)","OBX 2 (Required)","OBX 3.1 (Required)","OBX 3.2 (Required)","OBX 3.3 (Required)",null,"OBX 4","OBX 5 (Required)","OBX 6 (Required)","OBX 7 (Required)","OBX 8 (Required)",null,null,"OBX 11 (Required)",null,null,"OBX 14 (Required)"]
[1,5,"Amino Acid Panel","C",1,"TX","57710-6","Amino acidemias newborn screening comment/discussion","LN",null,1,"No Follow-up required. This pattern of flags is not known to be associated with any disorder detectable by MS/MS",null,null,"N",null,null,"F",null,null,"201212041800",null,null,null,{"$f":"CONCATENATE(\"OBX|\",joinString(E3:F3,\"|\"),\"|\",joinString(G3:J3,\"^\"),\"|\",joinString(K3:U3,\"|\"))","v":"OBX|1|TX|57710-6^Amino acidemias newborn screening comment/discussion^LN^|1|No Follow-up required. This pattern of flags is not known to be associated with any disorder detectable by MS/MS|||N|||F|||201212041800"}]
[2,5,"Amino Acid Panel","C",2,"NM","47633-3","Glycine [Moles/volume] in Dried blood spot","LN",null,1,406,"μmol/L",null,"N",null,null,"F",null,null,"201212041800",null,null,null,"OBX|2|NM|47633-3^Glycine [Moles/volume] in Dried blood spot^LN^|1|406|μmol/L||N|||F|||201212041800"]
[3,5,"Amino Acid Panel","C",3,"NM","53150-9","Alanine+Beta Alanine+Sarcosine [Moles/volume] in Dried blood spot","LN",null,1,179,"μmol/L","<1000","N",null,null,"F",null,null,"201212041800",null,null,null,"OBX|3|NM|53150-9^Alanine+Beta Alanine+Sarcosine [Moles/volume] in Dried blood spot^LN^|1|179|μmol/L|<1000|N|||F|||201212041800"]
[4,5,"Amino Acid Panel","C",4,"NM","47799-2","Valine [Moles/volume] in Dried blood spot","LN",null,1,134.4,"μmol/L",null,"N",null,null,"F",null,null,"201212041800",null,null,null,"OBX|4|NM|47799-2^Valine [Moles/volume] in Dried blood spot^LN^|1|134.4|μmol/L||N|||F|||201212041800"]
[5,5,"Amino Acid Panel","C",5,"NM","53151-7","Valine/Phenylalanine [Molar ratio] in Dried blood spot","LN",null,1,1.72529,"{Ratio}","<3.5","N",null,null,"F",null,null,"201212041800",null,null,null,"OBX|5|NM|53151-7^Valine/Phenylalanine [Molar ratio] in Dried blood spot^LN^|1|1.72529|{Ratio}|<3.5|N|||F|||201212041800"]
[6,5,"Amino Acid Panel","C",6,"NM","29573-3","Phenylalanine [Moles/volume] in Dried blood spot","LN",null,1,77.900000000000006,"μmol/L","<155","N",null,null,"F",null,null,"201212041800",null,null,null,"OBX|6|NM|29573-3^Phenylalanine [Moles/volume] in Dried blood spot^LN^|1|77.9|μmol/L|<155|N|||F|||201212041800"]
[7,5,"Amino Acid Panel","C",7,"NM","35572-7","Phenylalanine/Tyrosine [Molar ratio] in Dried blood spot","LN",null,1,1.67,"{Ratio}","<1.5","H",null,null,"F",null,null,"201212041800",null,null,null,"OBX|7|NM|35572-7^Phenylalanine/Tyrosine [Molar ratio] in Dried blood spot^LN^|1|1.67|{Ratio}|<1.5|H|||F|||201212041800"]
[8,5,"Amino Acid Panel","C",8,"NM","35571-9","Tyrosine [Moles/volume] in Dried blood spot","LN",null,1,46.5,"μmol/L","<850","N",null,null,"F",null,null,"201212041800",null,null,null,"OBX|8|NM|35571-9^Tyrosine [Moles/volume] in Dried blood spot^LN^|1|46.5|μmol/L|<850|N|||F|||201212041800"]
[9,5,"Amino Acid Panel","C",9,"NM","53231-7","Succinylacetone [Moles/volume] in Dried blood spot","LN",null,1,0.91,"μmol/L","<3","N",null,null,"F",null,null,"201212041800",null,null,null,"OBX|9|NM|53231-7^Succinylacetone [Moles/volume] in Dried blood spot^LN^|1|0.91|μmol/L|<3|N|||F|||201212041800"]
[10,5,"Amino Acid Panel","C",10,"NM","47700-0","Methionine [Moles/volume] in Dried blood spot","LN",null,1,26,"μmol/L","8-100","N",null,null,"F",null,null,"201212041800",null,null,null,"OBX|10|NM|47700-0^Methionine [Moles/volume] in Dried blood spot^LN^|1|26|μmol/L|8-100|N|||F|||201212041800"]
[11,5,"Amino Acid Panel","C",11,"NM","42892-0","Citrulline [Moles/volume] in Dried blood spot","LN",null,1,12,"μmol/L","5-85","N",null,null,"F",null,null,"201212041800",null,null,null,"OBX|11|NM|42892-0^Citrulline [Moles/volume] in Dried blood spot^LN^|1|12|μmol/L|5-85|N|||F|||201212041800"]
[12,5,"Amino Acid Panel","C",12,"NM","54092-2","Citrulline/Arginine [Molar ratio] in Dried blood spot","LN",null,1,1.42,"{Ratio}",null,"N",null,null,"F",null,null,"201212041800",null,null,null,"OBX|12|NM|54092-2^Citrulline/Arginine [Molar ratio] in Dried blood spot^LN^|1|1.42|{Ratio}||N|||F|||201212041800"]
[13,5,"Amino Acid Panel","C",13,"NM","53155-8","Asparagine+Ornithine [Moles/volume] in Dried blood spot","LN",null,1,114,"μmol/L","<800","N",null,null,"F",null,null,"201212041800",null,null,null,"OBX|13|NM|53155-8^Asparagine+Ornithine [Moles/volume] in Dried blood spot^LN^|1|114|μmol/L|<800|N|||F|||201212041800"]
[14,5,"Amino Acid Panel","C",14,"NM","47562-4","Arginine [Moles/volume] in Dried blood spot","LN",null,1,9,"μmol/L","<250","N",null,null,"F",null,null,"201212041800",null,null,null,"OBX|14|NM|47562-4^Arginine [Moles/volume] in Dried blood spot^LN^|1|9|μmol/L|<250|N|||F|||201212041800"]
[15,5,"Amino Acid Panel","C",15,"NM","47732-3","Proline [Moles/volume] in Dried blood spot","LN",null,1,169,"μmol/L","<1500","N",null,null,"F",null,null,"201212041800",null,null,null,"OBX|15|NM|47732-3^Proline [Moles/volume] in Dried blood spot^LN^|1|169|μmol/L|<1500|N|||F|||201212041800"]
[16,5,"Amino Acid Panel","C",16,"NM","53232-5","5-Oxoproline+Pipecolate [Moles/volume] in Dried blood spot","LN",null,1,31,"μmol/L",null,"N",null,null,"F",null,null,"201212041800",null,null,null,"OBX|16|NM|53232-5^5-Oxoproline+Pipecolate [Moles/volume] in Dried blood spot^LN^|1|31|μmol/L||N|||F|||201212041800"]
[17,5,"Amino Acid Panel","C",17,"NM","75214-7","Arginine/Ornithine [Molar ratio] in Dried blood spot","LN",null,1,0.7,"{Ratio}","< 1.4","N",null,null,"F",null,null,"201212041800",null,null,null,"OBX|17|NM|75214-7^Arginine/Ornithine [Molar ratio] in Dried blood spot^LN^|1|0.7|{Ratio}|< 1.4|N|||F|||201212041800"]
[18,5,"Amino Acid Panel","C",18,"NM","75215-4","Ornithine/Citrulline [Molar ratio] in Dried blood spot","LN",null,1,0.5,"{Ratio}",null,"N",null,null,"F",null,null,"201212041800",null,null,null,{"$f":"CONCATENATE(\"OBX|\",joinString(E20:F20,\"|\"),\"|\",joinString(G20:J20,\"^\"),\"|\",joinString(K20:X20,\"|\"))","v":"OBX|18|NM|75215-4^Ornithine/Citrulline [Molar ratio] in Dried blood spot^LN^|1|0.5|{Ratio}||N|||F|||201212041800|||"}]
[19,5,"Amino Acid Panel","C",19,"NM","53154-1","Alloisoleucine+Isoleucine+Leucine+Hydroxyproline/Alanine [Molar ratio] in Dried blood spot","LN",null,1,0.9,"{Ratio}","<1.1","N",null,null,"F",null,null,"201212041800",null,null,null,{"$f":"CONCATENATE(\"OBX|\",joinString(E21:F21,\"|\"),\"|\",joinString(G21:J21,\"^\"),\"|\",joinString(K21:X21,\"|\"))","v":"OBX|19|NM|53154-1^Alloisoleucine+Isoleucine+Leucine+Hydroxyproline/Alanine [Molar ratio] in Dried blood spot^LN^|1|0.9|{Ratio}|<1.1|N|||F|||201212041800|||"}]
[20,5,"Amino Acid Panel","C",20,"NM","53152-5","Alloisoleucine+Isoleucine+Leucine+Hydroxyproline","LN",null,1,200,"µmol/L","<250","N",null,null,"F",null,null,"201212041800",null,null,null,{"$f":"CONCATENATE(\"OBX|\",joinString(E22:F22,\"|\"),\"|\",joinString(G22:J22,\"^\"),\"|\",joinString(K22:X22,\"|\"))","v":"OBX|20|NM|53152-5^Alloisoleucine+Isoleucine+Leucine+Hydroxyproline^LN^|1|200|µmol/L|<250|N|||F|||201212041800|||"}]
[]
[]
[]
["*- Sequence in which the OBXs are sent can differ "]

{"sheet":"OBR6-Acylcarnitine","index":13,"n_rows":52,"n_cols":8,"rows_kept":52,"cut":false,"hidden":false,"merged":[]}
["SEQ","LEN","DT","OPT","ELEMENT NAME","SAMPLE DATA","COMMENTS","SAMPLE SEGEMENT MESSAGE TEXT"]
[0,4,"SI","R","Element Code","OBR",null,{"$f":"joinString(F2:F52,\"|\")","v":"OBR|6|25989006^FormNumber||58092-8^Acylcarnitine newborn screen panel^LN|||201008072055|||||||20100806||11356370^CUNNINGHAM^REBECCA^^^^^^NPI||||||201212041437|||F|||||||||||||||||||||||||"}]
[1,4,"SI","R","Set ID - OBR","6"]
[2,22,"El","R","Placer Order\nNumber",{"$f":"ORC!F4","v":"25989006^FormNumber"},"Order number for the order message assigned by the order placer\nSame value as ORC-2."]
[3,22,"El","X","Filler Order Number",null,"Not Supported"]
[4,250,"CE","R","Universal Service ID","58092-8^Acylcarnitine newborn screen panel^LN","Code for the observation request:"]
[5,2,"ID","X","Priority - OBR",null,"Not Supported"]
[6,26,"TS","X","Requested Date/Time",null,"Not Supported"]
[7,26,"TS","R","Observation Date/Time #","201008072055","Enter the specimen collection date/time"]
[8,26,"TS","X","Observation End\nDate/Time #",null,"Not supported"]
[9,20,"CQ","X","Collection Volume",null,"Not supported"]
[10,250,"XCN","O","Collector Identifier",null,"Not supported"]
[11,1,"ID","X","Specimen Action Code",null,"Not supported"]
[12,250,"CE","X","Danger Code",null,"Not supported"]
[13,300,"ST","X","Relevant Clinical Info.",null,"Not supported"]
[14,26,"TS","R","Specimen Receiver Date/Time","20100806","Transfusion Date"]
[15,300,"SPS","X","Specimen Source",null,"Not supported"]
[16,250,"XCN","R","Ordering Provider",{"$f":"ORC!F14","v":"11356370^CUNNINGHAM^REBECCA^^^^^^NPI"},"Provider ordering the laboratory test. Same value as ORC-12."]
[17,250,"XTN","X","Order Callback Phone Number",null,"Not supported"]
[18,60,"ST","X","Place Field 1",null,"Not supported"]
[19,60,"ST","X","Place Field 2",null,"Not supported"]
[20,60,"ST","X","Filler Field 1",null,"Not supported"]
[21,60,"ST","X","Filler Field 2",null,"Not supported"]
[22,26,"TS","R","Results Rpt/Status Chng - Date/Time","201212041437","Message generation date"]
[23,40,"MOC","X","Charge To Practice",null,"Not supported"]
[24,10,"ID","X","Diagnostic Serv Set ID",null,"Not supported"]
[25,1,"ID","R","Result Status","F","F - Final"]
[26,400,"PRL","X","Parent Result",null,"Not supported"]
[27,200,"TQ","X","Quantity/Timing",null,"Not supported"]
[28,250,"XCN","X","Result Copies To",null,"Not supported"]
[29,200,"EIP","RE","Parent ID"]
[30,20,"ID","X","Transportation Mode",null,"Not supported"]
[31,250,"CE","X","Reason for Study",null,"Not supported"]
[32,200,"NDL","X","Principal result Interpreter",null,"Not supported"]
[33,200,"NDL","X","Assistant Result Interpreter",null,"Not supported"]
[34,200,"NDL","X","Technician",null,"Not supported"]
[35,200,"NDL","X","Transcriptionist",null,"Not supported"]
[36,26,"TS","X","Scheduled Date/Time",null,"Not supported"]
[37,4,"NM","X","Number of Sample Containers",null,"Not supported"]
[38,250,"CE","X","Transport Logistics of Collected Sample",null,"Not supported"]
[39,250,"CE","X","Collector's Comment",null,"Not supported"]
[40,250,"CE","X","Transport Arrangement Responsibility",null,"Not supported"]
[41,30,"ID","X","Transport Arranged",null,"Not supported"]
[42,1,"ID","X","Escort Required",null,"Not supported"]
[43,250,"CE","X","Planned Patient Transport Comment",null,"Not supported"]
[44,250,"CE","X","Procedure Code",null,"Not supported"]
[45,250,"CE","X","Procedure Code Modifier",null,"Not supported"]
[46,250,"CE","X","Placer Supplemental Service Information",null,"Not supported"]
[47,250,"CE","X","Filler Supplemental Service Information",null,"Not supported"]
[48,250,"CE","X","Medically Necessary Duplicate Procedure Reason",null,"Not supported"]
[49,2,"IS","X","Result Handling ",null,"Not supported"]
[50,250,"CE","X","Parent Universal Service Identifier",null,"Not supported"]

{"sheet":"OBX-Acylcarnitine","index":14,"n_rows":8,"n_cols":25,"rows_kept":8,"cut":false,"hidden":false,"merged":[]}
["#","Section","Section Desc","Usage","Sequence","Data Type","LOINC #","LOINC Name","Value Type","Local Code","Sub-ID","Value","Units","Range","Abnormal Flags","Probability","Nature of Abnormal\nTest","Observation Result\nStatus","Effective Date of\nReference Range\nValues","User Defined Access\nChecks","Date/Time of the\nObservation","Producer's\nReference","Responsible\nObserver","Observation\nMethod","Message Text"]
[null,null,null,null,"OBX 1(Required)","OBX 2 (Required)","OBX 3.1 (Required)","OBX 3.2 (Required)","OBX 3.3 (Required)",null,"OBX 4","OBX 5 (Required)","OBX 6 (Required)","OBX 7 (Required)","OBX 8 (Required)",null,null,"OBX 11 (Required)",null,null,"OBX 14 (Required)"]
[1,6,"Acylcarnitine","C",1,"CE","58088-6","Acylcarnitine newborn screen interpretation","LN",null,1,"LA6626-1^Normal^L",null,null,"N",null,null,"F",null,null,"201212041800",null,null,null,{"$f":"CONCATENATE(\"OBX|\",joinString(E3:F3,\"|\"),\"|\",joinString(G3:J3,\"^\"),\"|\",joinString(K3:U3,\"|\"))","v":"OBX|1|CE|58088-6^Acylcarnitine newborn screen interpretation^LN^|1|LA6626-1^Normal^L|||N|||F|||201212041800"}]
[2,6,"Acylcarnitine","C",2,"TX","58093-6","Acylcarnitine newborn screening comment/discussion","LN",null,1,"Transfusion may, in rare occasions, give misleading results that fail to detect some of these disorders. If a metabolic disorder is suspected, consult a metabolic specialist",null,null,"N",null,null,"F",null,null,"201212041800",null,null,null,{"$f":"CONCATENATE(\"OBX|\",joinString(E4:F4,\"|\"),\"|\",joinString(G4:J4,\"^\"),\"|\",joinString(K4:U4,\"|\"))","v":"OBX|2|TX|58093-6^Acylcarnitine newborn screening comment/discussion^LN^|1|Transfusion may, in rare occasions, give misleading results that fail to detect some of these disorders. If a metabolic disorder is suspected, consult a metabolic specialist|||N|||F|||201212041800"}]
[]
[]
[]
["*- Sequence in which the OBXs are sent can differ "]

{"sheet":"OBR7-Fatty Acid","index":15,"n_rows":52,"n_cols":8,"rows_kept":52,"cut":false,"hidden":false,"merged":[]}
["SEQ","LEN","DT","OPT","ELEMENT NAME","SAMPLE DATA","COMMENTS","SAMPLE SEGEMENT MESSAGE TEXT"]
[0,4,"SI","R","Element Code","OBR",null,{"$f":"joinString(F2:F52,\"|\")","v":"OBR|7|25989006^FormNumber||57084-6^Fatty acid oxidation newborn screen panel^LN|||201008072055|||||||20100806||11356370^CUNNINGHAM^REBECCA^^^^^^NPI||||||201212041437|||F|||||||||||||||||||||||||"}]
[1,4,"SI","R","Set ID - OBR","7"]
[2,22,"El","R","Placer Order\nNumber",{"$f":"ORC!F4","v":"25989006^FormNumber"},"Order number for the order message assigned by the order placer\nSame value as ORC-2."]
[3,22,"El","X","Filler Order Number",null,"Not Supported"]
[4,250,"CE","R","Universal Service ID","57084-6^Fatty acid oxidation newborn screen panel^LN","Code for the observation request:"]
[5,2,"ID","X","Priority - OBR",null,"Not Supported"]
[6,26,"TS","X","Requested Date/Time",null,"Not Supported"]
[7,26,"TS","R","Observation Date/Time #","201008072055","Enter the specimen collection date/time"]
[8,26,"TS","X","Observation End\nDate/Time #",null,"Not supported"]
[9,20,"CQ","X","Collection Volume",null,"Not supported"]
[10,250,"XCN","O","Collector Identifier",null,"Not supported"]
[11,1,"ID","X","Specimen Action Code",null,"Not supported"]
[12,250,"CE","X","Danger Code",null,"Not supported"]
[13,300,"ST","X","Relevant Clinical Info.",null,"Not supported"]
[14,26,"TS","R","Specimen Receiver Date/Time","20100806","Transfusion Date"]
[15,300,"SPS","X","Specimen Source",null,"Not supported"]
[16,250,"XCN","R","Ordering Provider",{"$f":"ORC!F14","v":"11356370^CUNNINGHAM^REBECCA^^^^^^NPI"},"Provider ordering the laboratory test. Same value as ORC-12."]
[17,250,"XTN","X","Order Callback Phone Number",null,"Not supported"]
[18,60,"ST","X","Place Field 1",null,"Not supported"]
[19,60,"ST","X","Place Field 2",null,"Not supported"]
[20,60,"ST","X","Filler Field 1",null,"Not supported"]
[21,60,"ST","X","Filler Field 2",null,"Not supported"]
[22,26,"TS","R","Results Rpt/Status Chng - Date/Time","201212041437","Message generation date"]
[23,40,"MOC","X","Charge To Practice",null,"Not supported"]
[24,10,"ID","X","Diagnostic Serv Set ID",null,"Not supported"]
[25,1,"ID","R","Result Status","F","F - Final"]
[26,400,"PRL","X","Parent Result",null,"Not supported"]
[27,200,"TQ","X","Quantity/Timing",null,"Not supported"]
[28,250,"XCN","X","Result Copies To",null,"Not supported"]
[29,200,"EIP","RE","Parent ID"]
[30,20,"ID","X","Transportation Mode",null,"Not supported"]
[31,250,"CE","X","Reason for Study",null,"Not supported"]
[32,200,"NDL","X","Principal result Interpreter",null,"Not supported"]
[33,200,"NDL","X","Assistant Result Interpreter",null,"Not supported"]
[34,200,"NDL","X","Technician",null,"Not supported"]
[35,200,"NDL","X","Transcriptionist",null,"Not supported"]
[36,26,"TS","X","Scheduled Date/Time",null,"Not supported"]
[37,4,"NM","X","Number of Sample Containers",null,"Not supported"]
[38,250,"CE","X","Transport Logistics of Collected Sample",null,"Not supported"]
[39,250,"CE","X","Collector's Comment",null,"Not supported"]
[40,250,"CE","X","Transport Arrangement Responsibility",null,"Not supported"]
[41,30,"ID","X","Transport Arranged",null,"Not supported"]
[42,1,"ID","X","Escort Required",null,"Not supported"]
[43,250,"CE","X","Planned Patient Transport Comment",null,"Not supported"]
[44,250,"CE","X","Procedure Code",null,"Not supported"]
[45,250,"CE","X","Procedure Code Modifier",null,"Not supported"]
[46,250,"CE","X","Placer Supplemental Service Information",null,"Not supported"]
[47,250,"CE","X","Filler Supplemental Service Information",null,"Not supported"]
[48,250,"CE","X","Medically Necessary Duplicate Procedure Reason",null,"Not supported"]
[49,2,"IS","X","Result Handling ",null,"Not supported"]
[50,250,"CE","X","Parent Universal Service Identifier",null,"Not supported"]

{"sheet":"OBX-Fatty Acid","index":16,"n_rows":31,"n_cols":25,"rows_kept":31,"cut":false,"hidden":false,"merged":[]}
["#","Section","Section Desc","Usage","Sequence","Data Type","LOINC #","LOINC Name","Value Type","Local Code","Sub-ID","Value","Units","Range","Abnormal Flags","Probability","Nature of Abnormal\nTest","Observation Result\nStatus","Effective Date of\nReference Range\nValues","User Defined Access\nChecks","Date/Time of the\nObservation","Producer's\nReference","Responsible\nObserver","Observation\nMethod","Message Text"]
[null,null,null,null,"OBX 1(Required)","OBX 2 (Required)","OBX 3.1 (Required)","OBX 3.2 (Required)","OBX 3.3 (Required)",null,"OBX 4","OBX 5 (Required)","OBX 6 (Required)","OBX 7 (Required)","OBX 8 (Required)",null,null,"OBX 11 (Required)",null,null,"OBX 14 (Required)"]
[1,7,"Fatty acid oxidation ","C",1,"NM","50157-7","Acetylcarnitine (C2)","LN",null,1,17.100000000000001,"μmol/L","1.5 - 80","N",null,null,"F",null,null,"201212041800",null,null,null,{"$f":"CONCATENATE(\"OBX|\",joinString(E3:F3,\"|\"),\"|\",joinString(G3:J3,\"^\"),\"|\",joinString(K3:U3,\"|\"))","v":"OBX|1|NM|50157-7^Acetylcarnitine (C2)^LN^|1|17.1|μmol/L|1.5 - 80|N|||F|||201212041800"}]
[2,7,"Fatty acid oxidation ","C",2,"NM","45211-0","Hexanoylcarnitine (C6)","LN",null,1,0.04,"μmol/L","<0.95","N",null,null,"F",null,null,"201212041800",null,null,null,"OBX|2|NM|45211-0^Hexanoylcarnitine (C6)^LN^|1|0.04|μmol/L|<0.95|N|||F|||201212041800"]
[3,7,"Fatty acid oxidation ","C",3,"NM","53175-6","Octanoylcarnitine (C8)","LN",null,1,7.0000000000000007E-2,"μmol/L","<0.6","N",null,null,"F",null,null,"201212041800",null,null,null,"OBX|3|NM|53175-6^Octanoylcarnitine (C8)^LN^|1|0.07|μmol/L|<0.6|N|||F|||201212041800"]
[4,7,"Fatty acid oxidation ","C",4,"NM","53174-9","Octenoylcarnitine (C8:1)","LN",null,1,0.06,"μmol/L","<.7","N",null,null,"F",null,null,"201212041800",null,null,null,"OBX|4|NM|53174-9^Octenoylcarnitine (C8:1)^LN^|1|0.06|μmol/L|<.7|N|||F|||201212041800"]
[5,7,"Fatty acid oxidation ","C",5,"NM","45197-1","Decanoylcarnitine (C10)","LN",null,1,0.05,"μmol/L","<.65","N",null,null,"F",null,null,"201212041800",null,null,null,"OBX|5|NM|45197-1^Decanoylcarnitine (C10)^LN^|1|0.05|μmol/L|<.65|N|||F|||201212041800"]
[6,7,"Fatty acid oxidation ","C",6,"NM","45198-9","Decenoylcarnitine (C10:1)","LN",null,1,0.03,"μmol/L","<.45","N",null,null,"F",null,null,"201212041800",null,null,null,"OBX|6|NM|45198-9^Decenoylcarnitine (C10:1)^LN^|1|0.03|μmol/L|<.45|N|||F|||201212041800"]
[7,7,"Fatty acid oxidation ","C",7,"NM","45199-7","Dodecanoylcarnitine (C12)","LN",null,1,0.04,"μmol/L","<2","N",null,null,"F",null,null,"201212041800",null,null,null,"OBX|7|NM|45199-7^Dodecanoylcarnitine (C12)^LN^|1|0.04|μmol/L|<2|N|||F|||201212041800"]
[8,7,"Fatty acid oxidation ","C",8,"NM","45200-3","Dodecenoylcarnitine (C12:1)","LN",null,1,0.03,"μmol/L",null,"N",null,null,"F",null,null,"201212041800",null,null,null,"OBX|8|NM|45200-3^Dodecenoylcarnitine (C12:1)^LN^|1|0.03|μmol/L||N|||F|||201212041800"]
[9,7,"Fatty acid oxidation ","C",9,"NM","53192-1","Tetradecanoylcarnitine (C14)","LN",null,1,0.22,"μmol/L","<1.2","N",null,null,"F",null,null,"201212041800",null,null,null,"OBX|9|NM|53192-1^Tetradecanoylcarnitine (C14)^LN^|1|0.22|μmol/L|<1.2|N|||F|||201212041800"]
[10,7,"Fatty acid oxidation ","C",10,"NM","53191-3","Tetradecenoylcarnitine (C14:1)","LN",null,1,0.06,"μmol/L","<.8","N",null,null,"F",null,null,"201212041800",null,null,null,"OBX|10|NM|53191-3^Tetradecenoylcarnitine (C14:1)^LN^|1|0.06|μmol/L|<.8|N|||F|||201212041800"]
[11,7,"Fatty acid oxidation ","C",11,"NM","53190-5","Tetradecadienoylcarnitine (C14:2)","LN",null,1,0.02,"μmol/L",null,"N",null,null,"F",null,null,"201212041800",null,null,null,"OBX|11|NM|53190-5^Tetradecadienoylcarnitine (C14:2)^LN^|1|0.02|μmol/L||N|||F|||201212041800"]
[12,7,"Fatty acid oxidation ","C",12,"NM","50281-5","3-Hydroxytetradecanoylcarnitine (C14-OH)","LN",null,1,0.02,"μmol/L","<.2","N",null,null,"F",null,null,"201212041800",null,null,null,"OBX|12|NM|50281-5^3-Hydroxytetradecanoylcarnitine (C14-OH)^LN^|1|0.02|μmol/L|<.2|N|||F|||201212041800"]
[13,7,"Fatty acid oxidation ","C",13,"NM","53199-6","Palmitoylcarnitine (C16)","LN",null,1,3.46,"μmol/L","<10","N",null,null,"F",null,null,"201212041800",null,null,null,"OBX|13|NM|53199-6^Palmitoylcarnitine (C16)^LN^|1|3.46|μmol/L|<10|N|||F|||201212041800"]
[14,7,"Fatty acid oxidation ","C",14,"NM","53198-8","Palmitoleylcarnitine (C16:1)","LN",null,1,0.18,"μmol/L","<1.4","N",null,null,"F",null,null,"201212041800",null,null,null,"OBX|14|NM|53198-8^Palmitoleylcarnitine (C16:1)^LN^|1|0.18|μmol/L|<1.4|N|||F|||201212041800"]
[15,7,"Fatty acid oxidation ","C",15,"NM","50125-4","3-Hydroxypalmitoylcarnitine (C16-OH)","LN",null,1,0.03,"μmol/L","<0.1","N",null,null,"F",null,null,"201212041800",null,null,null,"OBX|15|NM|50125-4^3-Hydroxypalmitoylcarnitine (C16-OH)^LN^|1|0.03|μmol/L|<0.1|N|||F|||201212041800"]
[16,7,"Fatty acid oxidation ","C",16,"NM","53241-6","Stearoylcarnitine (C18)","LN",null,1,0.96,"μmol/L","<4","N",null,null,"F",null,null,"201212041800",null,null,null,"OBX|16|NM|53241-6^Stearoylcarnitine (C18)^LN^|1|0.96|μmol/L|<4|N|||F|||201212041800"]
[17,7,"Fatty acid oxidation ","C",17,"NM","53202-8","Oleoylcarnitine (C18:1)","LN",null,1,1.1200000000000001,"μmol/L","<7","N",null,null,"F",null,null,"201212041800",null,null,null,"OBX|17|NM|53202-8^Oleoylcarnitine (C18:1)^LN^|1|1.12|μmol/L|<7|N|||F|||201212041800"]
[18,7,"Fatty acid oxidation ","C",18,"NM","50113-0","3-Hydroxyoleoylcarnitine (C18:1-OH)","LN",null,1,0.02,"μmol/L","<0.1","N",null,null,"F",null,null,"201212041800",null,null,null,"OBX|18|NM|50113-0^3-Hydroxyoleoylcarnitine (C18:1-OH)^LN^|1|0.02|μmol/L|<0.1|N|||F|||201212041800"]
[19,7,"Fatty acid oxidation ","C",19,"NM","45217-7","Linoleoylcarnitine (C18:2)","LN",null,1,0.24,"μmol/L",null,"N",null,null,"F",null,null,"201212041800",null,null,null,"OBX|19|NM|45217-7^Linoleoylcarnitine (C18:2)^LN^|1|0.24|μmol/L||N|||F|||201212041800"]
[20,7,"Fatty acid oxidation ","C",20,"NM","50132-0","3-Hydroxystearoylcarnitine (C18-OH)","LN",null,1,0.2,"μmol/L","<.1","N",null,null,"F",null,null,"201212041800",null,null,null,"OBX|20|NM|50132-0^3-Hydroxystearoylcarnitine (C18-OH)^LN^|1|0.2|μmol/L|<.1|N|||F|||201212041800"]
[21,7,"Fatty acid oxidation ","C",21,"NM","38481-8","Carnitine.free (C0)","LN",null,1,20.100000000000001,"μmol/L","7-125","N",null,null,"F",null,null,"201212041800",null,null,null,"OBX|21|NM|38481-8^Carnitine.free (C0)^LN^|1|20.1|μmol/L|7-125|N|||F|||201212041800"]
[22,7,"Fatty acid oxidation ","C",22,"NM","53194-7","Tetradecenoylcarnitine (C14:1)/Dodecenoylcarnitine (C12:1)","LN",null,1,2,"{Ratio}",null,"N",null,null,"F",null,null,"201212041800",null,null,null,"OBX|22|NM|53194-7^Tetradecenoylcarnitine (C14:1)/Dodecenoylcarnitine (C12:1)^LN^|1|2|{Ratio}||N|||F|||201212041800"]
[23,7,"Fatty acid oxidation ","C",23,"NM","53177-2","Octanoylcarnitine (C8)/Decanoylcarnitine (C10)","LN",null,1,0.05,"μmol/L","<.65","N",null,null,"F",null,null,"201212041800",null,null,null,"OBX|23|NM|53177-2^Octanoylcarnitine (C8)/Decanoylcarnitine (C10)^LN^|1|0.05|μmol/L|<.65|N|||F|||201212041800"]
[24,7,"Fatty acid oxidation ","C",24,"NM","53235-8","Carnitine.free (C0)/Palmitoylcarnitine (C16)+Stearoylcarnitine (C18)","LN",null,1,4.3899999999999997,"{Ratio}","<75","N",null,null,"F",null,null,"201212041800",null,null,null,"OBX|24|NM|53235-8^Carnitine.free (C0)/Palmitoylcarnitine (C16)+Stearoylcarnitine (C18)^LN^|1|4.39|{Ratio}|<75|N|||F|||201212041800"]
[25,7,"Fatty acid oxidation ","C",25,"NM","53201-0","3-Hydroxypalmitoylcarnitine (C16-OH)/Palmitoylcarnitine (C16)","LN",null,1,8.6700000000000006E-3,"{Ratio}","<.07","N",null,null,"F",null,null,"201212041800",null,null,null,{"$f":"CONCATENATE(\"OBX|\",joinString(E27:F27,\"|\"),\"|\",joinString(G27:J27,\"^\"),\"|\",joinString(K27:U27,\"|\"))","v":"OBX|25|NM|53201-0^3-Hydroxypalmitoylcarnitine (C16-OH)/Palmitoylcarnitine (C16)^LN^|1|0.00867|{Ratio}|<.07|N|||F|||201212041800"}]
[26,7,"Fatty acid oxidation ","C",26,"NM","75212-1","Malonylcarnitine (C3-DC)/Decanoylcarnitine (C10) [Molar ratio] in Dried blood spot","LN",null,1,0.625,"{Ratio}","<5.2","N",null,null,"F",null,null,"20161207044953",null,null,null,"OBX|4|NM|75212-1^Malonylcarnitine (C3-DC)/Decanoylcarnitine (C10) [Molar ratio] in Dried blood spot^LN^^^|1|0.62500|{Ratio}|<5.2|N|||F|||20161207044953"]
[]
[]
["*- Sequence in which the OBXs are sent can differ "]

{"sheet":"OBR8-Organic Acid","index":17,"n_rows":52,"n_cols":8,"rows_kept":52,"cut":false,"hidden":false,"merged":[]}
["SEQ","LEN","DT","OPT","ELEMENT NAME","SAMPLE DATA","COMMENTS","SAMPLE SEGEMENT MESSAGE TEXT"]
[0,4,"SI","R","Element Code","OBR",null,{"$f":"joinString(F2:F52,\"|\")","v":"OBR|8|25989006^FormNumber||57085-3^Organic acid newborn screen panel^LN|||201008072055|||||||20100806||11356370^CUNNINGHAM^REBECCA^^^^^^NPI||||||201212041437|||F|||||||||||||||||||||||||"}]
[1,4,"SI","R","Set ID - OBR","8"]
[2,22,"El","R","Placer Order\nNumber",{"$f":"ORC!F4","v":"25989006^FormNumber"},"Order number for the order message assigned by the order placer\nSame value as ORC-2."]
[3,22,"El","X","Filler Order Number",null,"Not Supported"]
[4,250,"CE","R","Universal Service ID","57085-3^Organic acid newborn screen panel^LN","Code for the observation request:"]
[5,2,"ID","X","Priority - OBR",null,"Not Supported"]
[6,26,"TS","X","Requested Date/Time",null,"Not Supported"]
[7,26,"TS","R","Observation Date/Time #","201008072055","Enter the specimen collection date/time"]
[8,26,"TS","X","Observation End\nDate/Time #",null,"Not supported"]
[9,20,"CQ","X","Collection Volume",null,"Not supported"]
[10,250,"XCN","O","Collector Identifier",null,"Not supported"]
[11,1,"ID","X","Specimen Action Code",null,"Not supported"]
[12,250,"CE","X","Danger Code",null,"Not supported"]
[13,300,"ST","X","Relevant Clinical Info.",null,"Not supported"]
[14,26,"TS","R","Specimen Receiver Date/Time","20100806","Transfusion Date"]
[15,300,"SPS","X","Specimen Source",null,"Not supported"]
[16,250,"XCN","R","Ordering Provider",{"$f":"ORC!F14","v":"11356370^CUNNINGHAM^REBECCA^^^^^^NPI"},"Provider ordering the laboratory test. Same value as ORC-12."]
[17,250,"XTN","X","Order Callback Phone Number",null,"Not supported"]
[18,60,"ST","X","Place Field 1",null,"Not supported"]
[19,60,"ST","X","Place Field 2",null,"Not supported"]
[20,60,"ST","X","Filler Field 1",null,"Not supported"]
[21,60,"ST","X","Filler Field 2",null,"Not supported"]
[22,26,"TS","R","Results Rpt/Status Chng - Date/Time","201212041437","Message generation date"]
[23,40,"MOC","X","Charge To Practice",null,"Not supported"]
[24,10,"ID","X","Diagnostic Serv Set ID",null,"Not supported"]
[25,1,"ID","R","Result Status","F","F - Final"]
[26,400,"PRL","X","Parent Result",null,"Not supported"]
[27,200,"TQ","X","Quantity/Timing",null,"Not supported"]
[28,250,"XCN","X","Result Copies To",null,"Not supported"]
[29,200,"EIP","RE","Parent ID"]
[30,20,"ID","X","Transportation Mode",null,"Not supported"]
[31,250,"CE","X","Reason for Study",null,"Not supported"]
[32,200,"NDL","X","Principal result Interpreter",null,"Not supported"]
[33,200,"NDL","X","Assistant Result Interpreter",null,"Not supported"]
[34,200,"NDL","X","Technician",null,"Not supported"]
[35,200,"NDL","X","Transcriptionist",null,"Not supported"]
[36,26,"TS","X","Scheduled Date/Time",null,"Not supported"]
[37,4,"NM","X","Number of Sample Containers",null,"Not supported"]
[38,250,"CE","X","Transport Logistics of Collected Sample",null,"Not supported"]
[39,250,"CE","X","Collector's Comment",null,"Not supported"]
[40,250,"CE","X","Transport Arrangement Responsibility",null,"Not supported"]
[41,30,"ID","X","Transport Arranged",null,"Not supported"]
[42,1,"ID","X","Escort Required",null,"Not supported"]
[43,250,"CE","X","Planned Patient Transport Comment",null,"Not supported"]
[44,250,"CE","X","Procedure Code",null,"Not supported"]
[45,250,"CE","X","Procedure Code Modifier",null,"Not supported"]
[46,250,"CE","X","Placer Supplemental Service Information",null,"Not supported"]
[47,250,"CE","X","Filler Supplemental Service Information",null,"Not supported"]
[48,250,"CE","X","Medically Necessary Duplicate Procedure Reason",null,"Not supported"]
[49,2,"IS","X","Result Handling ",null,"Not supported"]
[50,250,"CE","X","Parent Universal Service Identifier",null,"Not supported"]

{"sheet":"OBX-Organic Acid","index":18,"n_rows":15,"n_cols":25,"rows_kept":15,"cut":false,"hidden":false,"merged":[]}
["#","Section","Section Desc","Usage","Sequence","Data Type","LOINC #","LOINC Name","Value Type","Local Code","Sub-ID","Value","Units","Range","Abnormal Flags","Probability","Nature of Abnormal\nTest","Observation Result\nStatus","Effective Date of\nReference Range\nValues","User Defined Access\nChecks","Date/Time of the\nObservation","Producer's\nReference","Responsible\nObserver","Observation\nMethod","Message Text"]
[null,null,null,null,"OBX 1(Required)","OBX 2 (Required)","OBX 3.1 (Required)","OBX 3.2 (Required)","OBX 3.3 (Required)",null,"OBX 4","OBX 5 (Required)","OBX 6 (Required)","OBX 7 (Required)","OBX 8 (Required)",null,null,"OBX 11 (Required)",null,null,"OBX 14 (Required)"]
[1,8,"Organic acid","C",1,"NM","53160-8","Propionylcarnitine (C3)","LN",null,1,3.15,"μmol/L","<6.3","N",null,null,"F",null,null,"20191024062322",null,null,null,"OBX|1|NM|53160-8^Propionylcarnitine (C3)^LN|1|3.15|µmol/L|<6.3|N|||F|||20191024062322"]
[2,8,"Organic acid","C",2,"NM","53163-2","Propionylcarnitine (C3)/Acetylcarnitine (C2)","LN",null,1,0.15,"{Ratio}","<0.3","N",null,null,"F",null,null,"20191024062322",null,null,null,"OBX|2|NM|53163-2^Propionylcarnitine (C3)/Acetylcarnitine (C2)^LN|1|0.15|{Ratio}|<0.3|N|||F|||20191024062322"]
[3,8,"Organic acid","C",3,"NM","67708-8","Malonylcarnitine (C3-DC)+3-Hydroxybutyrylcarnitine (C4-OH)","LN",null,1,0.2,"µmol/L","<0.38","N",null,null,"F",null,null,"20191024062322",null,null,null,"OBX|3|NM|67708-8^Malonylcarnitine (C3-DC)+3-Hydroxybutyrylcarnitine (C4-OH)^LN|1|0.2|µmol/L|<0.38|N|||F|||20191024062322"]
[4,8,"Organic acid","C",4,"NM","53166-5","Butyrylcarnitine+Isobutyrylcarnitine (C4)","LN",null,1,0.85,"µmol/L","<1.7","N",null,null,"F",null,null,"20191024062322",null,null,null,"OBX|4|NM|53166-5^Butyrylcarnitine+Isobutyrylcarnitine (C4)^LN|1|0.85|µmol/L|<1.7|N|||F|||20191024062322"]
[5,8,"Organic acid","C",5,"NM","45216-9","Isovalerylcarnitine+Methylbutyrylcarnitine (C5)","LN",null,1,0.5,"µmol/L","<1","N",null,null,"F",null,null,"20191024062322",null,null,null,"OBX|5|NM|45216-9^Isovalerylcarnitine+Methylbutyrylcarnitine (C5)^LN|1|0.5|µmol/L|<1|N|||F|||20191024062322"]
[6,8,"Organic acid","C",6,"NM","53240-8","Isovalerylcarnitine+Methylbutyrylcarnitine (C5)/Propionylcarnitine (C3)","LN",null,1,0.15873000000000001,"{Ratio}","<0.45","N",null,null,"F",null,null,"20191024062322",null,null,null,"OBX|6|NM|53240-8^Isovalerylcarnitine+Methylbutyrylcarnitine (C5)/Propionylcarnitine (C3)^LN|1|0.15873|{Ratio}|<0.45|N|||F|||20191024062322"]
[7,8,"Organic acid","C",7,"NM","53170-7","Tiglylcarnitine (C5:1)","LN",null,1,0.3,"µmol/L","<0.5","N",null,null,"F",null,null,"20191024062322",null,null,null,"OBX|7|NM|53170-7^Tiglylcarnitine (C5:1)^LN|1|0.3|µmol/L|<0.5|N|||F|||20191024062322"]
[8,8,"Organic acid","C",8,"NM","50106-4","3-Hydroxyisovalerylcarnitine (C5-OH)","LN",null,1,0.45,"µmol/L","<0.85","N",null,null,"F",null,null,"20191024062322",null,null,null,"OBX|8|NM|50106-4^3-Hydroxyisovalerylcarnitine (C5-OH)^LN|1|0.45|µmol/L|<0.85|N|||F|||20191024062322"]
[9,8,"Organic acid","C",9,"NM","67710-4","Glutarylcarnitine (C5-DC)+3-Hydroxyhexanoylcarnitine (C6-OH)","LN",null,1,0.3,"µmol/L","<0.5","N",null,null,"F",null,null,"20191024062322",null,null,null,"OBX|9|NM|67710-4^Glutarylcarnitine (C5-DC)+3-Hydroxyhexanoylcarnitine (C6-OH)^LN|1|0.3|µmol/L|<0.5|N|||F|||20191024062322"]
[10,8,"Organic acid","C",10,"NM","75216-2","Glutarylcarnitine (C5-DC)/Malonylcarnitine (C3-DC) [Molar ratio] in Dried blood spot","LN",null,1,1.5,"{Ratio}",">0.6","N",null,null,"F",null,null,"20191024062322",null,null,null,"OBX|10|NM|75216-2^Glutarylcarnitine (C5-DC)/Malonylcarnitine (C3-DC) [Molar ratio] in Dried blood spot^LN|1|1.50000|{Ratio}|>0.6|N|||F|||20191024062322"]
[]
[]
["*- Sequence in which the OBXs are sent can differ "]

{"sheet":"OBR9-Cystic Fibrosis","index":19,"n_rows":52,"n_cols":8,"rows_kept":52,"cut":false,"hidden":false,"merged":[]}
["SEQ","LEN","DT","OPT","ELEMENT NAME","SAMPLE DATA","COMMENTS","SAMPLE SEGEMENT MESSAGE TEXT"]
[0,4,"SI","R","Element Code","OBR",null,{"$f":"joinString(F2:F52,\"|\")","v":"OBR|9|25989006^FormNumber||54078-1^Cystic fibrosis newborn screening panel^LN|||201008072055|||||||20100806||11356370^CUNNINGHAM^REBECCA^^^^^^NPI||||||201212041437|||F|||||||||||||||||||||||||"}]
[1,4,"SI","R","Set ID - OBR","9"]
[2,22,"El","R","Placer Order\nNumber",{"$f":"ORC!F4","v":"25989006^FormNumber"},"Order number for the order message assigned by the order placer\nSame value as ORC-2."]
[3,22,"El","X","Filler Order Number",null,"Not Supported"]
[4,250,"CE","R","Universal Service ID","54078-1^Cystic fibrosis newborn screening panel^LN","Code for the observation request:"]
[5,2,"ID","X","Priority - OBR",null,"Not Supported"]
[6,26,"TS","X","Requested Date/Time",null,"Not Supported"]
[7,26,"TS","R","Observation Date/Time #","201008072055","Enter the specimen collection date/time"]
[8,26,"TS","X","Observation End\nDate/Time #",null,"Not supported"]
[9,20,"CQ","X","Collection Volume",null,"Not supported"]
[10,250,"XCN","O","Collector Identifier",null,"Not supported"]
[11,1,"ID","X","Specimen Action Code",null,"Not supported"]
[12,250,"CE","X","Danger Code",null,"Not supported"]
[13,300,"ST","X","Relevant Clinical Info.",null,"Not supported"]
[14,26,"TS","R","Specimen Receiver Date/Time","20100806","Transfusion Date"]
[15,300,"SPS","X","Specimen Source",null,"Not supported"]
[16,250,"XCN","R","Ordering Provider",{"$f":"ORC!F14","v":"11356370^CUNNINGHAM^REBECCA^^^^^^NPI"},"Provider ordering the laboratory test. Same value as ORC-12."]
[17,250,"XTN","X","Order Callback Phone Number",null,"Not supported"]
[18,60,"ST","X","Place Field 1",null,"Not supported"]
[19,60,"ST","X","Place Field 2",null,"Not supported"]
[20,60,"ST","X","Filler Field 1",null,"Not supported"]
[21,60,"ST","X","Filler Field 2",null,"Not supported"]
[22,26,"TS","R","Results Rpt/Status Chng - Date/Time","201212041437","Message generation date"]
[23,40,"MOC","X","Charge To Practice",null,"Not supported"]
[24,10,"ID","X","Diagnostic Serv Set ID",null,"Not supported"]
[25,1,"ID","R","Result Status","F","F - Final"]
[26,400,"PRL","X","Parent Result",null,"Not supported"]
[27,200,"TQ","X","Quantity/Timing",null,"Not supported"]
[28,250,"XCN","X","Result Copies To",null,"Not supported"]
[29,200,"EIP","RE","Parent ID"]
[30,20,"ID","X","Transportation Mode",null,"Not supported"]
[31,250,"CE","X","Reason for Study",null,"Not supported"]
[32,200,"NDL","X","Principal result Interpreter",null,"Not supported"]
[33,200,"NDL","X","Assistant Result Interpreter",null,"Not supported"]
[34,200,"NDL","X","Technician",null,"Not supported"]
[35,200,"NDL","X","Transcriptionist",null,"Not supported"]
[36,26,"TS","X","Scheduled Date/Time",null,"Not supported"]
[37,4,"NM","X","Number of Sample Containers",null,"Not supported"]
[38,250,"CE","X","Transport Logistics of Collected Sample",null,"Not supported"]
[39,250,"CE","X","Collector's Comment",null,"Not supported"]
[40,250,"CE","X","Transport Arrangement Responsibility",null,"Not supported"]
[41,30,"ID","X","Transport Arranged",null,"Not supported"]
[42,1,"ID","X","Escort Required",null,"Not supported"]
[43,250,"CE","X","Planned Patient Transport Comment",null,"Not supported"]
[44,250,"CE","X","Procedure Code",null,"Not supported"]
[45,250,"CE","X","Procedure Code Modifier",null,"Not supported"]
[46,250,"CE","X","Placer Supplemental Service Information",null,"Not supported"]
[47,250,"CE","X","Filler Supplemental Service Information",null,"Not supported"]
[48,250,"CE","X","Medically Necessary Duplicate Procedure Reason",null,"Not supported"]
[49,2,"IS","X","Result Handling ",null,"Not supported"]
[50,250,"CE","X","Parent Universal Service Identifier",null,"Not supported"]

{"sheet":"OBX-Cystic Fibrosis","index":20,"n_rows":8,"n_cols":25,"rows_kept":8,"cut":false,"hidden":false,"merged":[]}
["#","Section","Section Desc","Usage","Sequence","Data Type","LOINC #","LOINC Name","Value Type","Local Code","Sub-ID","Value","Units","Range","Abnormal Flags","Probability","Nature of Abnormal\nTest","Observation Result\nStatus","Effective Date of\nReference Range\nValues","User Defined Access\nChecks","Date/Time of the\nObservation","Producer's\nReference","Responsible\nObserver","Observation\nMethod","Message Text"]
[null,null,null,null,"OBX 1(Required)","OBX 2 (Required)","OBX 3.1 (Required)","OBX 3.2 (Required)","OBX 3.3 (Required)",null,"OBX 4","OBX 5 (Required)","OBX 6 (Required)","OBX 7 (Required)","OBX 8 (Required)",null,null,"OBX 11 (Required)",null,null,"OBX 14 (Required)"]
[1,9,"Cystic Fibrosis","C",1,"NM","48633-2","Trypsinogen I.free","LN",null,1,"31","ng/mL","<68","N",null,null,"F",null,null,"20191024055438",null,null,null,{"$f":"CONCATENATE(\"OBX|\",joinString(E3:F3,\"|\"),\"|\",joinString(G3:J3,\"^\"),\"|\",joinString(K3:U3,\"|\"))","v":"OBX|1|NM|48633-2^Trypsinogen I.free^LN^|1|31|ng/mL|<68|N|||F|||20191024055438"}]
[2,9,"Cystic Fibrosis","C",2,"CE","46769-6","Cystic fibrosis newborn screen interpretation","LN",null,1,"LA18592-8\\S\\In range\\S\\LN",null,null,"N",null,null,"F",null,null,"20191024055438",null,null,null,"OBX|2|CE|46769-6^Cystic fibrosis newborn screen interpretation^LN^|1|LA18592-8\\S\\In range\\S\\LN|||N|||F|||20191024055438"]
[3,9,"Cystic Fibrosis","C",3,"TX","57707-2","Cystic fibrosis newborn screening comment/discussion","LN",null,1,"Negative",null,null,"N",null,null,"F",null,null,"20191024055438",null,null,null,"OBX|3|TX|57707-2^Cystic fibrosis newborn screening comment/discussion^LN^|1|Negative|||N|||F|||20191024055438"]
[]
[]
["*- Sequence in which the OBXs are sent can differ "]

{"sheet":"OBR10-CAH","index":21,"n_rows":52,"n_cols":8,"rows_kept":52,"cut":false,"hidden":false,"merged":[]}
["SEQ","LEN","DT","OPT","ELEMENT NAME","SAMPLE DATA","COMMENTS","SAMPLE SEGEMENT MESSAGE TEXT"]
[0,4,"SI","R","Element Code","OBR",null,{"$f":"joinString(F2:F52,\"|\")","v":"OBR|10|25989006^FormNumber||57086-1^Congenital adrenal hyperplasia newborn screening panel^LN|||201008072055|||||||20100806||11356370^CUNNINGHAM^REBECCA^^^^^^NPI||||||201212041437|||F|||||||||||||||||||||||||"}]
[1,4,"SI","R","Set ID - OBR","10"]
[2,22,"El","R","Placer Order\nNumber",{"$f":"ORC!F4","v":"25989006^FormNumber"},"Order number for the order message assigned by the order placer\nSame value as ORC-2."]
[3,22,"El","X","Filler Order Number",null,"Not Supported"]
[4,250,"CE","R","Universal Service ID","57086-1^Congenital adrenal hyperplasia newborn screening panel^LN","Code for the observation request:"]
[5,2,"ID","X","Priority - OBR",null,"Not Supported"]
[6,26,"TS","X","Requested Date/Time",null,"Not Supported"]
[7,26,"TS","R","Observation Date/Time #","201008072055","Enter the specimen collection date/time"]
[8,26,"TS","X","Observation End\nDate/Time #",null,"Not supported"]
[9,20,"CQ","X","Collection Volume",null,"Not supported"]
[10,250,"XCN","O","Collector Identifier",null,"Not supported"]
[11,1,"ID","X","Specimen Action Code",null,"Not supported"]
[12,250,"CE","X","Danger Code",null,"Not supported"]
[13,300,"ST","X","Relevant Clinical Info.",null,"Not supported"]
[14,26,"TS","R","Specimen Receiver Date/Time","20100806","Transfusion Date"]
[15,300,"SPS","X","Specimen Source",null,"Not supported"]
[16,250,"XCN","R","Ordering Provider",{"$f":"ORC!F14","v":"11356370^CUNNINGHAM^REBECCA^^^^^^NPI"},"Provider ordering the laboratory test. Same value as ORC-12."]
[17,250,"XTN","X","Order Callback Phone Number",null,"Not supported"]
[18,60,"ST","X","Place Field 1",null,"Not supported"]
[19,60,"ST","X","Place Field 2",null,"Not supported"]
[20,60,"ST","X","Filler Field 1",null,"Not supported"]
[21,60,"ST","X","Filler Field 2",null,"Not supported"]
[22,26,"TS","R","Results Rpt/Status Chng - Date/Time","201212041437","Message generation date"]
[23,40,"MOC","X","Charge To Practice",null,"Not supported"]
[24,10,"ID","X","Diagnostic Serv Set ID",null,"Not supported"]
[25,1,"ID","R","Result Status","F","F - Final"]
[26,400,"PRL","X","Parent Result",null,"Not supported"]
[27,200,"TQ","X","Quantity/Timing",null,"Not supported"]
[28,250,"XCN","X","Result Copies To",null,"Not supported"]
[29,200,"EIP","RE","Parent ID"]
[30,20,"ID","X","Transportation Mode",null,"Not supported"]
[31,250,"CE","X","Reason for Study",null,"Not supported"]
[32,200,"NDL","X","Principal result Interpreter",null,"Not supported"]
[33,200,"NDL","X","Assistant Result Interpreter",null,"Not supported"]
[34,200,"NDL","X","Technician",null,"Not supported"]
[35,200,"NDL","X","Transcriptionist",null,"Not supported"]
[36,26,"TS","X","Scheduled Date/Time",null,"Not supported"]
[37,4,"NM","X","Number of Sample Containers",null,"Not supported"]
[38,250,"CE","X","Transport Logistics of Collected Sample",null,"Not supported"]
[39,250,"CE","X","Collector's Comment",null,"Not supported"]
[40,250,"CE","X","Transport Arrangement Responsibility",null,"Not supported"]
[41,30,"ID","X","Transport Arranged",null,"Not supported"]
[42,1,"ID","X","Escort Required",null,"Not supported"]
[43,250,"CE","X","Planned Patient Transport Comment",null,"Not supported"]
[44,250,"CE","X","Procedure Code",null,"Not supported"]
[45,250,"CE","X","Procedure Code Modifier",null,"Not supported"]
[46,250,"CE","X","Placer Supplemental Service Information",null,"Not supported"]
[47,250,"CE","X","Filler Supplemental Service Information",null,"Not supported"]
[48,250,"CE","X","Medically Necessary Duplicate Procedure Reason",null,"Not supported"]
[49,2,"IS","X","Result Handling ",null,"Not supported"]
[50,250,"CE","X","Parent Universal Service Identifier",null,"Not supported"]

{"sheet":"OBX-CAH","index":22,"n_rows":8,"n_cols":25,"rows_kept":8,"cut":false,"hidden":false,"merged":[]}
["#","Section","Section Desc","Usage","Sequence","Data Type","LOINC #","LOINC Name","Value Type","Local Code","Sub-ID","Value","Units","Range","Abnormal Flags","Probability","Nature of Abnormal\nTest","Observation Result\nStatus","Effective Date of\nReference Range\nValues","User Defined Access\nChecks","Date/Time of the\nObservation","Producer's\nReference","Responsible\nObserver","Observation\nMethod","Message Text"]
[null,null,null,null,"OBX 1(Required)","OBX 2 (Required)","OBX 3.1 (Required)","OBX 3.2 (Required)","OBX 3.3 (Required)",null,"OBX 4","OBX 5 (Required)","OBX 6 (Required)","OBX 7 (Required)","OBX 8 (Required)",null,null,"OBX 11 (Required)",null,null,"OBX 14 (Required)"]
[9,10,"Congenital adrenal hyperplasia","C",1,"NM","38473-5","17-Hydroxyprogesterone","LN",null,1,35,"nmol/L","<85","N",null,null,"F",null,null,"20191024055438",null,null,null,"OBX|1|NM|38473-5^17-Hydroxyprogesterone^LN|1|35|nmol/L|<85|N|||F|||20191024055438"]
[9,10,"Congenital adrenal hyperplasia","C",2,"CE","46758-9","Congenital adrenal hyperplasia newborn screen interpretation","LN",null,1,"LA18592-8\\S\\In range\\S\\LN",null,null,"N",null,null,"F",null,null,"20191024055438",null,null,null,"OBX|2|CE|46758-9^Congenital adrenal hyperplasia newborn screen interpretation^LN|1|LA18592-8\\S\\In range\\S\\LN|||N|||F|||20191024055438"]
[9,10,"Congenital adrenal hyperplasia","C",3,"TX","57706-4","Congenital adrenal hyperplasia newborn screening comment-discussion","LN",null,1,"Negative",null,null,"N",null,null,"F ",null,null,"20191024055438",null,null,null,"OBX|3|TX|57706-4^Congenital adrenal hyperplasia newborn screening comment-discussion^LN|1|Negative|||N|||F|||20191024055438"]
[]
[]
["*- Sequence in which the OBXs are sent can differ "]

{"sheet":"OBR11-TSH","index":23,"n_rows":52,"n_cols":8,"rows_kept":52,"cut":false,"hidden":false,"merged":[]}
["SEQ","LEN","DT","OPT","ELEMENT NAME","SAMPLE DATA","COMMENTS","SAMPLE SEGEMENT MESSAGE TEXT"]
[0,4,"SI","R","Element Code","OBR",null,{"$f":"joinString(F2:F52,\"|\")","v":"OBR|11|25989006^FormNumber||54090-6^Thyroid newborn screening panel^LN|||201008072055|||||||20100806||11356370^CUNNINGHAM^REBECCA^^^^^^NPI||||||201212041437|||F|||||||||||||||||||||||||"}]
[1,4,"SI","R","Set ID - OBR","11"]
[2,22,"El","R","Placer Order\nNumber",{"$f":"ORC!F4","v":"25989006^FormNumber"},"Order number for the order message assigned by the order placer\nSame value as ORC-2."]
[3,22,"El","X","Filler Order Number",null,"Not Supported"]
[4,250,"CE","R","Universal Service ID","54090-6^Thyroid newborn screening panel^LN","Code for the observation request:"]
[5,2,"ID","X","Priority - OBR",null,"Not Supported"]
[6,26,"TS","X","Requested Date/Time",null,"Not Supported"]
[7,26,"TS","R","Observation Date/Time #","201008072055","Enter the specimen collection date/time"]
[8,26,"TS","X","Observation End\nDate/Time #",null,"Not supported"]
[9,20,"CQ","X","Collection Volume",null,"Not supported"]
[10,250,"XCN","O","Collector Identifier",null,"Not supported"]
[11,1,"ID","X","Specimen Action Code",null,"Not supported"]
[12,250,"CE","X","Danger Code",null,"Not supported"]
[13,300,"ST","X","Relevant Clinical Info.",null,"Not supported"]
[14,26,"TS","R","Specimen Receiver Date/Time","20100806","Transfusion Date"]
[15,300,"SPS","X","Specimen Source",null,"Not supported"]
[16,250,"XCN","R","Ordering Provider",{"$f":"ORC!F14","v":"11356370^CUNNINGHAM^REBECCA^^^^^^NPI"},"Provider ordering the laboratory test. Same value as ORC-12."]
[17,250,"XTN","X","Order Callback Phone Number",null,"Not supported"]
[18,60,"ST","X","Place Field 1",null,"Not supported"]
[19,60,"ST","X","Place Field 2",null,"Not supported"]
[20,60,"ST","X","Filler Field 1",null,"Not supported"]
[21,60,"ST","X","Filler Field 2",null,"Not supported"]
[22,26,"TS","R","Results Rpt/Status Chng - Date/Time","201212041437","Message generation date"]
[23,40,"MOC","X","Charge To Practice",null,"Not supported"]
[24,10,"ID","X","Diagnostic Serv Set ID",null,"Not supported"]
[25,1,"ID","R","Result Status","F","F - Final"]
[26,400,"PRL","X","Parent Result",null,"Not supported"]
[27,200,"TQ","X","Quantity/Timing",null,"Not supported"]
[28,250,"XCN","X","Result Copies To",null,"Not supported"]
[29,200,"EIP","RE","Parent ID"]
[30,20,"ID","X","Transportation Mode",null,"Not supported"]
[31,250,"CE","X","Reason for Study",null,"Not supported"]
[32,200,"NDL","X","Principal result Interpreter",null,"Not supported"]
[33,200,"NDL","X","Assistant Result Interpreter",null,"Not supported"]
[34,200,"NDL","X","Technician",null,"Not supported"]
[35,200,"NDL","X","Transcriptionist",null,"Not supported"]
[36,26,"TS","X","Scheduled Date/Time",null,"Not supported"]
[37,4,"NM","X","Number of Sample Containers",null,"Not supported"]
[38,250,"CE","X","Transport Logistics of Collected Sample",null,"Not supported"]
[39,250,"CE","X","Collector's Comment",null,"Not supported"]
[40,250,"CE","X","Transport Arrangement Responsibility",null,"Not supported"]
[41,30,"ID","X","Transport Arranged",null,"Not supported"]
[42,1,"ID","X","Escort Required",null,"Not supported"]
[43,250,"CE","X","Planned Patient Transport Comment",null,"Not supported"]
[44,250,"CE","X","Procedure Code",null,"Not supported"]
[45,250,"CE","X","Procedure Code Modifier",null,"Not supported"]
[46,250,"CE","X","Placer Supplemental Service Information",null,"Not supported"]
[47,250,"CE","X","Filler Supplemental Service Information",null,"Not supported"]
[48,250,"CE","X","Medically Necessary Duplicate Procedure Reason",null,"Not supported"]
[49,2,"IS","X","Result Handling ",null,"Not supported"]
[50,250,"CE","X","Parent Universal Service Identifier",null,"Not supported"]

{"sheet":"OBX-TSH","index":24,"n_rows":7,"n_cols":25,"rows_kept":7,"cut":false,"hidden":false,"merged":[]}
["#","Section","Section Desc","Usage","Sequence","Data Type","LOINC #","LOINC Name","Value Type","Local Code","Sub-ID","Value","Units","Range","Abnormal Flags","Probability","Nature of Abnormal\nTest","Observation Result\nStatus","Effective Date of\nReference Range\nValues","User Defined Access\nChecks","Date/Time of the\nObservation","Producer's\nReference","Responsible\nObserver","Observation\nMethod","Message Text"]
[null,null,null,null,"OBX 1(Required)","OBX 2 (Required)","OBX 3.1 (Required)","OBX 3.2 (Required)","OBX 3.3 (Required)",null,"OBX 4","OBX 5 (Required)","OBX 6 (Required)","OBX 7 (Required)","OBX 8 (Required)",null,null,"OBX 11 (Required)",null,null,"OBX 14 (Required)"]
[1,11,"Thyroid","C",1,"NM","29575-8","Thyrotropin","LN",null,1,14.5,"mIU/L","<29","N",null,null,"F",null,null,"20191024062322",null,null,null,"OBX|1|NM|29575-8^Thyrotropin^LN|1|14.50|mIU/L|<29|N|||F|||20191024062322"]
[2,11,"Thyroid","C",2,"CE","46762-1","Congenital hypothyroidism newborn screen interpretation","LN",null,1,"LA18592-8\\S\\In range\\S\\LN",null,null,"N",null,null,"F",null,null,"20191024062322",null,null,null,"OBX|2|CE|46762-1^Congenital hypothyroidism newborn screen interpretation^LN|1|LA18592-8\\S\\In range\\S\\LN|||N|||F|||20191024062322"]
[3,11,"Thyroid","C",3,"TX","57705-6","Congenital hypothyroidism newborn screening comment-discussion","LN",null,1,"Negative",null,null,"N",null,null,"F",null,null,"20191024062322",null,null,null,"OBX|3|TX|57705-6^Congenital hypothyroidism newborn screening comment-discussion^LN|1|Negative|||N|||F|||20191024062322"]
[]
["*- Sequence in which the OBXs are sent can differ "]

{"sheet":"OBR12-Galactosemia","index":25,"n_rows":52,"n_cols":8,"rows_kept":52,"cut":false,"hidden":false,"merged":[]}
["SEQ","LEN","DT","OPT","ELEMENT NAME","SAMPLE DATA","COMMENTS","SAMPLE SEGEMENT MESSAGE TEXT"]
[0,4,"SI","R","Element Code","OBR",null,{"$f":"joinString(F2:F52,\"|\")","v":"OBR|12|25989006^FormNumber||54079-9^Galactosemia newborn screening panel^LN|||201008072055|||||||20100806||11356370^CUNNINGHAM^REBECCA^^^^^^NPI||||||201212041437|||F|||||||||||||||||||||||||"}]
[1,4,"SI","R","Set ID - OBR","12"]
[2,22,"El","R","Placer Order\nNumber",{"$f":"ORC!F4","v":"25989006^FormNumber"},"Order number for the order message assigned by the order placer\nSame value as ORC-2."]
[3,22,"El","X","Filler Order Number",null,"Not Supported"]
[4,250,"CE","R","Universal Service ID","54079-9^Galactosemia newborn screening panel^LN","Code for the observation request:"]
[5,2,"ID","X","Priority - OBR",null,"Not Supported"]
[6,26,"TS","X","Requested Date/Time",null,"Not Supported"]
[7,26,"TS","R","Observation Date/Time #","201008072055","Enter the specimen collection date/time"]
[8,26,"TS","X","Observation End\nDate/Time #",null,"Not supported"]
[9,20,"CQ","X","Collection Volume",null,"Not supported"]
[10,250,"XCN","O","Collector Identifier",null,"Not supported"]
[11,1,"ID","X","Specimen Action Code",null,"Not supported"]
[12,250,"CE","X","Danger Code",null,"Not supported"]
[13,300,"ST","X","Relevant Clinical Info.",null,"Not supported"]
[14,26,"TS","R","Specimen Receiver Date/Time","20100806","Transfusion Date"]
[15,300,"SPS","X","Specimen Source",null,"Not supported"]
[16,250,"XCN","R","Ordering Provider",{"$f":"ORC!F14","v":"11356370^CUNNINGHAM^REBECCA^^^^^^NPI"},"Provider ordering the laboratory test. Same value as ORC-12."]
[17,250,"XTN","X","Order Callback Phone Number",null,"Not supported"]
[18,60,"ST","X","Place Field 1",null,"Not supported"]
[19,60,"ST","X","Place Field 2",null,"Not supported"]
[20,60,"ST","X","Filler Field 1",null,"Not supported"]
[21,60,"ST","X","Filler Field 2",null,"Not supported"]
[22,26,"TS","R","Results Rpt/Status Chng - Date/Time","201212041437","Message generation date"]
[23,40,"MOC","X","Charge To Practice",null,"Not supported"]
[24,10,"ID","X","Diagnostic Serv Set ID",null,"Not supported"]
[25,1,"ID","R","Result Status","F","F - Final"]
[26,400,"PRL","X","Parent Result",null,"Not supported"]
[27,200,"TQ","X","Quantity/Timing",null,"Not supported"]
[28,250,"XCN","X","Result Copies To",null,"Not supported"]
[29,200,"EIP","RE","Parent ID"]
[30,20,"ID","X","Transportation Mode",null,"Not supported"]
[31,250,"CE","X","Reason for Study",null,"Not supported"]
[32,200,"NDL","X","Principal result Interpreter",null,"Not supported"]
[33,200,"NDL","X","Assistant Result Interpreter",null,"Not supported"]
[34,200,"NDL","X","Technician",null,"Not supported"]
[35,200,"NDL","X","Transcriptionist",null,"Not supported"]
[36,26,"TS","X","Scheduled Date/Time",null,"Not supported"]
[37,4,"NM","X","Number of Sample Containers",null,"Not supported"]
[38,250,"CE","X","Transport Logistics of Collected Sample",null,"Not supported"]
[39,250,"CE","X","Collector's Comment",null,"Not supported"]
[40,250,"CE","X","Transport Arrangement Responsibility",null,"Not supported"]
[41,30,"ID","X","Transport Arranged",null,"Not supported"]
[42,1,"ID","X","Escort Required",null,"Not supported"]
[43,250,"CE","X","Planned Patient Transport Comment",null,"Not supported"]
[44,250,"CE","X","Procedure Code",null,"Not supported"]
[45,250,"CE","X","Procedure Code Modifier",null,"Not supported"]
[46,250,"CE","X","Placer Supplemental Service Information",null,"Not supported"]
[47,250,"CE","X","Filler Supplemental Service Information",null,"Not supported"]
[48,250,"CE","X","Medically Necessary Duplicate Procedure Reason",null,"Not supported"]
[49,2,"IS","X","Result Handling ",null,"Not supported"]
[50,250,"CE","X","Parent Universal Service Identifier",null,"Not supported"]

{"sheet":"OBX-Galactosemia","index":26,"n_rows":7,"n_cols":25,"rows_kept":7,"cut":false,"hidden":false,"merged":[]}
["#","Section","Section Desc","Usage","Sequence","Data Type","LOINC #","LOINC Name","Value Type","Local Code","Sub-ID","Value","Units","Range","Abnormal Flags","Probability","Nature of Abnormal\nTest","Observation Result\nStatus","Effective Date of\nReference Range\nValues","User Defined Access\nChecks","Date/Time of the\nObservation","Producer's\nReference","Responsible\nObserver","Observation\nMethod","Message Text"]
[null,null,null,null,"OBX 1(Required)","OBX 2 (Required)","OBX 3.1 (Required)","OBX 3.2 (Required)","OBX 3.3 (Required)",null,"OBX 4","OBX 5 (Required)","OBX 6 (Required)","OBX 7 (Required)","OBX 8 (Required)",null,null,"OBX 11 (Required)",null,null,"OBX 14 (Required)"]
[1,12,"Galactosemia","C",1,"NM","42906-8","Galactose 1 phosphate uridyl transferase","LN",null,1,55,"enzyme units",">50","N",null,null,"F",null,null,"201212041800",null,null,null,"OBX|1|NM|42906-8^Galactose 1 phosphate uridyl transferase^LN|1|55.00|enzyme units|>50|N|||F|||20191024062322"]
[2,12,"Galactosemia","C",2,"CE","46737-3  ","Galactosemias newborn screen interpretation","LN",null,1,"LA18592-8\\S\\In range\\S\\LN",null,null,"N",null,null,"F",null,null,"201212041800",null,null,null,"OBX|2|CE|46737-3^Galactosemias newborn screen interpretation^LN|1|LA18592-8\\S\\In range\\S\\LN|||N|||F|||20191024062322"]
[3,12,"Galactosemia","C",3,"TX","57704-9","Galactosemias newborn screening comment-discussion","LN",null,1,"Negative",null,null,"N",null,null,"F",null,null,"201212041800",null,null,null,"OBX|3|TX|57704-9^Galactosemias newborn screening comment-discussion^LN|1|Negative|||N|||F|||20191024062322"]
[]
["*- Sequence in which the OBXs are sent can differ "]

{"sheet":"OBR13-Hemoglobinpathies","index":27,"n_rows":52,"n_cols":8,"rows_kept":52,"cut":false,"hidden":false,"merged":[]}
["SEQ","LEN","DT","OPT","ELEMENT NAME","SAMPLE DATA","COMMENTS","SAMPLE SEGEMENT MESSAGE TEXT"]
[0,4,"SI","R","Element Code","OBR",null,{"$f":"joinString(F2:F52,\"|\")","v":"OBR|13|25989006^FormNumber||54081-5^Hemoglobinopathies newborn screening panel^LN|||201008072055|||||||20100806||11356370^CUNNINGHAM^REBECCA^^^^^^NPI||||||201212041437|||F|||||||||||||||||||||||||"}]
[1,4,"SI","R","Set ID - OBR","13"]
[2,22,"El","R","Placer Order\nNumber",{"$f":"ORC!F4","v":"25989006^FormNumber"},"Order number for the order message assigned by the order placer\nSame value as ORC-2."]
[3,22,"El","X","Filler Order Number",null,"Not Supported"]
[4,250,"CE","R","Universal Service ID","54081-5^Hemoglobinopathies newborn screening panel^LN","Code for the observation request:"]
[5,2,"ID","X","Priority - OBR",null,"Not Supported"]
[6,26,"TS","X","Requested Date/Time",null,"Not Supported"]
[7,26,"TS","R","Observation Date/Time #","201008072055","Enter the specimen collection date/time"]
[8,26,"TS","X","Observation End\nDate/Time #",null,"Not supported"]
[9,20,"CQ","X","Collection Volume",null,"Not supported"]
[10,250,"XCN","O","Collector Identifier",null,"Not supported"]
[11,1,"ID","X","Specimen Action Code",null,"Not supported"]
[12,250,"CE","X","Danger Code",null,"Not supported"]
[13,300,"ST","X","Relevant Clinical Info.",null,"Not supported"]
[14,26,"TS","R","Specimen Receiver Date/Time","20100806","Transfusion Date"]
[15,300,"SPS","X","Specimen Source",null,"Not supported"]
[16,250,"XCN","R","Ordering Provider",{"$f":"ORC!F14","v":"11356370^CUNNINGHAM^REBECCA^^^^^^NPI"},"Provider ordering the laboratory test. Same value as ORC-12."]
[17,250,"XTN","X","Order Callback Phone Number",null,"Not supported"]
[18,60,"ST","X","Place Field 1",null,"Not supported"]
[19,60,"ST","X","Place Field 2",null,"Not supported"]
[20,60,"ST","X","Filler Field 1",null,"Not supported"]
[21,60,"ST","X","Filler Field 2",null,"Not supported"]
[22,26,"TS","R","Results Rpt/Status Chng - Date/Time","201212041437","Message generation date"]
[23,40,"MOC","X","Charge To Practice",null,"Not supported"]
[24,10,"ID","X","Diagnostic Serv Set ID",null,"Not supported"]
[25,1,"ID","R","Result Status","F","F - Final"]
[26,400,"PRL","X","Parent Result",null,"Not supported"]
[27,200,"TQ","X","Quantity/Timing",null,"Not supported"]
[28,250,"XCN","X","Result Copies To",null,"Not supported"]
[29,200,"EIP","RE","Parent ID"]
[30,20,"ID","X","Transportation Mode",null,"Not supported"]
[31,250,"CE","X","Reason for Study",null,"Not supported"]
[32,200,"NDL","X","Principal result Interpreter",null,"Not supported"]
[33,200,"NDL","X","Assistant Result Interpreter",null,"Not supported"]
[34,200,"NDL","X","Technician",null,"Not supported"]
[35,200,"NDL","X","Transcriptionist",null,"Not supported"]
[36,26,"TS","X","Scheduled Date/Time",null,"Not supported"]
[37,4,"NM","X","Number of Sample Containers",null,"Not supported"]
[38,250,"CE","X","Transport Logistics of Collected Sample",null,"Not supported"]
[39,250,"CE","X","Collector's Comment",null,"Not supported"]
[40,250,"CE","X","Transport Arrangement Responsibility",null,"Not supported"]
[41,30,"ID","X","Transport Arranged",null,"Not supported"]
[42,1,"ID","X","Escort Required",null,"Not supported"]
[43,250,"CE","X","Planned Patient Transport Comment",null,"Not supported"]
[44,250,"CE","X","Procedure Code",null,"Not supported"]
[45,250,"CE","X","Procedure Code Modifier",null,"Not supported"]
[46,250,"CE","X","Placer Supplemental Service Information",null,"Not supported"]
[47,250,"CE","X","Filler Supplemental Service Information",null,"Not supported"]
[48,250,"CE","X","Medically Necessary Duplicate Procedure Reason",null,"Not supported"]
[49,2,"IS","X","Result Handling ",null,"Not supported"]
[50,250,"CE","X","Parent Universal Service Identifier",null,"Not supported"]

{"sheet":"OBX-Hemoglobinpathies","index":28,"n_rows":6,"n_cols":25,"rows_kept":6,"cut":false,"hidden":false,"merged":[]}
["#","Section","Section Desc","Usage","Sequence","Data Type","LOINC #","LOINC Name","Value Type","Local Code","Sub-ID","Value","Units","Range","Abnormal Flags","Probability","Nature of Abnormal\nTest","Observation Result\nStatus","Effective Date of\nReference Range\nValues","User Defined Access\nChecks","Date/Time of the\nObservation","Producer's\nReference","Responsible\nObserver","Observation\nMethod","Message Text"]
[null,null,null,null,"OBX 1(Required)","OBX 2 (Required)","OBX 3.1 (Required)","OBX 3.2 (Required)","OBX 3.3 (Required)",null,"OBX 4","OBX 5 (Required)","OBX 6 (Required)","OBX 7 (Required)","OBX 8 (Required)",null,null,"OBX 11 (Required)",null,null,"OBX 14 (Required)"]
[1,13,"Hemoglobinpathies","C",1,"TX","54104-5","Hemoglobin pattern","LN",null,1,"FA",null,null,"N",null,null,"F",null,null,"201212041800",null,null,null,{"$f":"CONCATENATE(\"OBX|\",joinString(E3:F3,\"|\"),\"|\",joinString(G3:J3,\"^\"),\"|\",joinString(K3:U3,\"|\"))","v":"OBX|1|TX|54104-5^Hemoglobin pattern^LN^|1|FA|||N|||F|||201212041800"}]
[2,13,"Hemoglobinpathies","C",2,"TX","57703-1","Hemoglobin disorders newborn screening comment/discussion","LN",null,1,"Usual hemoglobin pattern. These results assume no transfusion prior to testing and do not rule out the possibility of a thalassemia trait or rare hemoglobin variants.",null,null,"N",null,null,"F",null,null,"201212041800",null,null,null,{"$f":"CONCATENATE(\"OBX|\",joinString(E4:F4,\"|\"),\"|\",joinString(G4:J4,\"^\"),\"|\",joinString(K4:U4,\"|\"))","v":"OBX|2|TX|57703-1^Hemoglobin disorders newborn screening comment/discussion^LN^|1|Usual hemoglobin pattern. These results assume no transfusion prior to testing and do not rule out the possibility of a thalassemia trait or rare hemoglobin variants.|||N|||F|||201212041800"}]
[]
[null,null,null,"*- Sequence in which the OBXs are sent can differ "]

{"sheet":"OBR14-Biotinidase","index":29,"n_rows":52,"n_cols":8,"rows_kept":52,"cut":false,"hidden":false,"merged":[]}
["SEQ","LEN","DT","OPT","ELEMENT NAME","SAMPLE DATA","COMMENTS","SAMPLE SEGEMENT MESSAGE TEXT"]
[0,4,"SI","R","Element Code","OBR",null,{"$f":"joinString(F2:F52,\"|\")","v":"OBR|14|25989006^FormNumber||57087-9^Biotinidase newborn screening panel^LN|||201008072055|||||||20100806||11356370^CUNNINGHAM^REBECCA^^^^^^NPI||||||201212041437|||F|||||||||||||||||||||||||"}]
[1,4,"SI","R","Set ID - OBR","14"]
[2,22,"El","R","Placer Order\nNumber",{"$f":"ORC!F4","v":"25989006^FormNumber"},"Order number for the order message assigned by the order placer\nSame value as ORC-2."]
[3,22,"El","X","Filler Order Number",null,"Not Supported"]
[4,250,"CE","R","Universal Service ID","57087-9^Biotinidase newborn screening panel^LN","Code for the observation request:"]
[5,2,"ID","X","Priority - OBR",null,"Not Supported"]
[6,26,"TS","X","Requested Date/Time",null,"Not Supported"]
[7,26,"TS","R","Observation Date/Time #","201008072055","Enter the specimen collection date/time"]
[8,26,"TS","X","Observation End\nDate/Time #",null,"Not supported"]
[9,20,"CQ","X","Collection Volume",null,"Not supported"]
[10,250,"XCN","O","Collector Identifier",null,"Not supported"]
[11,1,"ID","X","Specimen Action Code",null,"Not supported"]
[12,250,"CE","X","Danger Code",null,"Not supported"]
[13,300,"ST","X","Relevant Clinical Info.",null,"Not supported"]
[14,26,"TS","R","Specimen Receiver Date/Time","20100806","Transfusion Date"]
[15,300,"SPS","X","Specimen Source",null,"Not supported"]
[16,250,"XCN","R","Ordering Provider",{"$f":"ORC!F14","v":"11356370^CUNNINGHAM^REBECCA^^^^^^NPI"},"Provider ordering the laboratory test. Same value as ORC-12."]
[17,250,"XTN","X","Order Callback Phone Number",null,"Not supported"]
[18,60,"ST","X","Place Field 1",null,"Not supported"]
[19,60,"ST","X","Place Field 2",null,"Not supported"]
[20,60,"ST","X","Filler Field 1",null,"Not supported"]
[21,60,"ST","X","Filler Field 2",null,"Not supported"]
[22,26,"TS","R","Results Rpt/Status Chng - Date/Time","201212041437","Message generation date"]
[23,40,"MOC","X","Charge To Practice",null,"Not supported"]
[24,10,"ID","X","Diagnostic Serv Set ID",null,"Not supported"]
[25,1,"ID","R","Result Status","F","F - Final"]
[26,400,"PRL","X","Parent Result",null,"Not supported"]
[27,200,"TQ","X","Quantity/Timing",null,"Not supported"]
[28,250,"XCN","X","Result Copies To",null,"Not supported"]
[29,200,"EIP","RE","Parent ID"]
[30,20,"ID","X","Transportation Mode",null,"Not supported"]
[31,250,"CE","X","Reason for Study",null,"Not supported"]
[32,200,"NDL","X","Principal result Interpreter",null,"Not supported"]
[33,200,"NDL","X","Assistant Result Interpreter",null,"Not supported"]
[34,200,"NDL","X","Technician",null,"Not supported"]
[35,200,"NDL","X","Transcriptionist",null,"Not supported"]
[36,26,"TS","X","Scheduled Date/Time",null,"Not supported"]
[37,4,"NM","X","Number of Sample Containers",null,"Not supported"]
[38,250,"CE","X","Transport Logistics of Collected Sample",null,"Not supported"]
[39,250,"CE","X","Collector's Comment",null,"Not supported"]
[40,250,"CE","X","Transport Arrangement Responsibility",null,"Not supported"]
[41,30,"ID","X","Transport Arranged",null,"Not supported"]
[42,1,"ID","X","Escort Required",null,"Not supported"]
[43,250,"CE","X","Planned Patient Transport Comment",null,"Not supported"]
[44,250,"CE","X","Procedure Code",null,"Not supported"]
[45,250,"CE","X","Procedure Code Modifier",null,"Not supported"]
[46,250,"CE","X","Placer Supplemental Service Information",null,"Not supported"]
[47,250,"CE","X","Filler Supplemental Service Information",null,"Not supported"]
[48,250,"CE","X","Medically Necessary Duplicate Procedure Reason",null,"Not supported"]
[49,2,"IS","X","Result Handling ",null,"Not supported"]
[50,250,"CE","X","Parent Universal Service Identifier",null,"Not supported"]

{"sheet":"OBX-Biotinidase","index":30,"n_rows":7,"n_cols":25,"rows_kept":7,"cut":false,"hidden":false,"merged":[]}
["#","Section","Section Desc","Usage","Sequence","Data Type","LOINC #","LOINC Name","Value Type","Local Code","Sub-ID","Value","Units","Range","Abnormal Flags","Probability","Nature of Abnormal\nTest","Observation Result\nStatus","Effective Date of\nReference Range\nValues","User Defined Access\nChecks","Date/Time of the\nObservation","Producer's\nReference","Responsible\nObserver","Observation\nMethod","Message Text"]
[null,null,null,null,"OBX 1(Required)","OBX 2 (Required)","OBX 3.1 (Required)","OBX 3.2 (Required)","OBX 3.3 (Required)",null,"OBX 4","OBX 5 (Required)","OBX 6 (Required)","OBX 7 (Required)","OBX 8 (Required)",null,null,"OBX 11 (Required)",null,null,"OBX 14 (Required)"]
[1,14,"Biotinidase","C",1,"CE","46761-3 ","Biotinidase deficiency newborn screen interpretation","LN",null,1,"LA6626-1^Normal^LN",null,null,"N",null,null,"F",null,null,"201212041800",null,null,null,{"$f":"CONCATENATE(\"OBX|\",joinString(E3:F3,\"|\"),\"|\",joinString(G3:J3,\"^\"),\"|\",joinString(K3:U3,\"|\"))","v":"OBX|1|CE|46761-3 ^Biotinidase deficiency newborn screen interpretation^LN^|1|LA6626-1^Normal^LN|||N|||F|||201212041800"}]
[2,14,"Biotinidase","C",2,"NM","75217-0","Biotinidase [Enzymatic activity/volume] in Dried blood spot","LN",null,1,15,"ERU",">10","N",null,null,"F",null,null,"201212041800",null,null,null,{"$f":"CONCATENATE(\"OBX|\",joinString(E4:F4,\"|\"),\"|\",joinString(G4:J4,\"^\"),\"|\",joinString(K4:U4,\"|\"))","v":"OBX|2|NM|75217-0^Biotinidase [Enzymatic activity/volume] in Dried blood spot^LN^|1|15|ERU|>10|N|||F|||201212041800"}]
[3,14,"Biotinidase","C",3,"TX","57699-1","Biotinidase deficiency newborn screening comment-discussion","LN",null,1,"Interpretation Text",null,null,"N",null,null,"F",null,null,"201212041800",null,null,null,{"$f":"CONCATENATE(\"OBX|\",joinString(E5:F5,\"|\"),\"|\",joinString(G5:J5,\"^\"),\"|\",joinString(K5:U5,\"|\"))","v":"OBX|3|TX|57699-1^Biotinidase deficiency newborn screening comment-discussion^LN^|1|Interpretation Text|||N|||F|||201212041800"}]
[]
["*- Sequence in which the OBXs are sent can differ "]

{"sheet":"OBR15-SCID","index":31,"n_rows":52,"n_cols":8,"rows_kept":52,"cut":false,"hidden":false,"merged":[]}
["SEQ","LEN","DT","OPT","ELEMENT NAME","SAMPLE DATA","COMMENTS","SAMPLE SEGEMENT MESSAGE TEXT"]
[0,4,"SI","R","Element Code","OBR",null,{"$f":"joinString(F2:F52,\"|\")","v":"OBR|15|25989006^FormNumber||62333-0^Severe combined immunodeficiency (SCID) newborn screening panel^LN|||201008072055|||||||20100806||11356370^CUNNINGHAM^REBECCA^^^^^^NPI||||||201212041437|||F|||||||||||||||||||||||||"}]
[1,4,"SI","R","Set ID - OBR","15"]
[2,22,"El","R","Placer Order\nNumber",{"$f":"ORC!F4","v":"25989006^FormNumber"},"Order number for the order message assigned by the order placer\nSame value as ORC-2."]
[3,22,"El","X","Filler Order Number",null,"Not Supported"]
[4,250,"CE","R","Universal Service ID","62333-0^Severe combined immunodeficiency (SCID) newborn screening panel^LN","Code for the observation request:"]
[5,2,"ID","X","Priority - OBR",null,"Not Supported"]
[6,26,"TS","X","Requested Date/Time",null,"Not Supported"]
[7,26,"TS","R","Observation Date/Time #","201008072055","Enter the specimen collection date/time"]
[8,26,"TS","X","Observation End\nDate/Time #",null,"Not supported"]
[9,20,"CQ","X","Collection Volume",null,"Not supported"]
[10,250,"XCN","O","Collector Identifier",null,"Not supported"]
[11,1,"ID","X","Specimen Action Code",null,"Not supported"]
[12,250,"CE","X","Danger Code",null,"Not supported"]
[13,300,"ST","X","Relevant Clinical Info.",null,"Not supported"]
[14,26,"TS","R","Specimen Receiver Date/Time","20100806","Transfusion Date"]
[15,300,"SPS","X","Specimen Source",null,"Not supported"]
[16,250,"XCN","R","Ordering Provider",{"$f":"ORC!F14","v":"11356370^CUNNINGHAM^REBECCA^^^^^^NPI"},"Provider ordering the laboratory test. Same value as ORC-12."]
[17,250,"XTN","X","Order Callback Phone Number",null,"Not supported"]
[18,60,"ST","X","Place Field 1",null,"Not supported"]
[19,60,"ST","X","Place Field 2",null,"Not supported"]
[20,60,"ST","X","Filler Field 1",null,"Not supported"]
[21,60,"ST","X","Filler Field 2",null,"Not supported"]
[22,26,"TS","R","Results Rpt/Status Chng - Date/Time","201212041437","Message generation date"]
[23,40,"MOC","X","Charge To Practice",null,"Not supported"]
[24,10,"ID","X","Diagnostic Serv Set ID",null,"Not supported"]
[25,1,"ID","R","Result Status","F","F - Final"]
[26,400,"PRL","X","Parent Result",null,"Not supported"]
[27,200,"TQ","X","Quantity/Timing",null,"Not supported"]
[28,250,"XCN","X","Result Copies To",null,"Not supported"]
[29,200,"EIP","RE","Parent ID"]
[30,20,"ID","X","Transportation Mode",null,"Not supported"]
[31,250,"CE","X","Reason for Study",null,"Not supported"]
[32,200,"NDL","X","Principal result Interpreter",null,"Not supported"]
[33,200,"NDL","X","Assistant Result Interpreter",null,"Not supported"]
[34,200,"NDL","X","Technician",null,"Not supported"]
[35,200,"NDL","X","Transcriptionist",null,"Not supported"]
[36,26,"TS","X","Scheduled Date/Time",null,"Not supported"]
[37,4,"NM","X","Number of Sample Containers",null,"Not supported"]
[38,250,"CE","X","Transport Logistics of Collected Sample",null,"Not supported"]
[39,250,"CE","X","Collector's Comment",null,"Not supported"]
[40,250,"CE","X","Transport Arrangement Responsibility",null,"Not supported"]
[41,30,"ID","X","Transport Arranged",null,"Not supported"]
[42,1,"ID","X","Escort Required",null,"Not supported"]
[43,250,"CE","X","Planned Patient Transport Comment",null,"Not supported"]
[44,250,"CE","X","Procedure Code",null,"Not supported"]
[45,250,"CE","X","Procedure Code Modifier",null,"Not supported"]
[46,250,"CE","X","Placer Supplemental Service Information",null,"Not supported"]
[47,250,"CE","X","Filler Supplemental Service Information",null,"Not supported"]
[48,250,"CE","X","Medically Necessary Duplicate Procedure Reason",null,"Not supported"]
[49,2,"IS","X","Result Handling ",null,"Not supported"]
[50,250,"CE","X","Parent Universal Service Identifier",null,"Not supported"]

{"sheet":"OBX-SCID","index":32,"n_rows":59,"n_cols":25,"rows_kept":59,"cut":false,"hidden":false,"merged":[]}
["#","Section","Section Desc","Usage","Sequence","Data Type","LOINC #","LOINC Name","Value Type","Local Code","Sub-ID","Value","Units","Range","Abnormal Flags","Probability","Nature of Abnormal\nTest","Observation Result\nStatus","Effective Date of\nReference Range\nValues","User Defined Access\nChecks","Date/Time of the\nObservation","Producer's\nReference","Responsible\nObserver","Observation\nMethod","Message Text"]
[null,null,null,null,"OBX 1(Required)","OBX 2 (Required)","OBX 3.1 (Required)","OBX 3.2 (Required)","OBX 3.3 (Required)",null,"OBX 4","OBX 5 (Required)","OBX 6 (Required)","OBX 7 (Required)","OBX 8 (Required)",null,null,"OBX 11 (Required)",null,null,"OBX 14 (Required)"]
[1,15,"SCID","C",1,"CE","62321-5","Severe combined immunodeficiency newborn screen interpretation","LN",null,1,"LA6626-1^Normal^LN",null,null,"N",null,null,"F",null,null,"201212041800",null,null,null,{"$f":"CONCATENATE(\"OBX|\",joinString(E3:F3,\"|\"),\"|\",joinString(G3:J3,\"^\"),\"|\",joinString(K3:U3,\"|\"))","v":"OBX|1|CE|62321-5^Severe combined immunodeficiency newborn screen interpretation^LN^|1|LA6626-1^Normal^LN|||N|||F|||201212041800"}]
[2,15,"SCID","C",2,"TX","62322-3","Severe combined immunodeficiency newborn screening comment-discussion","LN",null,1,"N/A",null,null,"N",null,null,"F",null,null,"201212041800",null,null,null,"OBX|2|TX|62322-3^Severe combined immunodeficiency newborn screening comment-discussion^LN^|1|N/A|||N|||F|||201212041800"]
[3,15,"SCID","C",3,"NM","62320-7","T-cell receptor excision circle [#/​volume] in Dried blood spot by Probe and target amplification method","LN",null,1,100,"{copies}",">60","N",null,null,"F",null,null,"201212041800",null,null,null,"OBX|3|NM|62320-7^T-cell receptor excision circle [#/​volume] in Dried blood spot by Probe and target amplification method^LN^|1|100|{copies}|>60|N|||F|||201212041800"]
[4,15,"SCID","C",4,"NM","6690-2","Leukocytes [#/volume] in Blood by Automated count","LN",null,1,20,"Thous/uL","9.00 - 30.00","N",null,null,"F",null,null,"201601120000",null,null,null,"OBX|4|NM|6690-2^Leukocytes [#/volume] in Blood by Automated count^LN^|1|20|Thous/uL|9.00 - 30.00|N|||F|||201601120000"]
[5,15,"SCID","C",5,"NM","789-8","Erythrocytes [#/volume] in Blood by Automated count","LN",null,1,4,"Mill/uL","3.90 - 5.90","N",null,null,"F",null,null,"201601120000",null,null,null,"OBX|5|NM|789-8^Erythrocytes [#/volume] in Blood by Automated count^LN^|1|4|Mill/uL|3.90 - 5.90|N|||F|||201601120000"]
[6,15,"SCID","C",6,"NM","718-7","Hemoglobin [Mass/volume] in Blood","LN",null,1,15,"g/dL","13.4 - 19.9","N",null,null,"F",null,null,"201601120000",null,null,null,"OBX|6|NM|718-7^Hemoglobin [Mass/volume] in Blood^LN^|1|15|g/dL|13.4 - 19.9|N|||F|||201601120000"]
[7,15,"SCID","C",7,"NM","4544-3","Hematocrit [Volume Fraction] of Blood by Automated count","LN",null,1,50,"%","42 - 65","N",null,null,"F",null,null,"201601120000",null,null,null,"OBX|7|NM|4544-3^Hematocrit [Volume Fraction] of Blood by Automated count^LN^|1|50|%|42 - 65|N|||F|||201601120000"]
[8,15,"SCID","C",8,"NM","787-2","Erythrocyte mean corpuscular volume [Entitic volume] by Automated count","LN",null,1,115,"fL","88 - 123","N",null,null,"F",null,null,"201601120000",null,null,null,"OBX|8|NM|787-2^Erythrocyte mean corpuscular volume [Entitic volume] by Automated count^LN^|1|115|fL|88 - 123|N|||F|||201601120000"]
[9,15,"SCID","C",9,"NM","785-6","Erythrocyte mean corpuscular hemoglobin [Entitic mass] by Automated count","LN",null,1,34,"pg","31 - 37","N",null,null,"F",null,null,"201601120000",null,null,null,"OBX|9|NM|785-6^Erythrocyte mean corpuscular hemoglobin [Entitic mass] by Automated count^LN^|1|34|pg|31 - 37|N|||F|||201601120000"]
[10,15,"SCID","C",10,"NM","786-4","Erythrocyte mean corpuscular hemoglobin concentration [Mass/volume] by Automated count","LN",null,1,29,"g/dL","28 - 36","N",null,null,"F",null,null,"201601120000",null,null,null,"OBX|10|NM|786-4^Erythrocyte mean corpuscular hemoglobin concentration [Mass/volume] by Automated count^LN^|1|29|g/dL|28 - 36|N|||F|||201601120000"]
[11,15,"SCID","C",11,"NM","777-3","Platelets [#/volume] in Blood by Automated count","LN",null,1,300,"Thous/uL","150 - 400","N",null,null,"F",null,null,"201601120000",null,null,null,"OBX|11|NM|777-3^Platelets [#/volume] in Blood by Automated count^LN^|1|300|Thous/uL|150 - 400|N|||F|||201601120000"]
[12,15,"SCID","C",12,"NM","776-5","Platelet mean volume [Entitic volume] in Blood by Automated count","LN",null,1,9,"fL","7.5 - 11.60","N",null,null,"F",null,null,"201601120000",null,null,null,"OBX|12|NM|776-5^Platelet mean volume [Entitic volume] in Blood by Automated count^LN^|1|9|fL|7.5 - 11.60|N|||F|||201601120000"]
[13,15,"SCID","C",13,"NM","788-0","Platelet distribution width [Entitic volume] in Blood by Automated count","LN",null,1,13,"%","11.50 - 16","N",null,null,"F",null,null,"201601120000",null,null,null,"OBX|13|NM|788-0^Platelet distribution width [Entitic volume] in Blood by Automated count^LN^|1|13|%|11.50 - 16|N|||F|||201601120000"]
[14,15,"SCID","C",14,"NM","751-8","Neutrophils [#/volume] in Blood by Automated count","LN",null,1,8000,"Cells/mcL","1500 - 10000","N",null,null,"F",null,null,"201601120000",null,null,null,"OBX|14|NM|751-8^Neutrophils [#/volume] in Blood by Automated count^LN^|1|8000|Cells/mcL|1500 - 10000|N|||F|||201601120000"]
[15,15,"SCID","C",15,"NM","26507-4","Neutrophils.band form [#/volume] in Blood",null,29153,1,1300,"Cells/mcL","500 - 1700","N",null,null,"F",null,null,"201601120000",null,null,null,"OBX|15|NM|26507-4^Neutrophils.band form [#/volume] in Blood^^29153|1|1300|Cells/mcL|500 - 1700|N|||F|||201601120000"]
[16,15,"SCID","C",16,"NM","30433-7","Metamyelocytes [#/volume] in Blood",null,29154,1,1,"Cells/mcL","0 - 0","N",null,null,"F",null,null,"201601120000",null,null,null,"OBX|16|NM|30433-7^Metamyelocytes [#/volume] in Blood^^29154|1|1|Cells/mcL|0 - 0|N|||F|||201601120000"]
[17,15,"SCID","C",17,"NM","30446-9","Myelocytes [#/volume] in Blood",null,29162,1,0,"Cells/mcL","0 - 0","N",null,null,"F",null,null,"201601120000",null,null,null,"OBX|17|NM|30446-9^Myelocytes [#/volume] in Blood^^29162|1|0|Cells/mcL|0 - 0|N|||F|||201601120000"]
[18,15,"SCID","C",18,"NM","26523-1","Promyelocytes [#/volume] in Blood",null,29163,1,0,"Cells/mcL","0 - 0","N",null,null,"F",null,null,"201601120000",null,null,null,"OBX|18|NM|26523-1^Promyelocytes [#/volume] in Blood^^29163|1|0|Cells/mcL|0 - 0|N|||F|||201601120000"]
[19,15,"SCID","C",19,"NM","731-0","Lymphocytes [#/volume] in Blood by Automated count",null,29164,1,10000,"Cells/mcL","2000 - 17000","N",null,null,"F",null,null,"201601120000",null,null,null,"OBX|19|NM|731-0^Lymphocytes [#/volume] in Blood by Automated count^^29164|1|10000|Cells/mcL|2000 - 17000|N|||F|||201601120000"]
[20,15,"SCID","C",20,"NM","742-7","Monocytes [#/volume] in Blood by Automated count",null,29165,1,1500,"Cells/mcL","300 - 2400","N",null,null,"F",null,null,"201601120000",null,null,null,"OBX|20|NM|742-7^Monocytes [#/volume] in Blood by Automated count^^29165|1|1500|Cells/mcL|300 - 2400|N|||F|||201601120000"]
[21,15,"SCID","C",21,"NM","711-2","Eosinophils [#/volume] in Blood by Automated count",null,29166,1,600,"Cells/mcL","15 - 800","N",null,null,"F",null,null,"201601120000",null,null,null,"OBX|21|NM|711-2^Eosinophils [#/volume] in Blood by Automated count^^29166|1|600|Cells/mcL|15 - 800|N|||F|||201601120000"]
[22,15,"SCID","C",22,"NM","704-7","Basophils [#/volume] in Blood by Automated count",null,29167,1,230,"Cells/mcL","0 - 250","N",null,null,"F",null,null,"201601120000",null,null,null,"OBX|22|NM|704-7^Basophils [#/volume] in Blood by Automated count^^29167|1|230|Cells/mcL|0 - 250|N|||F|||201601120000"]
[23,15,"SCID","C",23,"NM","30376-8","Blasts [#/volume] in Blood",null,29168,1,0,"Cells/mcL","0 - 0","N",null,null,"F",null,null,"201601120000",null,null,null,"OBX|23|NM|30376-8^Blasts [#/volume] in Blood^^29168|1|0|Cells/mcL|0 - 0|N|||F|||201601120000"]
[24,15,"SCID","C",24,"NM","30392-5","Nucleated erythrocytes [#/volume] in Blood",null,29169,1,1,"Cells/mcL","0 - 0","N",null,null,"F",null,null,"201601120000",null,null,null,"OBX|24|NM|30392-5^Nucleated erythrocytes [#/volume] in Blood^^29169|1|1|Cells/mcL|0 - 0|N|||F|||201601120000"]
[25,15,"SCID","C",25,"NM","770-8","Neutrophils/100 leukocytes in Blood by Automated count",null,29170,1,0,"%",null,"N",null,null,"F",null,null,"201601120000",null,null,null,"OBX|25|NM|770-8^Neutrophils/100 leukocytes in Blood by Automated count^^29170|1|0|%||N|||F|||201601120000"]
[26,15,"SCID","C",26,"NM","26508-2","Neutrophils.band form/100 leukocytes in Blood",null,29171,1,20,"%",null,"N",null,null,"F",null,null,"201601120000",null,null,null,"OBX|26|NM|26508-2^Neutrophils.band form/100 leukocytes in Blood^^29171|1|20|%||N|||F|||201601120000"]
[27,15,"SCID","C",27,"NM","28541-1","Metamyelocytes/100 leukocytes in Blood",null,29172,1,26,"%",null,"N",null,null,"F",null,null,"201601120000",null,null,null,"OBX|27|NM|28541-1^Metamyelocytes/100 leukocytes in Blood^^29172|1|26|%||N|||F|||201601120000"]
[28,15,"SCID","C",28,"NM","26498-6","Myelocytes/100 leukocytes in Blood",null,29173,1,35,"%",null,"N",null,null,"F",null,null,"201601120000",null,null,null,"OBX|28|NM|26498-6^Myelocytes/100 leukocytes in Blood^^29173|1|35|%||N|||F|||201601120000"]
[29,15,"SCID","C",29,"NM","26524-9","Promyelocytes/100 leukocytes in Blood",null,29174,1,45,"%",null,"N",null,null,"F",null,null,"201601120000",null,null,null,"OBX|29|NM|26524-9^Promyelocytes/100 leukocytes in Blood^^29174|1|45|%||N|||F|||201601120000"]
[30,15,"SCID","C",30,"NM","736-9","Lymphocytes/100 leukocytes in Blood by Automated count",null,29175,1,60,"%",null,"N",null,null,"F",null,null,"201601120000",null,null,null,"OBX|30|NM|736-9^Lymphocytes/100 leukocytes in Blood by Automated count^^29175|1|60|%||N|||F|||201601120000"]
[31,15,"SCID","C",31,"NM","13046-8","Lymphocytes Variant/100 leukocytes in Blood",null,29176,1,49,"%",null,"N",null,null,"F",null,null,"201601120000",null,null,null,"OBX|31|NM|13046-8^Lymphocytes Variant/100 leukocytes in Blood^^29176|1|49|%||N|||F|||201601120000"]
[32,15,"SCID","C",32,"NM","5905-5","Monocytes/100 leukocytes in Blood by Automated count",null,29177,1,58,"%",null,"N",null,null,"F",null,null,"201601120000",null,null,null,"OBX|32|NM|5905-5^Monocytes/100 leukocytes in Blood by Automated count^^29177|1|58|%||N|||F|||201601120000"]
[33,15,"SCID","C",33,"NM","713-8","Eosinophils/100 leukocytes in Blood by Automated count",null,29178,1,78,"%",null,"N",null,null,"F",null,null,"201601120000",null,null,null,{"$f":"CONCATENATE(\"OBX|\",joinString(E35:F35,\"|\"),\"|\",joinString(G35:J35,\"^\"),\"|\",joinString(K35:U35,\"|\"))","v":"OBX|33|NM|713-8^Eosinophils/100 leukocytes in Blood by Automated count^^29178|1|78|%||N|||F|||201601120000"}]
[34,15,"SCID","C",34,"NM","706-2","Basophils/100 leukocytes in Blood by Automated count",null,29179,1,90,"%",null,"N",null,null,"F",null,null,"201601120000",null,null,null,"OBX|34|NM|706-2^Basophils/100 leukocytes in Blood by Automated count^^29179|1|90|%||N|||F|||201601120000"]
[35,15,"SCID","C",35,"NM","26446-5","Blasts/100 leukocytes in Blood",null,29180,1,67,"%",null,"N",null,null,"F",null,null,"201601120000",null,null,null,"OBX|35|NM|26446-5^Blasts/100 leukocytes in Blood^^29180|1|67|%||N|||F|||201601120000"]
[36,15,"SCID","C",36,"NM","19048-8","Nucleated erythrocytes/100 leukocytes [Ratio] in Blood",null,29181,1,74,"/100 WBC",null,"N",null,null,"F",null,null,"201601120000",null,null,null,"OBX|36|NM|19048-8^Nucleated erythrocytes/100 leukocytes [Ratio] in Blood^^29181|1|74|/100 WBC||N|||F|||201601120000"]
[37,15,"SCID","C",37,"NM","8122-4","CD3 cells [#/volume] in Blood",null,"86007711^CD3+ T-Cells, Absolute^L",1,3000,"cells/uL","2550 - 5500","N",null,null,"F",null,null,"201601120000",null,null,null,"OBX|37|NM|8122-4^CD3 cells [#/volume] in Blood^^86007711^CD3+ T-Cells, Absolute^L|1|3000|cells/uL|2550 - 5500|N|||F|||201601120000"]
[38,15,"SCID","C",38,"NM","8124-0","CD3 cells/100 cells in Blood",null,"86007712^CD3+ T-Cells, Percent^L",1,60,"% of lymphocytes","53 - 84","N",null,null,"F",null,null,"201601120000",null,null,null,"OBX|38|NM|8124-0^CD3 cells/100 cells in Blood^^86007712^CD3+ T-Cells, Percent^L|1|60|% of lymphocytes|53 - 84|N|||F|||201601120000"]
[39,15,"SCID","C",39,"NM","24467-3","CD3+CD4+ (T4 helper) cells [#/volume] in Blood",null,"86007713^CD3+/CD4+ T-Helper, Abs^L",1,3500,"cells/uL","1600 - 4000","N",null,null,"F",null,null,"201601120000",null,null,null,"OBX|39|NM|24467-3^CD3+CD4+ (T4 helper) cells [#/volume] in Blood^^86007713^CD3+/CD4+ T-Helper, Abs^L|1|3500|cells/uL|1600 - 4000|N|||F|||201601120000"]
[40,15,"SCID","C",40,"NM","8123-2","CD3+CD4+ (T4 helper) cells/100 cells in Blood",null,"86007714^CD3+/CD4+ T-Helper,Percent^L",1,50,"% of lymphocytes","35 - 64","N",null,null,"F",null,null,"201601120000",null,null,null,"OBX|40|NM|8123-2^CD3+CD4+ (T4 helper) cells/100 cells in Blood^^86007714^CD3+/CD4+ T-Helper,Percent^L|1|50|% of lymphocytes|35 - 64|N|||F|||201601120000"]
[41,15,"SCID","C",41,"NM","14135-8","CD3+CD8+ (T8 suppressor cells) cells [#/volume] in Blood",null,"86007715^CD3+/CD8+ T-Cytotoxic, Abs^L",1,1500,"cells/uL","560 - 1700","N",null,null,"F",null,null,"201601120000",null,null,null,"OBX|41|NM|14135-8^CD3+CD8+ (T8 suppressor cells) cells [#/volume] in Blood^^86007715^CD3+/CD8+ T-Cytotoxic, Abs^L|1|1500|cells/uL|560 - 1700|N|||F|||201601120000"]
[42,15,"SCID","C",42,"NM","8101-8","CD3+CD8+ (T8 suppressor cells) cells/100 cells in Blood",null,"86007716^CD3+/CD8+T-Cytotox,Percent^L",1,20,"% of lymphocytes","12.00 - 28.00","N",null,null,"F",null,null,"201601120000",null,null,null,"OBX|42|NM|8101-8^CD3+CD8+ (T8 suppressor cells) cells/100 cells in Blood^^86007716^CD3+/CD8+T-Cytotox,Percent^L|1|20|% of lymphocytes|12.00 - 28.00|N|||F|||201601120000"]
[43,15,"SCID","C",43,"NM","8116-6","CD19 cells [#/volume] in Blood",null,"86007717^CD19+ B-cells, Absolute^L",1,1500,"cells/uL","300 - 2000","N",null,null,"F",null,null,"201601120000",null,null,null,"OBX|43|NM|8116-6^CD19 cells [#/volume] in Blood^^86007717^CD19+ B-cells, Absolute^L|1|1500|cells/uL|300 - 2000|N|||F|||201601120000"]
[44,15,"SCID","C",44,"NM","8117-4","CD19 cells/100 cells in Blood",null,"86007718^CD19+ B-cells, Percent^L",1,28,"% of lymphocytes","6.00 - 32.00","N",null,null,"F",null,null,"201601120000",null,null,null,"OBX|44|NM|8117-4^CD19 cells/100 cells in Blood^^86007718^CD19+ B-cells, Percent^L|1|28|% of lymphocytes|6.00 - 32.00|N|||F|||201601120000"]
[45,15,"SCID","C",45,"NM","14108-5","CD16C+CD56+ cells [#/volume] in Blood",null,"86007719^CD16/CD56 NK-cells, Abs^L",1,1000,"cells/uL","170 - 1100","N",null,null,"F",null,null,"201601120000",null,null,null,"OBX|45|NM|14108-5^CD16C+CD56+ cells [#/volume] in Blood^^86007719^CD16/CD56 NK-cells, Abs^L|1|1000|cells/uL|170 - 1100|N|||F|||201601120000"]
[46,15,"SCID","C",46,"NM","18267-5","CD16+CD56+ cells/100 cells in Blood",null,"86007720^CD16/CD56 NK-cells,Percent^L",1,10,"% of lymphocytes","4.00 - 18.00","N",null,null,"F",null,null,"201601120000",null,null,null,"OBX|46|NM|18267-5^CD16+CD56+ cells/100 cells in Blood^^86007720^CD16/CD56 NK-cells,Percent^L|1|10|% of lymphocytes|4.00 - 18.00|N|||F|||201601120000"]
[47,15,"SCID","C",47,"NM","26759-1","CD4+CD45RA+cells [#/volume] in Blood",null,"86007721^CD3/CD4/CD45RA, Absolute^L",1,500,"cells/uL","1200 - 3700","N",null,null,"F",null,null,"201601120000",null,null,null,"OBX|47|NM|26759-1^CD4+CD45RA+cells [#/volume] in Blood^^86007721^CD3/CD4/CD45RA, Absolute^L|1|500|cells/uL|1200 - 3700|N|||F|||201601120000"]
[48,15,"SCID","C",48,"NM","13336-3","CD4+CD45RA+cells/100 cells in Blood",null,"86007722^CD3/CD4/CD45RA, Percent^L",1,80,"% of CD3/CD4 cells","64 - 95","N",null,null,"F",null,null,"201601120000",null,null,null,{"$f":"CONCATENATE(\"OBX|\",joinString(E50:F50,\"|\"),\"|\",joinString(G50:J50,\"^\"),\"|\",joinString(K50:U50,\"|\"))","v":"OBX|48|NM|13336-3^CD4+CD45RA+cells/100 cells in Blood^^86007722^CD3/CD4/CD45RA, Percent^L|1|80|% of CD3/CD4 cells|64 - 95|N|||F|||201601120000"}]
[49,15,"SCID","C",49,"NM","82743-6","CD8+CD45RA+ Cells # Bld",null,"86007723^CD3/CD8/CD45RA, Absolute^L",1,500,"cells/uL","450 - 1500","N",null,null,"F",null,null,"201601120000",null,null,null,"OBX|49|NM|82743-6^CD8+CD45RA+ Cells # Bld^^86007723^CD3/CD8/CD45RA, Absolute^L|1|500|cells/uL|450 - 1500|N|||F|||201601120000"]
[50,15,"SCID","C",50,"NM","82744-4","CD8+CD45RA+ Cells/100 CD8 NFr Bld",null,"86007724^CD3/CD8/CD45RA, Percent^L",1,15,"% of CD3/CD8 cells","56 - 88","N",null,null,"F",null,null,"201601120000",null,null,null,"OBX|50|NM|82744-4^CD8+CD45RA+ Cells/100 CD8 NFr Bld^^86007724^CD3/CD8/CD45RA, Percent^L|1|15|% of CD3/CD8 cells|56 - 88|N|||F|||201601120000"]
[51,15,"SCID","C",51,"NM","85792-0","CD3+CD4+CD45RO+ # Bld",null,"86007725^CD3/CD4/CD45RO, Absolute^L",1,250,"cells/uL","60 - 900","N",null,null,"F",null,null,"201601120000",null,null,null,"OBX|51|NM|85792-0^CD3+CD4+CD45RO+ # Bld^^86007725^CD3/CD4/CD45RO, Absolute^L|1|250|cells/uL|60 - 900|N|||F|||201601120000"]
[52,15,"SCID","C",52,"NM","85791-2","CD3+CD4+CD45RO+/100 CD3 NFr Bld",null,"86007726^CD3/CD4/CD45RO, Percent^L",1,6,"% of CD3/CD4 cells","2.00 - 22.00","N",null,null,"F",null,null,"201601120000",null,null,null,"OBX|52|NM|85791-2^CD3+CD4+CD45RO+/100 CD3 NFr Bld^^86007726^CD3/CD4/CD45RO, Percent^L|1|6|% of CD3/CD4 cells|2.00 - 22.00|N|||F|||201601120000"]
[53,15,"SCID","C",53,"NM","85790-4","CD3+CD8+CD45RO+ # Bld",null,"86007727^CD3/CD8/CD45RO, Absolute^L",1,null,"cells/uL","30 - 330","N",null,null,"F",null,null,"201601120000",null,null,null,"OBX|53|NM|85790-4^CD3+CD8+CD45RO+ # Bld^^86007727^CD3/CD8/CD45RO, Absolute^L|1||cells/uL|30 - 330|N|||F|||201601120000"]
[54,15,"SCID","C",54,"NM","85789-6","CD3+CD8+CD45RO+/100 CD3 NFr Bld",null,"86007728^CD3/CD8/CD45RO, Percent^L",1,null,"% of CD3/CD8 cells",null,"N",null,null,"F",null,null,"201601120000",null,null,null,"OBX|54|NM|85789-6^CD3+CD8+CD45RO+/100 CD3 NFr Bld^^86007728^CD3/CD8/CD45RO, Percent^L|1||% of CD3/CD8 cells||N|||F|||201601120000"]
[]
[]
["*- Sequence in which the OBXs are sent can differ "]

{"sheet":"OBR16-Pompe","index":33,"n_rows":52,"n_cols":8,"rows_kept":52,"cut":false,"hidden":false,"merged":[]}
["SEQ","LEN","DT","OPT","ELEMENT NAME","SAMPLE DATA","COMMENTS","SAMPLE SEGEMENT MESSAGE TEXT"]
[0,4,"SI","R","Element Code","OBR",null,"OBR|16|^FormNumber||63414-7^Pompe Disease newborn screening panel^^^^|||20200528000000|||||||||^Colin^Rebecca^^^^^^||||||20180503090122|||F"]
[1,4,"SI","R","Set ID - OBR","16"]
[2,22,"El","R","Placer Order\nNumber","5640550185^FormNumber","Order number for the order message assigned by the order placer\nSame value as ORC-2."]
[3,22,"El","X","Filler Order Number",null,"Not Supported"]
[4,250,"CE","R","Universal Service ID","63414-7^Pompe Disease newborn screening panel^^^^","Code for the observation request:"]
[5,2,"ID","X","Priority - OBR",null,"Not Supported"]
[6,26,"TS","X","Requested Date/Time",null,"Not Supported"]
[7,26,"TS","R","Observation Date/Time #","201611221026","Enter the specimen collection date/time"]
[8,26,"TS","X","Observation End\nDate/Time #",null,"Not supported"]
[9,20,"CQ","X","Collection Volume",null,"Not supported"]
[10,250,"XCN","O","Collector Identifier",null,"Not supported"]
[11,1,"ID","X","Specimen Action Code",null,"Not supported"]
[12,250,"CE","X","Danger Code",null,"Not supported"]
[13,300,"ST","X","Relevant Clinical Info.",null,"Not supported"]
[14,26,"TS","R","Specimen Receiver Date/Time",null,"Transfusion Date"]
[15,300,"SPS","X","Specimen Source",null,"Not supported"]
[16,250,"XCN","R","Ordering Provider","^Colin^Rebecca^^^^^^","Provider ordering the laboratory test. "]
[17,250,"XTN","X","Order Callback Phone Number",null,"Not supported"]
[18,60,"ST","X","Place Field 1",null,"Not supported"]
[19,60,"ST","X","Place Field 2",null,"Not supported"]
[20,60,"ST","X","Filler Field 1",null,"Not supported"]
[21,60,"ST","X","Filler Field 2",null,"Not supported"]
[22,26,"TS","R","Results Rpt/Status Chng - Date/Time","20160301115427","Message generation date"]
[23,40,"MOC","X","Charge To Practice",null,"Not supported"]
[24,10,"ID","X","Diagnostic Serv Set ID",null,"Not supported"]
[25,1,"ID","R","Result Status","F","F - Final"]
[26,400,"PRL","X","Parent Result",null,"Not supported"]
[27,200,"TQ","X","Quantity/Timing",null,"Not supported"]
[28,250,"XCN","X","Result Copies To",null,"Not supported"]
[29,200,"EIP","RE","Parent ID"]
[30,20,"ID","X","Transportation Mode",null,"Not supported"]
[31,250,"CE","X","Reason for Study",null,"Not supported"]
[32,200,"NDL","X","Principal result Interpreter",null,"Not supported"]
[33,200,"NDL","X","Assistant Result Interpreter",null,"Not supported"]
[34,200,"NDL","X","Technician",null,"Not supported"]
[35,200,"NDL","X","Transcriptionist",null,"Not supported"]
[36,26,"TS","X","Scheduled Date/Time",null,"Not supported"]
[37,4,"NM","X","Number of Sample Containers",null,"Not supported"]
[38,250,"CE","X","Transport Logistics of Collected Sample",null,"Not supported"]
[39,250,"CE","X","Collector's Comment",null,"Not supported"]
[40,250,"CE","X","Transport Arrangement Responsibility",null,"Not supported"]
[41,30,"ID","X","Transport Arranged",null,"Not supported"]
[42,1,"ID","X","Escort Required",null,"Not supported"]
[43,250,"CE","X","Planned Patient Transport Comment",null,"Not supported"]
[44,250,"CE","X","Procedure Code",null,"Not supported"]
[45,250,"CE","X","Procedure Code Modifier",null,"Not supported"]
[46,250,"CE","X","Placer Supplemental Service Information",null,"Not supported"]
[47,250,"CE","X","Filler Supplemental Service Information",null,"Not supported"]
[48,250,"CE","X","Medically Necessary Duplicate Procedure Reason",null,"Not supported"]
[49,2,"IS","X","Result Handling ",null,"Not supported"]
[50,250,"CE","X","Parent Universal Service Identifier",null,"Not supported"]

{"sheet":"OBX-Pompe","index":34,"n_rows":8,"n_cols":25,"rows_kept":8,"cut":false,"hidden":false,"merged":[]}
["#","Section","Section Desc","Usage","Sequence","Data Type","LOINC #","LOINC Name","Value Type","Local Code","Sub-ID","Value","Units","Range","Abnormal Flags","Probability","Nature of Abnormal\nTest","Observation Result\nStatus","Effective Date of\nReference Range\nValues","User Defined Access\nChecks","Date/Time of the\nObservation","Producer's\nReference","Responsible\nObserver","Observation\nMethod","Message Text"]
[null,null,null,null,"OBX 1(Required)","OBX 2 (Required)","OBX 3.1 (Required)","OBX 3.2 (Required)","OBX 3.3 (Required)",null,"OBX 4","OBX 5 (Required)","OBX 6 (Required)","OBX 7 (Required)","OBX 8 (Required)",null,null,"OBX 11 (Required)",null,null,"OBX 14 (Required)"]
[1,16,"Pompe","C",1,"NM","55827-0","Acid alpha glucosidase [Enzymatic activity/volume] in DBS","LN",null,1,12.923,"µmol/L/h","<2.079","N",null,null,"F",null,null,"20191024062322",null,null,null,"OBX|1|NM|55827-0^Acid alpha glucosidase [Enzymatic activity/volume] in DBS^LN|1|12.923|µmol/L/h|<2.079|N|||F|||20191024062322"]
[2,16,"Pompe","C",2,"CE","63415-4","Pompe Disease deficiency newborn screen interpretation","LN",null,1,"LA18592-8\\S\\In range\\S\\LN",null,null,"N",null,null,"F",null,null,"20191024062322",null,null,null,"OBX|2|CE|63415-4^Pompe Disease deficiency newborn screen interpretation^LN|1|LA18592-8\\S\\In range\\S\\LN|||N|||F|||20191024062322"]
[3,16,"Pompe","C",3,"TX","63416-2","Pompe Disease deficiency newborn screening comments-discussion","LN",null,1,"Negative",null,null,"N",null,null,"F",null,null,"20191024062322",null,null,null,"OBX|3|TX|63416-2^Pompe Disease deficiency newborn screening comments-discussion^LN|1|Negative|||N|||F|||20191024062322"]
[3,16,"Pompe","C",4,"TX","63416-2","Pompe Disease deficiency newborn screening comments-discussion",null,null,2,"Interpretation Comments: The acid alpha-glucosidase Enzyme activity level is above the 18% of the daily patient median and suggests it is screen negative for Pompe disease.",null,null,"N",null,null,"F",null,null,"20191024062322",null,null,null,"OBX|4|TX|63416-2^Pompe Disease deficiency newborn screening comments-discussion^LN|2|Interpretation Comments: The acid alpha-glucosidase Enzyme activity level is above the 18% of the daily patient median and suggests it is screen negative for Pompe disease.|||N|||F|||20191024062322"]
[]
["*- Sequence in which the OBXs are sent can differ "]

{"sheet":"OBR16-Pompe -Sequencing","index":35,"n_rows":52,"n_cols":8,"rows_kept":52,"cut":false,"hidden":false,"merged":[]}
["SEQ","LEN","DT","OPT","ELEMENT NAME","SAMPLE DATA","COMMENTS","SAMPLE SEGEMENT MESSAGE TEXT"]
[0,4,"SI","R","Element Code","OBR",null,"OBR|16|^FormNumber||63414-7^Pompe Disease newborn screening panel^^^^|||20200528000000|||||||||^Colin^Rebecca^^^^^^||||||20180503090122|||F"]
[1,4,"SI","R","Set ID - OBR","16"]
[2,22,"El","R","Placer Order\nNumber","5640550185^FormNumber","Order number for the order message assigned by the order placer\nSame value as ORC-2."]
[3,22,"El","X","Filler Order Number",null,"Not Supported"]
[4,250,"CE","R","Universal Service ID","63414-7^Pompe Disease newborn screening panel^^^^","Code for the observation request:"]
[5,2,"ID","X","Priority - OBR",null,"Not Supported"]
[6,26,"TS","X","Requested Date/Time",null,"Not Supported"]
[7,26,"TS","R","Observation Date/Time #","201611221026","Enter the specimen collection date/time"]
[8,26,"TS","X","Observation End\nDate/Time #",null,"Not supported"]
[9,20,"CQ","X","Collection Volume",null,"Not supported"]
[10,250,"XCN","O","Collector Identifier",null,"Not supported"]
[11,1,"ID","X","Specimen Action Code",null,"Not supported"]
[12,250,"CE","X","Danger Code",null,"Not supported"]
[13,300,"ST","X","Relevant Clinical Info.",null,"Not supported"]
[14,26,"TS","R","Specimen Receiver Date/Time",null,"Transfusion Date"]
[15,300,"SPS","X","Specimen Source",null,"Not supported"]
[16,250,"XCN","R","Ordering Provider","^Colin^Rebecca^^^^^^","Provider ordering the laboratory test. "]
[17,250,"XTN","X","Order Callback Phone Number",null,"Not supported"]
[18,60,"ST","X","Place Field 1",null,"Not supported"]
[19,60,"ST","X","Place Field 2",null,"Not supported"]
[20,60,"ST","X","Filler Field 1",null,"Not supported"]
[21,60,"ST","X","Filler Field 2",null,"Not supported"]
[22,26,"TS","R","Results Rpt/Status Chng - Date/Time","20160301115427","Message generation date"]
[23,40,"MOC","X","Charge To Practice",null,"Not supported"]
[24,10,"ID","X","Diagnostic Serv Set ID",null,"Not supported"]
[25,1,"ID","R","Result Status","F","F - Final"]
[26,400,"PRL","X","Parent Result",null,"Not supported"]
[27,200,"TQ","X","Quantity/Timing",null,"Not supported"]
[28,250,"XCN","X","Result Copies To",null,"Not supported"]
[29,200,"EIP","RE","Parent ID"]
[30,20,"ID","X","Transportation Mode",null,"Not supported"]
[31,250,"CE","X","Reason for Study",null,"Not supported"]
[32,200,"NDL","X","Principal result Interpreter",null,"Not supported"]
[33,200,"NDL","X","Assistant Result Interpreter",null,"Not supported"]
[34,200,"NDL","X","Technician",null,"Not supported"]
[35,200,"NDL","X","Transcriptionist",null,"Not supported"]
[36,26,"TS","X","Scheduled Date/Time",null,"Not supported"]
[37,4,"NM","X","Number of Sample Containers",null,"Not supported"]
[38,250,"CE","X","Transport Logistics of Collected Sample",null,"Not supported"]
[39,250,"CE","X","Collector's Comment",null,"Not supported"]
[40,250,"CE","X","Transport Arrangement Responsibility",null,"Not supported"]
[41,30,"ID","X","Transport Arranged",null,"Not supported"]
[42,1,"ID","X","Escort Required",null,"Not supported"]
[43,250,"CE","X","Planned Patient Transport Comment",null,"Not supported"]
[44,250,"CE","X","Procedure Code",null,"Not supported"]
[45,250,"CE","X","Procedure Code Modifier",null,"Not supported"]
[46,250,"CE","X","Placer Supplemental Service Information",null,"Not supported"]
[47,250,"CE","X","Filler Supplemental Service Information",null,"Not supported"]
[48,250,"CE","X","Medically Necessary Duplicate Procedure Reason",null,"Not supported"]
[49,2,"IS","X","Result Handling ",null,"Not supported"]
[50,250,"CE","X","Parent Universal Service Identifier",null,"Not supported"]

{"sheet":"OBX-Pompe - Sequencing","index":36,"n_rows":8,"n_cols":25,"rows_kept":8,"cut":false,"hidden":false,"merged":[]}
["#","Section","Section Desc","Usage","Sequence","Data Type","LOINC #","LOINC Name","Value Type","Local Code","Sub-ID","Value","Units","Range","Abnormal Flags","Probability","Nature of Abnormal\nTest","Observation Result\nStatus","Effective Date of\nReference Range\nValues","User Defined Access\nChecks","Date/Time of the\nObservation","Producer's\nReference","Responsible\nObserver","Observation\nMethod","Message Text"]
[null,null,null,null,"OBX 1(Required)","OBX 2 (Required)","OBX 3.1 (Required)","OBX 3.2 (Required)","OBX 3.3 (Required)",null,"OBX 4","OBX 5 (Required)","OBX 6 (Required)","OBX 7 (Required)","OBX 8 (Required)",null,null,"OBX 11 (Required)",null,null,"OBX 14 (Required)"]
[1,16,"Pompe","C",1,"NM","55827-0","Acid alpha glucosidase [Enzymatic activity/volume] in DBS","LN",null,1,12.923,"µmol/L/h",null,"N",null,null,"F",null,null,"201212041800",null,null,null,{"$f":"CONCATENATE(\"OBX|\",joinString(E3:F3,\"|\"),\"|\",joinString(G3:J3,\"^\"),\"|\",joinString(K3:U3,\"|\"))","v":"OBX|1|NM|55827-0^Acid alpha glucosidase [Enzymatic activity/volume] in DBS^LN^|1|12.923|µmol/L/h||N|||F|||201212041800"}]
[2,16,"Pompe","C",2,"CE","63415-4","Pompe Disease deficiency newborn screen interpretation","LN",null,1,"LA18592-8\\S\\In range\\S",null,null,"N",null,null,"F",null,null,"201212041800",null,null,null,{"$f":"CONCATENATE(\"OBX|\",joinString(E4:F4,\"|\"),\"|\",joinString(G4:J4,\"^\"),\"|\",joinString(K4:U4,\"|\"))","v":"OBX|2|CE|63415-4^Pompe Disease deficiency newborn screen interpretation^LN^|1|LA18592-8\\S\\In range\\S|||N|||F|||201212041800"}]
[2,16,"Pompe","C",3,"TX","63416-2","Pompe Disease deficiency newborn screening comments-discussion","LN",null,1,"Negative",null,null,"N",null,null,"F",null,null,"201212041800"]
[2,16,"Pompe","C",4,"TX","63416-2","Pompe Disease deficiency newborn screening comments-discussion","LN",null,2,"Interpretation Comments: The acid alpha-glucosidase Enzyme activity level is above the 18% of the daily patient median and suggests it is screen negative for Pompe disease.",null,null,"N",null,null,"F",null,null,"201212041800"]
[]
[null,null,"*- Sequence in which the OBXs are sent can differ "]

{"sheet":"OBR17-MPS I","index":37,"n_rows":52,"n_cols":8,"rows_kept":52,"cut":false,"hidden":false,"merged":[]}
["SEQ","LEN","DT","OPT","ELEMENT NAME","SAMPLE DATA","COMMENTS","SAMPLE SEGEMENT MESSAGE TEXT"]
[0,4,"SI","R","Element Code","OBR",null,"OBR|17|^FormNumber||79563-3^Mucopolysaccharidosis type I newborn screening panel^^^^|||20200528000000|||||||||^Colin^Rebecca^^^^^^||||||20180503090122|||F"]
[1,4,"SI","R","Set ID - OBR","17"]
[2,22,"El","R","Placer Order\nNumber","5640550185^FormNumber","Order number for the order message assigned by the order placer\nSame value as ORC-2."]
[3,22,"El","X","Filler Order Number",null,"Not Supported"]
[4,250,"CE","R","Universal Service ID","79563-3^Mucopolysaccharidosis type I newborn screening panel^^^^","Code for the observation request:"]
[5,2,"ID","X","Priority - OBR",null,"Not Supported"]
[6,26,"TS","X","Requested Date/Time",null,"Not Supported"]
[7,26,"TS","R","Observation Date/Time #","201611221026","Enter the specimen collection date/time"]
[8,26,"TS","X","Observation End\nDate/Time #",null,"Not supported"]
[9,20,"CQ","X","Collection Volume",null,"Not supported"]
[10,250,"XCN","O","Collector Identifier",null,"Not supported"]
[11,1,"ID","X","Specimen Action Code",null,"Not supported"]
[12,250,"CE","X","Danger Code",null,"Not supported"]
[13,300,"ST","X","Relevant Clinical Info.",null,"Not supported"]
[14,26,"TS","R","Specimen Receiver Date/Time",null,"Transfusion Date"]
[15,300,"SPS","X","Specimen Source",null,"Not supported"]
[16,250,"XCN","R","Ordering Provider","^Colin^Rebecca^^^^^^","Provider ordering the laboratory test. "]
[17,250,"XTN","X","Order Callback Phone Number",null,"Not supported"]
[18,60,"ST","X","Place Field 1",null,"Not supported"]
[19,60,"ST","X","Place Field 2",null,"Not supported"]
[20,60,"ST","X","Filler Field 1",null,"Not supported"]
[21,60,"ST","X","Filler Field 2",null,"Not supported"]
[22,26,"TS","R","Results Rpt/Status Chng - Date/Time","20160301115427","Message generation date"]
[23,40,"MOC","X","Charge To Practice",null,"Not supported"]
[24,10,"ID","X","Diagnostic Serv Set ID",null,"Not supported"]
[25,1,"ID","R","Result Status","F","F - Final"]
[26,400,"PRL","X","Parent Result",null,"Not supported"]
[27,200,"TQ","X","Quantity/Timing",null,"Not supported"]
[28,250,"XCN","X","Result Copies To",null,"Not supported"]
[29,200,"EIP","RE","Parent ID"]
[30,20,"ID","X","Transportation Mode",null,"Not supported"]
[31,250,"CE","X","Reason for Study",null,"Not supported"]
[32,200,"NDL","X","Principal result Interpreter",null,"Not supported"]
[33,200,"NDL","X","Assistant Result Interpreter",null,"Not supported"]
[34,200,"NDL","X","Technician",null,"Not supported"]
[35,200,"NDL","X","Transcriptionist",null,"Not supported"]
[36,26,"TS","X","Scheduled Date/Time",null,"Not supported"]
[37,4,"NM","X","Number of Sample Containers",null,"Not supported"]
[38,250,"CE","X","Transport Logistics of Collected Sample",null,"Not supported"]
[39,250,"CE","X","Collector's Comment",null,"Not supported"]
[40,250,"CE","X","Transport Arrangement Responsibility",null,"Not supported"]
[41,30,"ID","X","Transport Arranged",null,"Not supported"]
[42,1,"ID","X","Escort Required",null,"Not supported"]
[43,250,"CE","X","Planned Patient Transport Comment",null,"Not supported"]
[44,250,"CE","X","Procedure Code",null,"Not supported"]
[45,250,"CE","X","Procedure Code Modifier",null,"Not supported"]
[46,250,"CE","X","Placer Supplemental Service Information",null,"Not supported"]
[47,250,"CE","X","Filler Supplemental Service Information",null,"Not supported"]
[48,250,"CE","X","Medically Necessary Duplicate Procedure Reason",null,"Not supported"]
[49,2,"IS","X","Result Handling ",null,"Not supported"]
[50,250,"CE","X","Parent Universal Service Identifier",null,"Not supported"]

{"sheet":"OBX-MPS I","index":38,"n_rows":8,"n_cols":25,"rows_kept":8,"cut":false,"hidden":false,"merged":[]}
["#","Section","Section Desc","Usage","Sequence","Data Type","LOINC #","LOINC Name","Value Type","Local Code","Sub-ID","Value","Units","Range","Abnormal Flags","Probability","Nature of Abnormal\nTest","Observation Result\nStatus","Effective Date of\nReference Range\nValues","User Defined Access\nChecks","Date/Time of the\nObservation","Producer's\nReference","Responsible\nObserver","Observation\nMethod","Message Text"]
[null,null,null,null,"OBX 1(Required)","OBX 2 (Required)","OBX 3.1 (Required)","OBX 3.2 (Required)","OBX 3.3 (Required)",null,"OBX 4","OBX 5 (Required)","OBX 6 (Required)","OBX 7 (Required)","OBX 8 (Required)",null,null,"OBX 11 (Required)",null,null,"OBX 14 (Required)"]
[1,17,"MPS I","C",1,"NM","55909-6","Alpha-L-iduronidase [Enzymatic activity/​volume] in DBS","LN",null,1,3.117,"µmol/L/h","<1.2204","N",null,null,"F",null,null,"201212041800",null,null,null,{"$f":"CONCATENATE(\"OBX|\",joinString(E3:F3,\"|\"),\"|\",joinString(G3:I3,\"^\"),\"|\",joinString(K3:U3,\"|\"))","v":"OBX|1|NM|55909-6^Alpha-L-iduronidase [Enzymatic activity/​volume] in DBS^LN|1|3.117|µmol/L/h|<1.2204|N|||F|||201212041800"}]
[2,17,"MPS I","C",2,"CE","79564-1","Mucopolysaccharidosis type I newborn screen interpretation","LN",null,1,"LA18592-8\\S\\In range\\S\\LN",null,null,"N",null,null,"F",null,null,"201212041800",null,null,null,{"$f":"CONCATENATE(\"OBX|\",joinString(E4:F4,\"|\"),\"|\",joinString(G4:J4,\"^\"),\"|\",joinString(K4:U4,\"|\"))","v":"OBX|2|CE|79564-1^Mucopolysaccharidosis type I newborn screen interpretation^LN^|1|LA18592-8\\S\\In range\\S\\LN|||N|||F|||201212041800"}]
[3,17,"MPS I","C",3,"TX","79565-8","Mucopolysaccharidosis type I newborn screening comment-discussion","LN",null,1,"Negative",null,null,"N",null,null,"F",null,null,"201212041800",null,null,null,{"$f":"CONCATENATE(\"OBX|\",joinString(E5:F5,\"|\"),\"|\",joinString(G5:J5,\"^\"),\"|\",joinString(K5:U5,\"|\"))","v":"OBX|3|TX|79565-8^Mucopolysaccharidosis type I newborn screening comment-discussion^LN^|1|Negative|||N|||F|||201212041800"}]
[4,17,"MPS I","C",4,"TX","79565-8","Mucopolysaccharidosis type I newborn screening comment-discussion","LN",null,2,"Interpretation Comments: The alpha-L-iduronidase Enzyme activity is above the 18% of the daily patient median and suggests it is screen negative for Mucopolysaccharidosis I (MPS I) disease.",null,null,"N",null,null,"F",null,null,"201212041800",null,null,null,"OBX|5|TX|^^^99717-44^MPS I IDUA Gene Sequence Analysis comments/discussion^L|1|Additional Interpretation: The molecular genetic analysis of IDUA gene in this sample was performed.|||A|||F|||20180509133807"]
[]
["*- Sequence in which the OBXs are sent can differ "]

{"sheet":"OBR18-ALD","index":39,"n_rows":52,"n_cols":8,"rows_kept":52,"cut":false,"hidden":false,"merged":[]}
["SEQ","LEN","DT","OPT","ELEMENT NAME","SAMPLE DATA","COMMENTS","SAMPLE SEGEMENT MESSAGE TEXT"]
[0,4,"SI","R","Element Code","OBR",null,"OBR|16|5640550185^FormNumber||^^^99717-28^Adrenoleukodystrophy newborn screening panel^L|||201611221026|||||||||^Colin^Rebecca^^^^^^||||||20160301115427|||F"]
[1,4,"SI","R","Set ID - OBR","18"]
[2,22,"El","R","Placer Order\nNumber","5640550185^FormNumber","Order number for the order message assigned by the order placer\nSame value as ORC-2."]
[3,22,"El","X","Filler Order Number",null,"Not Supported"]
[4,250,"CE","R","Universal Service ID","^^^99717-28^Adrenoleukodystrophy newborn screening panel^L","Code for the observation request:"]
[5,2,"ID","X","Priority - OBR",null,"Not Supported"]
[6,26,"TS","X","Requested Date/Time",null,"Not Supported"]
[7,26,"TS","R","Observation Date/Time #","201611221026","Enter the specimen collection date/time"]
[8,26,"TS","X","Observation End\nDate/Time #",null,"Not supported"]
[9,20,"CQ","X","Collection Volume",null,"Not supported"]
[10,250,"XCN","O","Collector Identifier",null,"Not supported"]
[11,1,"ID","X","Specimen Action Code",null,"Not supported"]
[12,250,"CE","X","Danger Code",null,"Not supported"]
[13,300,"ST","X","Relevant Clinical Info.",null,"Not supported"]
[14,26,"TS","R","Specimen Receiver Date/Time",null,"Transfusion Date"]
[15,300,"SPS","X","Specimen Source",null,"Not supported"]
[16,250,"XCN","R","Ordering Provider","^Colin^Rebecca^^^^^^","Provider ordering the laboratory test. "]
[17,250,"XTN","X","Order Callback Phone Number",null,"Not supported"]
[18,60,"ST","X","Place Field 1",null,"Not supported"]
[19,60,"ST","X","Place Field 2",null,"Not supported"]
[20,60,"ST","X","Filler Field 1",null,"Not supported"]
[21,60,"ST","X","Filler Field 2",null,"Not supported"]
[22,26,"TS","R","Results Rpt/Status Chng - Date/Time","20160301115427","Message generation date"]
[23,40,"MOC","X","Charge To Practice",null,"Not supported"]
[24,10,"ID","X","Diagnostic Serv Set ID",null,"Not supported"]
[25,1,"ID","R","Result Status","F","F - Final"]
[26,400,"PRL","X","Parent Result",null,"Not supported"]
[27,200,"TQ","X","Quantity/Timing",null,"Not supported"]
[28,250,"XCN","X","Result Copies To",null,"Not supported"]
[29,200,"EIP","RE","Parent ID"]
[30,20,"ID","X","Transportation Mode",null,"Not supported"]
[31,250,"CE","X","Reason for Study",null,"Not supported"]
[32,200,"NDL","X","Principal result Interpreter",null,"Not supported"]
[33,200,"NDL","X","Assistant Result Interpreter",null,"Not supported"]
[34,200,"NDL","X","Technician",null,"Not supported"]
[35,200,"NDL","X","Transcriptionist",null,"Not supported"]
[36,26,"TS","X","Scheduled Date/Time",null,"Not supported"]
[37,4,"NM","X","Number of Sample Containers",null,"Not supported"]
[38,250,"CE","X","Transport Logistics of Collected Sample",null,"Not supported"]
[39,250,"CE","X","Collector's Comment",null,"Not supported"]
[40,250,"CE","X","Transport Arrangement Responsibility",null,"Not supported"]
[41,30,"ID","X","Transport Arranged",null,"Not supported"]
[42,1,"ID","X","Escort Required",null,"Not supported"]
[43,250,"CE","X","Planned Patient Transport Comment",null,"Not supported"]
[44,250,"CE","X","Procedure Code",null,"Not supported"]
[45,250,"CE","X","Procedure Code Modifier",null,"Not supported"]
[46,250,"CE","X","Placer Supplemental Service Information",null,"Not supported"]
[47,250,"CE","X","Filler Supplemental Service Information",null,"Not supported"]
[48,250,"CE","X","Medically Necessary Duplicate Procedure Reason",null,"Not supported"]
[49,2,"IS","X","Result Handling ",null,"Not supported"]
[50,250,"CE","X","Parent Universal Service Identifier",null,"Not supported"]

{"sheet":"OBX-ALD","index":40,"n_rows":6,"n_cols":25,"rows_kept":6,"cut":false,"hidden":false,"merged":[]}
["#","Section","Section Desc","Usage","Sequence","Data Type","LOINC #","LOINC Name","Value Type","Local Code","Sub-ID","Value","Units","Range","Abnormal Flags","Probability","Nature of Abnormal\nTest","Observation Result\nStatus","Effective Date of\nReference Range\nValues","User Defined Access\nChecks","Date/Time of the\nObservation","Producer's\nReference","Responsible\nObserver","Observation\nMethod","Message Text"]
[null,null,null,null,"OBX 1(Required)","OBX 2 (Required)",null,null,null,"OBX 3 (Required)","OBX 4","OBX 5 (Required)","OBX 6 (Required)","OBX 7 (Required)","OBX 8 (Required)",null,null,"OBX 11 (Required)",null,null,"OBX 14 (Required)"]
[1,18,"ALD","C",1,"CE",null,null,null,"99717-32^Adrenoleukodystrophy deficiency newborn screening interpretation^L",1,"LA18593-6\\S\\Out of range\\S\\LN",null,null,"A",null,null,"F",null,null,"201212041800",null,null,null,{"$f":"CONCATENATE(\"OBX|\",joinString(E3:F3,\"|\"),\"|\",joinString(G3:J3,\"^\"),\"|\",joinString(K3:U3,\"|\"))","v":"OBX|1|CE|^^^99717-32^Adrenoleukodystrophy deficiency newborn screening interpretation^L|1|LA18593-6\\S\\Out of range\\S\\LN|||A|||F|||201212041800"}]
[2,18,"ALD","C",2,"TX",null,null,null,"99717-33^Adrenoleukodystrophy deficiency newborn screening comments-discussion^L",1,"Positive w/ ABCD1 Mutation",null,null,"A",null,null,"F",null,null,"201212041800",null,null,null,{"$f":"CONCATENATE(\"OBX|\",joinString(E4:F4,\"|\"),\"|\",joinString(G4:J4,\"^\"),\"|\",joinString(K4:U4,\"|\"))","v":"OBX|2|TX|^^^99717-33^Adrenoleukodystrophy deficiency newborn screening comments-discussion^L|1|Positive w/ ABCD1 Mutation|||A|||F|||201212041800"}]
[]
["*- Sequence in which the OBXs are sent can differ "]

{"sheet":"OBR19-ALDTier1","index":41,"n_rows":52,"n_cols":8,"rows_kept":52,"cut":false,"hidden":false,"merged":[]}
["SEQ","LEN","DT","OPT","ELEMENT NAME","SAMPLE DATA","COMMENTS","SAMPLE SEGEMENT MESSAGE TEXT"]
[0,4,"SI","R","Element Code","OBR",null,"OBR|19|5640550185^FormNumber||^^^99717-29^Adrenoleukodystrophy Tier-1 newborn screening panel^L|||201611221026|||||||||^Colin^Rebecca^^^^^^||||||20160301115427|||F"]
[1,4,"SI","R","Set ID - OBR","19"]
[2,22,"El","R","Placer Order\nNumber","5640550185^FormNumber","Order number for the order message assigned by the order placer\nSame value as ORC-2."]
[3,22,"El","X","Filler Order Number",null,"Not Supported"]
[4,250,"CE","R","Universal Service ID","^^^99717-29^Adrenoleukodystrophy Tier-1 newborn screening pane","Code for the observation request:"]
[5,2,"ID","X","Priority - OBR",null,"Not Supported"]
[6,26,"TS","X","Requested Date/Time",null,"Not Supported"]
[7,26,"TS","R","Observation Date/Time #","201611221026","Enter the specimen collection date/time"]
[8,26,"TS","X","Observation End\nDate/Time #",null,"Not supported"]
[9,20,"CQ","X","Collection Volume",null,"Not supported"]
[10,250,"XCN","O","Collector Identifier",null,"Not supported"]
[11,1,"ID","X","Specimen Action Code",null,"Not supported"]
[12,250,"CE","X","Danger Code",null,"Not supported"]
[13,300,"ST","X","Relevant Clinical Info.",null,"Not supported"]
[14,26,"TS","R","Specimen Receiver Date/Time",null,"Transfusion Date"]
[15,300,"SPS","X","Specimen Source",null,"Not supported"]
[16,250,"XCN","R","Ordering Provider","^Colin^Rebecca^^^^^^","Provider ordering the laboratory test. "]
[17,250,"XTN","X","Order Callback Phone Number",null,"Not supported"]
[18,60,"ST","X","Place Field 1",null,"Not supported"]
[19,60,"ST","X","Place Field 2",null,"Not supported"]
[20,60,"ST","X","Filler Field 1",null,"Not supported"]
[21,60,"ST","X","Filler Field 2",null,"Not supported"]
[22,26,"TS","R","Results Rpt/Status Chng - Date/Time","20160301115427","Message generation date"]
[23,40,"MOC","X","Charge To Practice",null,"Not supported"]
[24,10,"ID","X","Diagnostic Serv Set ID",null,"Not supported"]
[25,1,"ID","R","Result Status","F","F - Final"]
[26,400,"PRL","X","Parent Result",null,"Not supported"]
[27,200,"TQ","X","Quantity/Timing",null,"Not supported"]
[28,250,"XCN","X","Result Copies To",null,"Not supported"]
[29,200,"EIP","RE","Parent ID"]
[30,20,"ID","X","Transportation Mode",null,"Not supported"]
[31,250,"CE","X","Reason for Study",null,"Not supported"]
[32,200,"NDL","X","Principal result Interpreter",null,"Not supported"]
[33,200,"NDL","X","Assistant Result Interpreter",null,"Not supported"]
[34,200,"NDL","X","Technician",null,"Not supported"]
[35,200,"NDL","X","Transcriptionist",null,"Not supported"]
[36,26,"TS","X","Scheduled Date/Time",null,"Not supported"]
[37,4,"NM","X","Number of Sample Containers",null,"Not supported"]
[38,250,"CE","X","Transport Logistics of Collected Sample",null,"Not supported"]
[39,250,"CE","X","Collector's Comment",null,"Not supported"]
[40,250,"CE","X","Transport Arrangement Responsibility",null,"Not supported"]
[41,30,"ID","X","Transport Arranged",null,"Not supported"]
[42,1,"ID","X","Escort Required",null,"Not supported"]
[43,250,"CE","X","Planned Patient Transport Comment",null,"Not supported"]
[44,250,"CE","X","Procedure Code",null,"Not supported"]
[45,250,"CE","X","Procedure Code Modifier",null,"Not supported"]
[46,250,"CE","X","Placer Supplemental Service Information",null,"Not supported"]
[47,250,"CE","X","Filler Supplemental Service Information",null,"Not supported"]
[48,250,"CE","X","Medically Necessary Duplicate Procedure Reason",null,"Not supported"]
[49,2,"IS","X","Result Handling ",null,"Not supported"]
[50,250,"CE","X","Parent Universal Service Identifier",null,"Not supported"]

{"sheet":"OBX-ALDTier1","index":42,"n_rows":13,"n_cols":25,"rows_kept":13,"cut":false,"hidden":false,"merged":[]}
["#","Section","Section Desc","Usage","Sequence","Data Type","LOINC #","LOINC Name","Value Type","Local Code","Sub-ID","Value","Units","Range","Abnormal Flags","Probability","Nature of Abnormal\nTest","Observation Result\nStatus","Effective Date of\nReference Range\nValues","User Defined Access\nChecks","Date/Time of the\nObservation","Producer's\nReference","Responsible\nObserver","Observation\nMethod","Message Text"]
[null,null,null,null,"OBX 1(Required)","OBX 2 (Required)","OBX 3.1 (Required)","OBX 3.2 (Required)","OBX 3.3 (Required)","OBX 3.4 (Required)","OBX 4","OBX 5 (Required)","OBX 6 (Required)","OBX 7 (Required)","OBX 8 (Required)",null,null,"OBX 11 (Required)",null,null,"OBX 14 (Required)"]
[1,19,"ALD","C",1,"NM","79321-6","Lysophosphatidylcholine(26:0) [Moles/volume] in Dried blood spot^LN^",null,null,1,0.6,"µmol/L","0.16-0.38","H",null,null,"F",null,null,"201212041800",null,null,null,{"$f":"CONCATENATE(\"OBX|\",joinString(E3:F3,\"|\"),\"|\",joinString(G3:J3,\"^\"),\"|\",joinString(K3:U3,\"|\"))","v":"OBX|1|NM|79321-6^Lysophosphatidylcholine(26:0) [Moles/volume] in Dried blood spot^LN^^^|1|0.6|µmol/L|0.16-0.38|H|||F|||201212041800"}]
[2,19,"ALD","C",2,"NM",null,null,null,"99717-10^C20^L",1,0.2,"µmol/L","0.07-0.2","N",null,null,"F",null,null,"201212041800",null,null,null,"OBX|2|NM|^^^99717-10^C20^L|1|0.2|µmol/L|0.07-0.2|N|||F|||201212041800"]
[3,19,"ALD","C",3,"NM",null,null,null,"99717-11^C22^L",1,0.2,"µmol/L","0.07-0.23","N",null,null,"F",null,null,"201212041800",null,null,null,"OBX|3|NM|^^^99717-11^C22^L|1|0.2|µmol/L|0.07-0.23|N|||F|||201212041800"]
[4,19,"ALD","C",4,"NM",null,null,null,"99717-12^C22:1^L",1,"0.0","µmol/L",null,"N",null,null,"F",null,null,"201212041800",null,null,null,"OBX|4|NM|^^^99717-12^C22:1^L|1|0.0|µmol/L||N|||F|||201212041800"]
[5,19,"ALD","C",5,"NM",null,null,null,"99717-13^C24^L",1,0.7,"µmol/L","0.28-0.75","N",null,null,"F",null,null,"201212041800",null,null,null,"OBX|5|NM|^^^99717-13^C24^L|1|0.7|µmol/L|0.28-0.75|N|||F|||201212041800"]
[6,19,"ALD","C",6,"NM",null,null,null,"99717-14^C24/C20^L",1,3.5,"{Ratio}","0.95-7.43","N",null,null,"F",null,null,"201212041800",null,null,null,"OBX|6|NM|^^^99717-14^C24/C20^L|1|3.5|{Ratio}|0.95-7.43|N|||F|||201212041800"]
[7,19,"ALD","C",7,"NM",null,null,null,"99717-15^C24/C22^L",1,3.5,"{Ratio}","2.13-5.62","N",null,null,"F",null,null,"201212041800",null,null,null,"OBX|7|NM|^^^99717-15^C24/C22^L|1|3.5|{Ratio}|2.13-5.62|N|||F|||201212041800"]
[8,19,"ALD","C",8,"NM",null,null,null,"99717-16^C26/C20^L",1,3,"{Ratio}","0.56-4","N",null,null,"F",null,null,"201212041800",null,null,null,"OBX|8|NM|^^^99717-16^C26/C20^L|1|3|{Ratio}|0.56-4|N|||F|||201212041800"]
[9,19,"ALD","C",9,"NM",null,null,null,"99717-17^C26/C22^L",1,3,"{Ratio}","1.15-3.2","N",null,null,"F",null,null,"201212041800",null,null,null,"OBX|9|NM|^^^99717-17^C26/C22^L|1|3|{Ratio}|1.15-3.2|N|||F|||201212041800"]
[]
["*- Sequence in which the OBXs are sent can differ "]

{"sheet":"OBR20-ALDTier2","index":43,"n_rows":52,"n_cols":8,"rows_kept":52,"cut":false,"hidden":false,"merged":[]}
["SEQ","LEN","DT","OPT","ELEMENT NAME","SAMPLE DATA","COMMENTS","SAMPLE SEGEMENT MESSAGE TEXT"]
[0,4,"SI","R","Element Code","OBR",null,"OBR|20|5640550185^FormNumber||^^^99717-30^Adrenoleukodystrophy Tier-2 newborn screening panel^L|||201611221026|||||||||^Colin^Rebecca^^^^^^||||||20160301115427|||F"]
[1,4,"SI","R","Set ID - OBR","20"]
[2,22,"El","R","Placer Order\nNumber","5640550185^FormNumber","Order number for the order message assigned by the order placer\nSame value as ORC-2."]
[3,22,"El","X","Filler Order Number",null,"Not Supported"]
[4,250,"CE","R","Universal Service ID","^^^99717-30^Adrenoleukodystrophy Tier-2 newborn screening panel^L","Code for the observation request:"]
[5,2,"ID","X","Priority - OBR",null,"Not Supported"]
[6,26,"TS","X","Requested Date/Time",null,"Not Supported"]
[7,26,"TS","R","Observation Date/Time #","201611221026","Enter the specimen collection date/time"]
[8,26,"TS","X","Observation End\nDate/Time #",null,"Not supported"]
[9,20,"CQ","X","Collection Volume",null,"Not supported"]
[10,250,"XCN","O","Collector Identifier",null,"Not supported"]
[11,1,"ID","X","Specimen Action Code",null,"Not supported"]
[12,250,"CE","X","Danger Code",null,"Not supported"]
[13,300,"ST","X","Relevant Clinical Info.",null,"Not supported"]
[14,26,"TS","R","Specimen Receiver Date/Time",null,"Transfusion Date"]
[15,300,"SPS","X","Specimen Source",null,"Not supported"]
[16,250,"XCN","R","Ordering Provider","^Colin^Rebecca^^^^^^","Provider ordering the laboratory test. "]
[17,250,"XTN","X","Order Callback Phone Number",null,"Not supported"]
[18,60,"ST","X","Place Field 1",null,"Not supported"]
[19,60,"ST","X","Place Field 2",null,"Not supported"]
[20,60,"ST","X","Filler Field 1",null,"Not supported"]
[21,60,"ST","X","Filler Field 2",null,"Not supported"]
[22,26,"TS","R","Results Rpt/Status Chng - Date/Time","20160301115427","Message generation date"]
[23,40,"MOC","X","Charge To Practice",null,"Not supported"]
[24,10,"ID","X","Diagnostic Serv Set ID",null,"Not supported"]
[25,1,"ID","R","Result Status","F","F - Final"]
[26,400,"PRL","X","Parent Result",null,"Not supported"]
[27,200,"TQ","X","Quantity/Timing",null,"Not supported"]
[28,250,"XCN","X","Result Copies To",null,"Not supported"]
[29,200,"EIP","RE","Parent ID"]
[30,20,"ID","X","Transportation Mode",null,"Not supported"]
[31,250,"CE","X","Reason for Study",null,"Not supported"]
[32,200,"NDL","X","Principal result Interpreter",null,"Not supported"]
[33,200,"NDL","X","Assistant Result Interpreter",null,"Not supported"]
[34,200,"NDL","X","Technician",null,"Not supported"]
[35,200,"NDL","X","Transcriptionist",null,"Not supported"]
[36,26,"TS","X","Scheduled Date/Time",null,"Not supported"]
[37,4,"NM","X","Number of Sample Containers",null,"Not supported"]
[38,250,"CE","X","Transport Logistics of Collected Sample",null,"Not supported"]
[39,250,"CE","X","Collector's Comment",null,"Not supported"]
[40,250,"CE","X","Transport Arrangement Responsibility",null,"Not supported"]
[41,30,"ID","X","Transport Arranged",null,"Not supported"]
[42,1,"ID","X","Escort Required",null,"Not supported"]
[43,250,"CE","X","Planned Patient Transport Comment",null,"Not supported"]
[44,250,"CE","X","Procedure Code",null,"Not supported"]
[45,250,"CE","X","Procedure Code Modifier",null,"Not supported"]
[46,250,"CE","X","Placer Supplemental Service Information",null,"Not supported"]
[47,250,"CE","X","Filler Supplemental Service Information",null,"Not supported"]
[48,250,"CE","X","Medically Necessary Duplicate Procedure Reason",null,"Not supported"]
[49,2,"IS","X","Result Handling ",null,"Not supported"]
[50,250,"CE","X","Parent Universal Service Identifier",null,"Not supported"]

{"sheet":"OBX-ALDTier2","index":44,"n_rows":13,"n_cols":25,"rows_kept":13,"cut":false,"hidden":false,"merged":[]}
["#","Section","Section Desc","Usage","Sequence","Data Type","LOINC #","LOINC Name","Value Type","Local Code","Sub-ID","Value","Units","Range","Abnormal Flags","Probability","Nature of Abnormal\nTest","Observation Result\nStatus","Effective Date of\nReference Range\nValues","User Defined Access\nChecks","Date/Time of the\nObservation","Producer's\nReference","Responsible\nObserver","Observation\nMethod","Message Text"]
[null,null,null,null,"OBX 1","OBX 2","OBX 3.1","OBX 3.2",null,null,"OBX 4","OBX 5","OBX 6","OBX 7","OBX 8",null,null,"OBX 11",null,null,"OBX 14"]
[1,20,"ALD","C",1,"NM","79567-4","Lysophosphatidylcholine(26:0) [Moles/volume] in Dried blood spot by LC/MS/MS^LN^",null,null,1,0.2,"µmol/L","0.04-0.09","H",null,null,"F",null,null,"201212041800",null,null,null,{"$f":"CONCATENATE(\"OBX|\",joinString(E3:F3,\"|\"),\"|\",joinString(G3:J3,\"^\"),\"|\",joinString(K3:U3,\"|\"))","v":"OBX|1|NM|79567-4^Lysophosphatidylcholine(26:0) [Moles/volume] in Dried blood spot by LC/MS/MS^LN^^^|1|0.2|µmol/L|0.04-0.09|H|||F|||201212041800"}]
[2,20,"ALD","C",2,"NM",null,null,null,"99717-20^C20^L",1,0.14000000000000001,"µmol/L","0.04-0.1","N",null,null,"F",null,null,"201212041800",null,null,null,"OBX|2|NM|^^^99717-20^C20^L|1|0.14|µmol/L|0.04-0.1|N|||F|||201212041800"]
[3,20,"ALD","C",3,"NM",null,null,null,"99717-21^C22^L",1,4.9000000000000002E-2,"µmol/L","0.01-0.03","N",null,null,"F",null,null,"201212041800",null,null,null,{"$f":"CONCATENATE(\"OBX|\",joinString(E5:F5,\"|\"),\"|\",joinString(G5:J5,\"^\"),\"|\",joinString(K5:U5,\"|\"))","v":"OBX|3|NM|^^^99717-21^C22^L|1|0.049|µmol/L|0.01-0.03|N|||F|||201212041800"}]
[4,20,"ALD","C",4,"NM",null,null,null,"99717-22^C22:1^L",1,"0.0","µmol/L",null,"N",null,null,"F",null,null,"201212041800",null,null,null,"OBX|4|NM|^^^99717-22^C22:1^L|1|0.0|µmol/L||N|||F|||201212041800"]
[5,20,"ALD","C",5,"NM",null,null,null,"99717-23^C24^L",1,0.1,"µmol/L","0.05-0.11","N",null,null,"F",null,null,"201212041800",null,null,null,"OBX|5|NM|^^^99717-23^C24^L|1|0.1|µmol/L|0.05-0.11|N|||F|||201212041800"]
[6,20,"ALD","C",6,"NM",null,null,null,"99717-24^C24/C20^L",1,0.71428599999999998,"{Ratio}","0.75-1.75","N",null,null,"F",null,null,"201212041800",null,null,null,"OBX|6|NM|^^^99717-24^C24/C20^L|1|0.714286|{Ratio}|0.75-1.75|N|||F|||201212041800"]
[7,20,"ALD","C",7,"NM",null,null,null,"99717-25^C24/C22^L",1,2.040816,"{Ratio}","2.5-5","N",null,null,"F",null,null,"201212041800",null,null,null,"OBX|7|NM|^^^99717-25^C24/C22^L|1|2.040816|{Ratio}|2.5-5|N|||F|||201212041800"]
[8,20,"ALD","C",8,"NM",null,null,null,"99717-26^C26/C20^L",1,1.428571,"{Ratio}","0.5-1.5","N",null,null,"F",null,null,"201212041800",null,null,null,"OBX|8|NM|^^^99717-26^C26/C20^L|1|1.428571|{Ratio}|0.5-1.5|N|||F|||201212041800"]
[9,20,"ALD","C",9,"NM",null,null,null,"99717-27^C26/C22^L",1,4.0816330000000001,"{Ratio}","2-4","N",null,null,"F",null,null,"201212041800",null,null,null,"OBX|9|NM|^^^99717-27^C26/C22^L|1|4.081633|{Ratio}|2-4|N|||F|||201212041800"]
[]
["*- Sequence in which the OBXs are sent can differ "]

{"sheet":"OBR21-ALDMutation","index":45,"n_rows":52,"n_cols":8,"rows_kept":52,"cut":false,"hidden":false,"merged":[]}
["SEQ","LEN","DT","OPT","ELEMENT NAME","SAMPLE DATA","COMMENTS","SAMPLE SEGEMENT MESSAGE TEXT"]
[0,4,"SI","R","Element Code","OBR",null,"OBR|21|5640550185^FormNumber||^^^99717-31^Adrenoleukodystrophy Mutation newborn screening panel^L|||201611221026|||||||||^Colin^Rebecca^^^^^^||||||20160301115427|||F"]
[1,4,"SI","R","Set ID - OBR","21"]
[2,22,"El","R","Placer Order\nNumber","5640550185^FormNumber","Order number for the order message assigned by the order placer\nSame value as ORC-2."]
[3,22,"El","X","Filler Order Number",null,"Not Supported"]
[4,250,"CE","R","Universal Service ID","^^^99717-31^Adrenoleukodystrophy Mutation newborn screening panel^L","Code for the observation request:"]
[5,2,"ID","X","Priority - OBR",null,"Not Supported"]
[6,26,"TS","X","Requested Date/Time",null,"Not Supported"]
[7,26,"TS","R","Observation Date/Time #","201611221026","Enter the specimen collection date/time"]
[8,26,"TS","X","Observation End\nDate/Time #",null,"Not supported"]
[9,20,"CQ","X","Collection Volume",null,"Not supported"]
[10,250,"XCN","O","Collector Identifier",null,"Not supported"]
[11,1,"ID","X","Specimen Action Code",null,"Not supported"]
[12,250,"CE","X","Danger Code",null,"Not supported"]
[13,300,"ST","X","Relevant Clinical Info.",null,"Not supported"]
[14,26,"TS","R","Specimen Receiver Date/Time",null,"Transfusion Date"]
[15,300,"SPS","X","Specimen Source",null,"Not supported"]
[16,250,"XCN","R","Ordering Provider","^Colin^Rebecca^^^^^^","Provider ordering the laboratory test. "]
[17,250,"XTN","X","Order Callback Phone Number",null,"Not supported"]
[18,60,"ST","X","Place Field 1",null,"Not supported"]
[19,60,"ST","X","Place Field 2",null,"Not supported"]
[20,60,"ST","X","Filler Field 1",null,"Not supported"]
[21,60,"ST","X","Filler Field 2",null,"Not supported"]
[22,26,"TS","R","Results Rpt/Status Chng - Date/Time","20160301115427","Message generation date"]
[23,40,"MOC","X","Charge To Practice",null,"Not supported"]
[24,10,"ID","X","Diagnostic Serv Set ID",null,"Not supported"]
[25,1,"ID","R","Result Status","F","F - Final"]
[26,400,"PRL","X","Parent Result",null,"Not supported"]
[27,200,"TQ","X","Quantity/Timing",null,"Not supported"]
[28,250,"XCN","X","Result Copies To",null,"Not supported"]
[29,200,"EIP","RE","Parent ID"]
[30,20,"ID","X","Transportation Mode",null,"Not supported"]
[31,250,"CE","X","Reason for Study",null,"Not supported"]
[32,200,"NDL","X","Principal result Interpreter",null,"Not supported"]
[33,200,"NDL","X","Assistant Result Interpreter",null,"Not supported"]
[34,200,"NDL","X","Technician",null,"Not supported"]
[35,200,"NDL","X","Transcriptionist",null,"Not supported"]
[36,26,"TS","X","Scheduled Date/Time",null,"Not supported"]
[37,4,"NM","X","Number of Sample Containers",null,"Not supported"]
[38,250,"CE","X","Transport Logistics of Collected Sample",null,"Not supported"]
[39,250,"CE","X","Collector's Comment",null,"Not supported"]
[40,250,"CE","X","Transport Arrangement Responsibility",null,"Not supported"]
[41,30,"ID","X","Transport Arranged",null,"Not supported"]
[42,1,"ID","X","Escort Required",null,"Not supported"]
[43,250,"CE","X","Planned Patient Transport Comment",null,"Not supported"]
[44,250,"CE","X","Procedure Code",null,"Not supported"]
[45,250,"CE","X","Procedure Code Modifier",null,"Not supported"]
[46,250,"CE","X","Placer Supplemental Service Information",null,"Not supported"]
[47,250,"CE","X","Filler Supplemental Service Information",null,"Not supported"]
[48,250,"CE","X","Medically Necessary Duplicate Procedure Reason",null,"Not supported"]
[49,2,"IS","X","Result Handling ",null,"Not supported"]
[50,250,"CE","X","Parent Universal Service Identifier",null,"Not supported"]

{"sheet":"OBX-ALDMutation","index":46,"n_rows":8,"n_cols":25,"rows_kept":8,"cut":false,"hidden":false,"merged":[]}
["#","Section","Section Desc","Usage","Sequence","Data Type","LOINC #","LOINC Name","Value Type","Local Code","Sub-ID","Value","Units","Range","Abnormal Flags","Probability","Nature of Abnormal\nTest","Observation Result\nStatus","Effective Date of\nReference Range\nValues","User Defined Access\nChecks","Date/Time of the\nObservation","Producer's\nReference","Responsible\nObserver","Observation\nMethod","Message Text"]
[null,null,null,null,"OBX 1(Required)","OBX 2 (Required)","OBX 3.1 (Required)","OBX 3.2 (Required)","OBX 3.3 (Required)","OBX 3.4 (Required)","OBX 4","OBX 5 (Required)","OBX 6 (Required)","OBX 7 (Required)","OBX 8 (Required)",null,null,"OBX 11 (Required)",null,null,"OBX 14 (Required)"]
[1,21,"ALD","C",1,"TX","99717-34","Adrenoleukodystrophy Mutation comments/discussion","L","99717-34^Adrenoleukodystrophy Mutation comments/discussion^L",1,"Additional Interpretation: The nucleotide-binding fold acts as an ATP-binding subunit with ATPase activity.",null,null,"A",null,null,"F",null,null,"201212041800",null,null,null,{"$f":"CONCATENATE(\"OBX|\",joinString(E3:F3,\"|\"),\"|\",joinString(G3:J3,\"^\"),\"|\",joinString(K3:U3,\"|\"))","v":"OBX|1|TX|99717-34^Adrenoleukodystrophy Mutation comments/discussion^L^99717-34^Adrenoleukodystrophy Mutation comments/discussion^L|1|Additional Interpretation: The nucleotide-binding fold acts as an ATP-binding subunit with ATPase activity.|||A|||F|||201212041800"}]
[2,21,"ALD","C",2,"TX",null,null,null,"99717-34^Adrenoleukodystrophy Mutation comments/discussion^L",2,"Novel Variation(s): Yes Mutation(s) Identified: GC0XP147127 This mutation is involved in peroxisomal import of fatty acids and/or fatty acyl-CoAs in the organelle. All known peroxisomal ABC transporters are half transporters which require a partner half transporter molecule to form a functional homodimeric or heterodimeric transporter. This peroxisomal membrane protein is likely involved in the peroxisomal transport or catabolism of very long chain fatty acids. Defects in this gene have been identified as the underlying cause of adrenoleukodystrophy, an X-chromosome recessively inherited demyelinating disorder of the nervous system. [provided by RefSeq, Jul 2008]",null,null,"A",null,null,"F",null,null,"201212041800",null,null,null,{"$f":"CONCATENATE(\"OBX|\",joinString(E4:F4,\"|\"),\"|\",joinString(G4:J4,\"^\"),\"|\",joinString(K4:U4,\"|\"))","v":"OBX|2|TX|^^^99717-34^Adrenoleukodystrophy Mutation comments/discussion^L|2|Novel Variation(s): Yes Mutation(s) Identified: GC0XP147127 This mutation is involved in peroxisomal import of fatty acids and/or fatty acyl-CoAs in the organelle. All known peroxisomal ABC transporters are half transporters which require a partner half transporter molecule to form a functional homodimeric or heterodimeric transporter. This peroxisomal membrane protein is likely involved in the peroxisomal transport or catabolism of very long chain fatty acids. Defects in this gene have been identified as the underlying cause of adrenoleukodystrophy, an X-chromosome recessively inherited demyelinating disorder of the nervous system. [provided by RefSeq, Jul 2008]|||A|||F|||201212041800"}]
[3,21,"ALD","C",3,"TX",null,null,null,"99717-34^Adrenoleukodystrophy Mutation comments/discussion^L",3,"Novel Variation(s): Yes Mutation(s) Identified: GC0XP149445 This mutation is involved in peroxisomal import of fatty acids and/or fatty acyl-CoAs in the organelle. All known peroxisomal ABC transporters are half transporters which require a partner half transporter molecule to form a functional homodimeric or heterodimeric transporter. This peroxisomal membrane protein is likely involved in the peroxisomal transport or catabolism of very long chain fatty acids. Defects in this gene have been identified as the underlying cause of adrenoleukodystrophy, an X-chromosome recessively inherited demyelinating disorder of the nervous system. [provided by RefSeq, Jul 2008]",null,null,"A",null,null,"F",null,null,"201212041800",null,null,null,{"$f":"CONCATENATE(\"OBX|\",joinString(E5:F5,\"|\"),\"|\",joinString(G5:J5,\"^\"),\"|\",joinString(K5:U5,\"|\"))","v":"OBX|3|TX|^^^99717-34^Adrenoleukodystrophy Mutation comments/discussion^L|3|Novel Variation(s): Yes Mutation(s) Identified: GC0XP149445 This mutation is involved in peroxisomal import of fatty acids and/or fatty acyl-CoAs in the organelle. All known peroxisomal ABC transporters are half transporters which require a partner half transporter molecule to form a functional homodimeric or heterodimeric transporter. This peroxisomal membrane protein is likely involved in the peroxisomal transport or catabolism of very long chain fatty acids. Defects in this gene have been identified as the underlying cause of adrenoleukodystrophy, an X-chromosome recessively inherited demyelinating disorder of the nervous system. [provided by RefSeq, Jul 2008]|||A|||F|||201212041800"}]
[]
[]
["*- Sequence in which the OBXs are sent can differ "]

{"sheet":"OBR-PDF","index":47,"n_rows":52,"n_cols":8,"rows_kept":52,"cut":false,"hidden":false,"merged":[]}
["SEQ","LEN","DT","OPT","ELEMENT NAME","SAMPLE DATA","COMMENTS","SAMPLE SEGEMENT MESSAGE TEXT"]
[0,4,"SI","R","Element Code","OBR",null,"OBR|20|5640550185^FormNumber||ClinicalPDFReport^Clinical PDF Report 226-95-827/21-2018-21^^ClinicalPDFReport^Clinical PDF Report 226-95-827/21-2018-21^|||20191002000000|||||||||^ORDGLSTNAME^ORDGFRSTNAME^^^^^^||||||20190930133229|||panel^L|||201611221026|||||||||^Colin^Rebecca^^^^^^||||||20160301115427|||F"]
[1,4,"SI","R","Set ID - OBR","This OBR will be the highest number in the OBR sequence, assigned dynamically based on the other test panels"]
[2,22,"El","R","Placer Order\nNumber","5640550185^FormNumber","Order number for the order message assigned by the order placer\nSame value as ORC-2."]
[3,22,"El","X","Filler Order Number",null,"Not Supported"]
[4,250,"CE","R","Universal Service ID","ClinicalPDFReport^Clinical PDF Report 226-95-827/21-2018-21^^ClinicalPDFReport^Clinical PDF Report 226-95-827/21-2018-21^","Code for the observation request:"]
[5,2,"ID","X","Priority - OBR",null,"Not Supported"]
[6,26,"TS","X","Requested Date/Time",null,"Not Supported"]
[7,26,"TS","R","Observation Date/Time #","20191002000000","Enter the specimen collection date/time"]
[8,26,"TS","X","Observation End\nDate/Time #",null,"Not supported"]
[9,20,"CQ","X","Collection Volume",null,"Not supported"]
[10,250,"XCN","O","Collector Identifier",null,"Not supported"]
[11,1,"ID","X","Specimen Action Code",null,"Not supported"]
[12,250,"CE","X","Danger Code",null,"Not supported"]
[13,300,"ST","X","Relevant Clinical Info.",null,"Not supported"]
[14,26,"TS","R","Specimen Receiver Date/Time",null,"Transfusion Date"]
[15,300,"SPS","X","Specimen Source",null,"Not supported"]
[16,250,"XCN","R","Ordering Provider","^Colin^Rebecca^^^^^^","Provider ordering the laboratory test. "]
[17,250,"XTN","X","Order Callback Phone Number",null,"Not supported"]
[18,60,"ST","X","Place Field 1",null,"Not supported"]
[19,60,"ST","X","Place Field 2",null,"Not supported"]
[20,60,"ST","X","Filler Field 1",null,"Not supported"]
[21,60,"ST","X","Filler Field 2",null,"Not supported"]
[22,26,"TS","R","Results Rpt/Status Chng - Date/Time","20160301115427","Message generation date"]
[23,40,"MOC","X","Charge To Practice",null,"Not supported"]
[24,10,"ID","X","Diagnostic Serv Set ID",null,"Not supported"]
[25,1,"ID","R","Result Status","F","F - Final"]
[26,400,"PRL","X","Parent Result",null,"Not supported"]
[27,200,"TQ","X","Quantity/Timing",null,"Not supported"]
[28,250,"XCN","X","Result Copies To",null,"Not supported"]
[29,200,"EIP","RE","Parent ID"]
[30,20,"ID","X","Transportation Mode",null,"Not supported"]
[31,250,"CE","X","Reason for Study",null,"Not supported"]
[32,200,"NDL","X","Principal result Interpreter",null,"Not supported"]
[33,200,"NDL","X","Assistant Result Interpreter",null,"Not supported"]
[34,200,"NDL","X","Technician",null,"Not supported"]
[35,200,"NDL","X","Transcriptionist",null,"Not supported"]
[36,26,"TS","X","Scheduled Date/Time",null,"Not supported"]
[37,4,"NM","X","Number of Sample Containers",null,"Not supported"]
[38,250,"CE","X","Transport Logistics of Collected Sample",null,"Not supported"]
[39,250,"CE","X","Collector's Comment",null,"Not supported"]
[40,250,"CE","X","Transport Arrangement Responsibility",null,"Not supported"]
[41,30,"ID","X","Transport Arranged",null,"Not supported"]
[42,1,"ID","X","Escort Required",null,"Not supported"]
[43,250,"CE","X","Planned Patient Transport Comment",null,"Not supported"]
[44,250,"CE","X","Procedure Code",null,"Not supported"]
[45,250,"CE","X","Procedure Code Modifier",null,"Not supported"]
[46,250,"CE","X","Placer Supplemental Service Information",null,"Not supported"]
[47,250,"CE","X","Filler Supplemental Service Information",null,"Not supported"]
[48,250,"CE","X","Medically Necessary Duplicate Procedure Reason",null,"Not supported"]
[49,2,"IS","X","Result Handling ",null,"Not supported"]
[50,250,"CE","X","Parent Universal Service Identifier",null,"Not supported"]

{"sheet":"OBX-PDF","index":48,"n_rows":3,"n_cols":25,"rows_kept":3,"cut":false,"hidden":false,"merged":[]}
["#","Section","Section Desc","Usage","Sequence","Data Type","LOINC #","LOINC Name","Value Type","Local Code","Sub-ID","Value","Units","Range","Abnormal Flags","Probability","Nature of Abnormal\nTest","Observation Result\nStatus","Effective Date of\nReference Range\nValues","User Defined Access\nChecks","Date/Time of the\nObservation","Producer's\nReference","Responsible\nObserver","Observation\nMethod","Message Text"]
[null,null,null,null,"OBX 1(Required)","OBX 2 (Required)","OBX 3.1 (Required)","OBX 3.2 (Required)","OBX 3.3 (Required)","OBX 3.4 (Required)","OBX 4","OBX 5 (Required)","OBX 6 (Required)","OBX 7 (Required)","OBX 8 (Required)",null,null,"OBX 11 (Required)",null,null,"OBX 14 (Required)"]
[1,null,null,null,1,"ED","ClinicalPDFReport","Clinical PDF Report [GDSP SIS Case #]",null,null,null,"[BASE64 ENCODE PDF]"]

{"sheet":"HL7 Optionality Definition","index":49,"n_rows":10,"n_cols":2,"rows_kept":10,"cut":false,"hidden":false,"merged":[]}
["Definition: Whether the field is required, optional, or conditional in a segment. In the segment attribute tables this information is provided in the column labeled OPT."]
[]
["Code","Description"]
["R","Required."]
["O","Optional."]
["C","Conditional. On the trigger event or on some other field(s). The field definitions following the segment attribute table should specify the algorithm that defines the conditionality for this field."]
["X","Not used with this trigger event"]
["B","Left in for backward compatibility with previous versions of HL7. The field definitions following the segment attribute table should denote the optionality of the field for prior versions."]
["W","Withdrawn."]
["RE","Required but can be empty."]